Organisation Code,Organisation Label,Effective Date,Organisational Unit,Service Division Label,Category Internal Name,Purpose,Detailed Expenditure Code,Payment Date,Transaction Number,Irrecoverable VAT Amount,Amount,Capital Or Revenue,Beneficiary Name,Procurement Card
Http://opendatacommunities.org/id/metropolitan-district-council/leeds,Leeds City Council,30/06/2022,Adults and Health,Services For Adults Under 65 Mental/Dis,Agency Payments,Home Care,568,17/06/2022,2206-00001 ,0.00,528.14,R,A & B Healthcare Ltd,No
Http://opendatacommunities.org/id/metropolitan-district-council/leeds,Leeds City Council,30/06/2022,Children and Families,Social Care,Supplies and Services,Consultancy Services,259,17/06/2022,2206-00002,0.00,7243.75,R,A & F Lloyd Training Limited,No
Http://opendatacommunities.org/id/metropolitan-district-council/leeds,Leeds City Council,30/06/2022,Children and Families,Social Care,Internal Recharges,Legal Disbursements,411,10/06/2022,2206-00003,0.00,300.00,R,A & N Care Solicitors Limited,No
Http://opendatacommunities.org/id/metropolitan-district-council/leeds,Leeds City Council,30/06/2022,Adults and Health,Services For Older People Under 65 P/Dis,Agency Payments,Sheltered Accommodation,569,22/06/2022,2206-00004,0.00,5400.00,R,A & V TRANSITIONAL HOMES,No
Http://opendatacommunities.org/id/metropolitan-district-council/leeds,Leeds City Council,30/06/2022,Communities Housing and Environment,Car Parking Services,External Income,Penalties Fines & Car Parking Charges,934,16/06/2022,2206-00005,0.00,30.00,R,REDACTED PERSONAL DATA,No
Http://opendatacommunities.org/id/metropolitan-district-council/leeds,Leeds City Council,30/06/2022,Children and Families,Social Care,Agency Payments,Services Rendered By Other Organisations,511,01/06/2022,2206-00006,0.00,186.42,R,REDACTED PERSONAL DATA,No
Http://opendatacommunities.org/id/metropolitan-district-council/leeds,Leeds City Council,30/06/2022,Children and Families,Social Care,Agency Payments,Services Rendered By Other Organisations,511,01/06/2022,2206-00007,0.00,217.23,R,REDACTED PERSONAL DATA,No
Http://opendatacommunities.org/id/metropolitan-district-council/leeds,Leeds City Council,30/06/2022,City Development,Libraries Arts & Heritage,Supplies and Services,Operational Furniture And Equipment,203,10/06/2022,2206-00008,0.00,294.65,R,A C Entertainment Technologies Ltd,No
Http://opendatacommunities.org/id/metropolitan-district-council/leeds,Leeds City Council,30/06/2022,Children and Families,Social Care,Agency Payments,Services Rendered By Other Organisations,511,01/06/2022,2206-00009,0.00,233.01,R,REDACTED PERSONAL DATA,No
Http://opendatacommunities.org/id/metropolitan-district-council/leeds,Leeds City Council,30/06/2022,Strategic Landlord,HRA Housing Leeds,Capital,CONSTRUCTION,3,27/06/2022,2206-00010,0.00,150000.00,C,A Connolly Limited,No
Http://opendatacommunities.org/id/metropolitan-district-council/leeds,Leeds City Council,30/06/2022,Resources,Leeds Building Services,Supplies and Services,Other Hired And Contracted Services,265,01/06/2022,2206-00011,0.00,5196.00,R,A Coole Electrical Ltd,No
Http://opendatacommunities.org/id/metropolitan-district-council/leeds,Leeds City Council,30/06/2022,Resources,Leeds Building Services,Supplies and Services,Other Hired And Contracted Services,265,24/06/2022,2206-00012,0.00,9193.00,R,A Coole Electrical Ltd,No
Http://opendatacommunities.org/id/metropolitan-district-council/leeds,Leeds City Council,30/06/2022,Children and Families,Social Care,Agency Payments,Contact,548,01/06/2022,2206-00013,0.00,10.40,R,REDACTED PERSONAL DATA,No
Http://opendatacommunities.org/id/metropolitan-district-council/leeds,Leeds City Council,30/06/2022,Children and Families,Social Care,Agency Payments,Contact,548,10/06/2022,2206-00014,0.00,10.40,R,REDACTED PERSONAL DATA,No
Http://opendatacommunities.org/id/metropolitan-district-council/leeds,Leeds City Council,30/06/2022,Children and Families,Social Care,Agency Payments,Contact,548,17/06/2022,2206-00015,0.00,10.40,R,REDACTED PERSONAL DATA,No
Http://opendatacommunities.org/id/metropolitan-district-council/leeds,Leeds City Council,30/06/2022,Communities Housing and Environment,Customer Access,Supplies and Services,Bought In Professional Services,277,01/06/2022,2206-00016,0.00,24.00,R,A D Dumitru,No
Http://opendatacommunities.org/id/metropolitan-district-council/leeds,Leeds City Council,30/06/2022,Communities Housing and Environment,Customer Access,Supplies and Services,Bought In Professional Services,277,01/06/2022,2206-00017,0.00,30.00,R,A D Dumitru,No
Http://opendatacommunities.org/id/metropolitan-district-council/leeds,Leeds City Council,30/06/2022,Communities Housing and Environment,Customer Access,Supplies and Services,Bought In Professional Services,277,01/06/2022,2206-00018,0.00,13.50,R,A D Dumitru,No
Http://opendatacommunities.org/id/metropolitan-district-council/leeds,Leeds City Council,30/06/2022,Communities Housing and Environment,Customer Access,Supplies and Services,Bought In Professional Services,277,01/06/2022,2206-00019,0.00,24.00,R,A D Dumitru,No
Http://opendatacommunities.org/id/metropolitan-district-council/leeds,Leeds City Council,30/06/2022,Communities Housing and Environment,Customer Access,Supplies and Services,Bought In Professional Services,277,01/06/2022,2206-00020,0.00,9.00,R,A D Dumitru,No
Http://opendatacommunities.org/id/metropolitan-district-council/leeds,Leeds City Council,30/06/2022,Communities Housing and Environment,Customer Access,Supplies and Services,Bought In Professional Services,277,09/06/2022,2206-00021,0.00,18.00,R,A D Dumitru,No
Http://opendatacommunities.org/id/metropolitan-district-council/leeds,Leeds City Council,30/06/2022,Communities Housing and Environment,Customer Access,Supplies and Services,Bought In Professional Services,277,09/06/2022,2206-00022,0.00,27.00,R,A D Dumitru,No
Http://opendatacommunities.org/id/metropolitan-district-council/leeds,Leeds City Council,30/06/2022,Communities Housing and Environment,Customer Access,Supplies and Services,Bought In Professional Services,277,15/06/2022,2206-00023,0.00,18.00,R,A D Dumitru,No
Http://opendatacommunities.org/id/metropolitan-district-council/leeds,Leeds City Council,30/06/2022,Communities Housing and Environment,Customer Access,Supplies and Services,Bought In Professional Services,277,15/06/2022,2206-00024,0.00,18.00,R,A D Dumitru,No
Http://opendatacommunities.org/id/metropolitan-district-council/leeds,Leeds City Council,30/06/2022,Communities Housing and Environment,Customer Access,Supplies and Services,Bought In Professional Services,277,15/06/2022,2206-00025,0.00,27.00,R,A D Dumitru,No
Http://opendatacommunities.org/id/metropolitan-district-council/leeds,Leeds City Council,30/06/2022,Communities Housing and Environment,Customer Access,Supplies and Services,Bought In Professional Services,277,15/06/2022,2206-00026,0.00,18.00,R,A D Dumitru,No
Http://opendatacommunities.org/id/metropolitan-district-council/leeds,Leeds City Council,30/06/2022,Communities Housing and Environment,Customer Access,Supplies and Services,Bought In Professional Services,277,15/06/2022,2206-00027,0.00,27.00,R,A D Dumitru,No
Http://opendatacommunities.org/id/metropolitan-district-council/leeds,Leeds City Council,30/06/2022,Communities Housing and Environment,Customer Access,Supplies and Services,Bought In Professional Services,277,22/06/2022,2206-00028,0.00,18.00,R,A D Dumitru,No
Http://opendatacommunities.org/id/metropolitan-district-council/leeds,Leeds City Council,30/06/2022,Communities Housing and Environment,Customer Access,Supplies and Services,Bought In Professional Services,277,22/06/2022,2206-00029,0.00,27.00,R,A D Dumitru,No
Http://opendatacommunities.org/id/metropolitan-district-council/leeds,Leeds City Council,30/06/2022,Communities Housing and Environment,Customer Access,Supplies and Services,Bought In Professional Services,277,29/06/2022,2206-00030,0.00,18.00,R,A D Dumitru,No
Http://opendatacommunities.org/id/metropolitan-district-council/leeds,Leeds City Council,30/06/2022,Communities Housing and Environment,Customer Access,Supplies and Services,Bought In Professional Services,277,29/06/2022,2206-00031,0.00,18.00,R,A D Dumitru,No
Http://opendatacommunities.org/id/metropolitan-district-council/leeds,Leeds City Council,30/06/2022,Children and Families,Social Care,Agency Payments,Services Rendered By Other Organisations,511,01/06/2022,2206-00032,0.00,1955.07,R,REDACTED PERSONAL DATA,No
Http://opendatacommunities.org/id/metropolitan-district-council/leeds,Leeds City Council,30/06/2022,Children and Families,Social Care,Agency Payments,Services Rendered By Voluntary Sector,505,01/06/2022,2206-00033,0.00,5070.62,R,REDACTED PERSONAL DATA,No
Http://opendatacommunities.org/id/metropolitan-district-council/leeds,Leeds City Council,30/06/2022,Children and Families,Social Care,Agency Payments,Services Rendered By Other Organisations,511,01/06/2022,2206-00034,0.00,217.23,R,REDACTED PERSONAL DATA,No
Http://opendatacommunities.org/id/metropolitan-district-council/leeds,Leeds City Council,30/06/2022,Children and Families,Social Care,Agency Payments,Services Rendered By Other Organisations,511,01/06/2022,2206-00035,0.00,857.53,R,REDACTED PERSONAL DATA,No
Http://opendatacommunities.org/id/metropolitan-district-council/leeds,Leeds City Council,30/06/2022,Adults and Health,Other Generic Services,Agency Payments,Fees To Carers,563,01/06/2022,2206-00036,0.00,125.51,R,REDACTED PERSONAL DATA,No
Http://opendatacommunities.org/id/metropolitan-district-council/leeds,Leeds City Council,30/06/2022,Adults and Health,Other Generic Services,Agency Payments,Fees To Carers,563,01/06/2022,2206-00037,0.00,125.31,R,REDACTED PERSONAL DATA,No
Http://opendatacommunities.org/id/metropolitan-district-council/leeds,Leeds City Council,30/06/2022,Adults and Health,Other Generic Services,Agency Payments,Fees To Carers,563,16/06/2022,2206-00038,0.00,518.40,R,REDACTED PERSONAL DATA,No
Http://opendatacommunities.org/id/metropolitan-district-council/leeds,Leeds City Council,30/06/2022,Adults and Health,Other Generic Services,Agency Payments,Fees To Carers,563,16/06/2022,2206-00039,0.00,56.70,R,REDACTED PERSONAL DATA,No
Http://opendatacommunities.org/id/metropolitan-district-council/leeds,Leeds City Council,30/06/2022,City Development,Recreation,External Income,Swimming Bath Charges,923,10/06/2022,2206-00040,0.00,19.50,R,REDACTED PERSONAL DATA,No
Http://opendatacommunities.org/id/metropolitan-district-council/leeds,Leeds City Council,30/06/2022,Resources,Leeds Building Services,Supplies and Services,Operational Materials,205,08/06/2022,2206-00041,0.00,1519.00,R,A J H  Pump Supply & Repair Ltd,No
Http://opendatacommunities.org/id/metropolitan-district-council/leeds,Leeds City Council,30/06/2022,Resources,Leeds Building Services,Supplies and Services,Operational Materials,205,10/06/2022,2206-00042,0.00,950.00,R,A J H  Pump Supply & Repair Ltd,No
Http://opendatacommunities.org/id/metropolitan-district-council/leeds,Leeds City Council,30/06/2022,City Development,Libraries Arts & Heritage,Supplies and Services,Resaleable Materials,204,01/06/2022,2206-00043,0.00,1487.74,R,A J PROMOTIONS,No
Http://opendatacommunities.org/id/metropolitan-district-council/leeds,Leeds City Council,30/06/2022,City Development,Libraries Arts & Heritage,Supplies and Services,Resaleable Materials,204,01/06/2022,2206-00044,0.00,606.83,R,A J PROMOTIONS,No
Http://opendatacommunities.org/id/metropolitan-district-council/leeds,Leeds City Council,30/06/2022,Communities Housing and Environment,Parks and Countryside,Supplies and Services,Resaleable Materials,204,10/06/2022,2206-00045,0.00,450.00,R,A J PROMOTIONS,No
Http://opendatacommunities.org/id/metropolitan-district-council/leeds,Leeds City Council,30/06/2022,Communities Housing and Environment,Parks and Countryside,Supplies and Services,Resaleable Materials,204,24/06/2022,2206-00046,0.00,2716.12,R,A J PROMOTIONS,No
Http://opendatacommunities.org/id/metropolitan-district-council/leeds,Leeds City Council,30/06/2022,Communities Housing and Environment,Parks and Countryside,Supplies and Services,Resaleable Materials,204,24/06/2022,2206-00047,0.00,1500.60,R,A J PROMOTIONS,No
Http://opendatacommunities.org/id/metropolitan-district-council/leeds,Leeds City Council,30/06/2022,Children and Families,Social Care,Agency Payments,Services Rendered By Other Organisations,511,01/06/2022,2206-00048,0.00,1491.36,R,REDACTED PERSONAL DATA,No
Http://opendatacommunities.org/id/metropolitan-district-council/leeds,Leeds City Council,30/06/2022,Children and Families,Social Care,Employees,Agency Staff,8,20/06/2022,2206-00049,0.00,416.25,R,A Little Something Extra Ltd,No
Http://opendatacommunities.org/id/metropolitan-district-council/leeds,Leeds City Council,30/06/2022,Communities Housing and Environment,Customer Access,Supplies and Services,Bought In Professional Services,277,01/06/2022,2206-00050,0.00,18.00,R,A MOHAMMED,No
Http://opendatacommunities.org/id/metropolitan-district-council/leeds,Leeds City Council,30/06/2022,Communities Housing and Environment,Customer Access,Supplies and Services,Bought In Professional Services,277,01/06/2022,2206-00051,0.00,18.00,R,A MOHAMMED,No
Http://opendatacommunities.org/id/metropolitan-district-council/leeds,Leeds City Council,30/06/2022,Communities Housing and Environment,Customer Access,Supplies and Services,Bought In Professional Services,277,01/06/2022,2206-00052,0.00,18.00,R,A MOHAMMED,No
Http://opendatacommunities.org/id/metropolitan-district-council/leeds,Leeds City Council,30/06/2022,Communities Housing and Environment,Customer Access,Supplies and Services,Bought In Professional Services,277,01/06/2022,2206-00053,0.00,18.00,R,A MOHAMMED,No
Http://opendatacommunities.org/id/metropolitan-district-council/leeds,Leeds City Council,30/06/2022,Communities Housing and Environment,Customer Access,Supplies and Services,Bought In Professional Services,277,01/06/2022,2206-00054,0.00,18.00,R,A MOHAMMED,No
Http://opendatacommunities.org/id/metropolitan-district-council/leeds,Leeds City Council,30/06/2022,Communities Housing and Environment,Customer Access,Supplies and Services,Bought In Professional Services,277,01/06/2022,2206-00055,0.00,18.00,R,A MOHAMMED,No
Http://opendatacommunities.org/id/metropolitan-district-council/leeds,Leeds City Council,30/06/2022,Communities Housing and Environment,Customer Access,Supplies and Services,Bought In Professional Services,277,01/06/2022,2206-00056,0.00,13.50,R,A MOHAMMED,No
Http://opendatacommunities.org/id/metropolitan-district-council/leeds,Leeds City Council,30/06/2022,Communities Housing and Environment,Customer Access,Supplies and Services,Bought In Professional Services,277,01/06/2022,2206-00057,0.00,81.00,R,A MOHAMMED,No
Http://opendatacommunities.org/id/metropolitan-district-council/leeds,Leeds City Council,30/06/2022,Communities Housing and Environment,Customer Access,Supplies and Services,Bought In Professional Services,277,01/06/2022,2206-00058,0.00,18.00,R,A MOHAMMED,No
Http://opendatacommunities.org/id/metropolitan-district-council/leeds,Leeds City Council,30/06/2022,Communities Housing and Environment,Customer Access,Supplies and Services,Bought In Professional Services,277,01/06/2022,2206-00059,0.00,18.00,R,A MOHAMMED,No
Http://opendatacommunities.org/id/metropolitan-district-council/leeds,Leeds City Council,30/06/2022,Communities Housing and Environment,Customer Access,Supplies and Services,Bought In Professional Services,277,01/06/2022,2206-00060,0.00,18.00,R,A MOHAMMED,No
Http://opendatacommunities.org/id/metropolitan-district-council/leeds,Leeds City Council,30/06/2022,Communities Housing and Environment,Customer Access,Supplies and Services,Bought In Professional Services,277,01/06/2022,2206-00061,0.00,18.00,R,A MOHAMMED,No
Http://opendatacommunities.org/id/metropolitan-district-council/leeds,Leeds City Council,30/06/2022,Communities Housing and Environment,Customer Access,Supplies and Services,Bought In Professional Services,277,09/06/2022,2206-00062,0.00,40.50,R,A MOHAMMED,No
Http://opendatacommunities.org/id/metropolitan-district-council/leeds,Leeds City Council,30/06/2022,Communities Housing and Environment,Customer Access,Supplies and Services,Bought In Professional Services,277,09/06/2022,2206-00063,0.00,18.00,R,A MOHAMMED,No
Http://opendatacommunities.org/id/metropolitan-district-council/leeds,Leeds City Council,30/06/2022,Communities Housing and Environment,Customer Access,Supplies and Services,Bought In Professional Services,277,09/06/2022,2206-00064,0.00,18.00,R,A MOHAMMED,No
Http://opendatacommunities.org/id/metropolitan-district-council/leeds,Leeds City Council,30/06/2022,Communities Housing and Environment,Customer Access,Supplies and Services,Bought In Professional Services,277,09/06/2022,2206-00065,0.00,27.00,R,A MOHAMMED,No
Http://opendatacommunities.org/id/metropolitan-district-council/leeds,Leeds City Council,30/06/2022,Communities Housing and Environment,Customer Access,Supplies and Services,Bought In Professional Services,277,09/06/2022,2206-00066,0.00,18.00,R,A MOHAMMED,No
Http://opendatacommunities.org/id/metropolitan-district-council/leeds,Leeds City Council,30/06/2022,Communities Housing and Environment,Customer Access,Supplies and Services,Bought In Professional Services,277,09/06/2022,2206-00067,0.00,81.00,R,A MOHAMMED,No
Http://opendatacommunities.org/id/metropolitan-district-council/leeds,Leeds City Council,30/06/2022,Communities Housing and Environment,Customer Access,Supplies and Services,Bought In Professional Services,277,09/06/2022,2206-00068,0.00,18.00,R,A MOHAMMED,No
Http://opendatacommunities.org/id/metropolitan-district-council/leeds,Leeds City Council,30/06/2022,Communities Housing and Environment,Customer Access,Supplies and Services,Bought In Professional Services,277,09/06/2022,2206-00069,0.00,18.00,R,A MOHAMMED,No
Http://opendatacommunities.org/id/metropolitan-district-council/leeds,Leeds City Council,30/06/2022,Communities Housing and Environment,Customer Access,Supplies and Services,Bought In Professional Services,277,09/06/2022,2206-00070,0.00,18.00,R,A MOHAMMED,No
Http://opendatacommunities.org/id/metropolitan-district-council/leeds,Leeds City Council,30/06/2022,Communities Housing and Environment,Customer Access,Supplies and Services,Bought In Professional Services,277,09/06/2022,2206-00071,0.00,13.50,R,A MOHAMMED,No
Http://opendatacommunities.org/id/metropolitan-district-council/leeds,Leeds City Council,30/06/2022,Communities Housing and Environment,Customer Access,Supplies and Services,Bought In Professional Services,277,09/06/2022,2206-00072,0.00,18.00,R,A MOHAMMED,No
Http://opendatacommunities.org/id/metropolitan-district-council/leeds,Leeds City Council,30/06/2022,Communities Housing and Environment,Customer Access,Supplies and Services,Bought In Professional Services,277,09/06/2022,2206-00073,0.00,18.00,R,A MOHAMMED,No
Http://opendatacommunities.org/id/metropolitan-district-council/leeds,Leeds City Council,30/06/2022,Communities Housing and Environment,Customer Access,Supplies and Services,Bought In Professional Services,277,09/06/2022,2206-00074,0.00,27.00,R,A MOHAMMED,No
Http://opendatacommunities.org/id/metropolitan-district-council/leeds,Leeds City Council,30/06/2022,Communities Housing and Environment,Customer Access,Supplies and Services,Bought In Professional Services,277,15/06/2022,2206-00075,0.00,36.00,R,A MOHAMMED,No
Http://opendatacommunities.org/id/metropolitan-district-council/leeds,Leeds City Council,30/06/2022,Communities Housing and Environment,Customer Access,Supplies and Services,Bought In Professional Services,277,15/06/2022,2206-00076,0.00,22.50,R,A MOHAMMED,No
Http://opendatacommunities.org/id/metropolitan-district-council/leeds,Leeds City Council,30/06/2022,Communities Housing and Environment,Customer Access,Supplies and Services,Bought In Professional Services,277,15/06/2022,2206-00077,0.00,49.50,R,A MOHAMMED,No
Http://opendatacommunities.org/id/metropolitan-district-council/leeds,Leeds City Council,30/06/2022,Communities Housing and Environment,Customer Access,Supplies and Services,Bought In Professional Services,277,15/06/2022,2206-00078,0.00,18.00,R,A MOHAMMED,No
Http://opendatacommunities.org/id/metropolitan-district-council/leeds,Leeds City Council,30/06/2022,Communities Housing and Environment,Customer Access,Supplies and Services,Bought In Professional Services,277,15/06/2022,2206-00079,0.00,18.00,R,A MOHAMMED,No
Http://opendatacommunities.org/id/metropolitan-district-council/leeds,Leeds City Council,30/06/2022,Communities Housing and Environment,Customer Access,Supplies and Services,Bought In Professional Services,277,15/06/2022,2206-00080,0.00,18.00,R,A MOHAMMED,No
Http://opendatacommunities.org/id/metropolitan-district-council/leeds,Leeds City Council,30/06/2022,Communities Housing and Environment,Customer Access,Supplies and Services,Bought In Professional Services,277,22/06/2022,2206-00081,0.00,81.00,R,A MOHAMMED,No
Http://opendatacommunities.org/id/metropolitan-district-council/leeds,Leeds City Council,30/06/2022,Communities Housing and Environment,Customer Access,Supplies and Services,Bought In Professional Services,277,22/06/2022,2206-00082,0.00,9.00,R,A MOHAMMED,No
Http://opendatacommunities.org/id/metropolitan-district-council/leeds,Leeds City Council,30/06/2022,Communities Housing and Environment,Customer Access,Supplies and Services,Bought In Professional Services,277,22/06/2022,2206-00083,0.00,22.50,R,A MOHAMMED,No
Http://opendatacommunities.org/id/metropolitan-district-council/leeds,Leeds City Council,30/06/2022,Communities Housing and Environment,Customer Access,Supplies and Services,Bought In Professional Services,277,22/06/2022,2206-00084,0.00,18.00,R,A MOHAMMED,No
Http://opendatacommunities.org/id/metropolitan-district-council/leeds,Leeds City Council,30/06/2022,Communities Housing and Environment,Customer Access,Supplies and Services,Bought In Professional Services,277,22/06/2022,2206-00085,0.00,36.00,R,A MOHAMMED,No
Http://opendatacommunities.org/id/metropolitan-district-council/leeds,Leeds City Council,30/06/2022,Communities Housing and Environment,Customer Access,Supplies and Services,Bought In Professional Services,277,22/06/2022,2206-00086,0.00,22.50,R,A MOHAMMED,No
Http://opendatacommunities.org/id/metropolitan-district-council/leeds,Leeds City Council,30/06/2022,Communities Housing and Environment,Customer Access,Supplies and Services,Bought In Professional Services,277,22/06/2022,2206-00087,0.00,18.00,R,A MOHAMMED,No
Http://opendatacommunities.org/id/metropolitan-district-council/leeds,Leeds City Council,30/06/2022,Communities Housing and Environment,Customer Access,Supplies and Services,Bought In Professional Services,277,22/06/2022,2206-00088,0.00,36.00,R,A MOHAMMED,No
Http://opendatacommunities.org/id/metropolitan-district-council/leeds,Leeds City Council,30/06/2022,Communities Housing and Environment,Customer Access,Supplies and Services,Bought In Professional Services,277,22/06/2022,2206-00089,0.00,54.00,R,A MOHAMMED,No
Http://opendatacommunities.org/id/metropolitan-district-council/leeds,Leeds City Council,30/06/2022,Communities Housing and Environment,Customer Access,Supplies and Services,Bought In Professional Services,277,22/06/2022,2206-00090,0.00,18.00,R,A MOHAMMED,No
Http://opendatacommunities.org/id/metropolitan-district-council/leeds,Leeds City Council,30/06/2022,Communities Housing and Environment,Customer Access,Supplies and Services,Bought In Professional Services,277,22/06/2022,2206-00091,0.00,18.00,R,A MOHAMMED,No
Http://opendatacommunities.org/id/metropolitan-district-council/leeds,Leeds City Council,30/06/2022,Communities Housing and Environment,Customer Access,Supplies and Services,Bought In Professional Services,277,22/06/2022,2206-00092,0.00,18.00,R,A MOHAMMED,No
Http://opendatacommunities.org/id/metropolitan-district-council/leeds,Leeds City Council,30/06/2022,Communities Housing and Environment,Customer Access,Supplies and Services,Bought In Professional Services,277,22/06/2022,2206-00093,0.00,18.00,R,A MOHAMMED,No
Http://opendatacommunities.org/id/metropolitan-district-council/leeds,Leeds City Council,30/06/2022,Communities Housing and Environment,Customer Access,Supplies and Services,Bought In Professional Services,277,22/06/2022,2206-00094,0.00,18.00,R,A MOHAMMED,No
Http://opendatacommunities.org/id/metropolitan-district-council/leeds,Leeds City Council,30/06/2022,Communities Housing and Environment,Customer Access,Supplies and Services,Bought In Professional Services,277,29/06/2022,2206-00095,0.00,18.00,R,A MOHAMMED,No
Http://opendatacommunities.org/id/metropolitan-district-council/leeds,Leeds City Council,30/06/2022,Communities Housing and Environment,Customer Access,Supplies and Services,Bought In Professional Services,277,29/06/2022,2206-00096,0.00,18.00,R,A MOHAMMED,No
Http://opendatacommunities.org/id/metropolitan-district-council/leeds,Leeds City Council,30/06/2022,Communities Housing and Environment,Customer Access,Supplies and Services,Bought In Professional Services,277,29/06/2022,2206-00097,0.00,81.00,R,A MOHAMMED,No
Http://opendatacommunities.org/id/metropolitan-district-council/leeds,Leeds City Council,30/06/2022,Communities Housing and Environment,Customer Access,Supplies and Services,Bought In Professional Services,277,29/06/2022,2206-00098,0.00,27.00,R,A MOHAMMED,No
Http://opendatacommunities.org/id/metropolitan-district-council/leeds,Leeds City Council,30/06/2022,Communities Housing and Environment,Customer Access,Supplies and Services,Bought In Professional Services,277,29/06/2022,2206-00099,0.00,18.00,R,A MOHAMMED,No
Http://opendatacommunities.org/id/metropolitan-district-council/leeds,Leeds City Council,30/06/2022,Communities Housing and Environment,Customer Access,Supplies and Services,Bought In Professional Services,277,29/06/2022,2206-00100,0.00,18.00,R,A MOHAMMED,No
Http://opendatacommunities.org/id/metropolitan-district-council/leeds,Leeds City Council,30/06/2022,Communities Housing and Environment,Customer Access,Supplies and Services,Bought In Professional Services,277,29/06/2022,2206-00101,0.00,18.00,R,A MOHAMMED,No
Http://opendatacommunities.org/id/metropolitan-district-council/leeds,Leeds City Council,30/06/2022,Communities Housing and Environment,Customer Access,Supplies and Services,Bought In Professional Services,277,29/06/2022,2206-00102,0.00,18.00,R,A MOHAMMED,No
Http://opendatacommunities.org/id/metropolitan-district-council/leeds,Leeds City Council,30/06/2022,Communities Housing and Environment,Customer Access,Supplies and Services,Bought In Professional Services,277,29/06/2022,2206-00103,0.00,54.00,R,A MOHAMMED,No
Http://opendatacommunities.org/id/metropolitan-district-council/leeds,Leeds City Council,30/06/2022,Communities Housing and Environment,Customer Access,Supplies and Services,Bought In Professional Services,277,29/06/2022,2206-00104,0.00,27.00,R,A MOHAMMED,No
Http://opendatacommunities.org/id/metropolitan-district-council/leeds,Leeds City Council,30/06/2022,Communities Housing and Environment,Customer Access,Supplies and Services,Bought In Professional Services,277,29/06/2022,2206-00105,0.00,22.50,R,A MOHAMMED,No
Http://opendatacommunities.org/id/metropolitan-district-council/leeds,Leeds City Council,30/06/2022,Communities Housing and Environment,Customer Access,Supplies and Services,Bought In Professional Services,277,29/06/2022,2206-00106,0.00,13.50,R,A MOHAMMED,No
Http://opendatacommunities.org/id/metropolitan-district-council/leeds,Leeds City Council,30/06/2022,Communities Housing and Environment,Customer Access,Supplies and Services,Bought In Professional Services,277,01/06/2022,2206-00107,0.00,29.70,R,A MUSALAM,No
Http://opendatacommunities.org/id/metropolitan-district-council/leeds,Leeds City Council,30/06/2022,Children and Families,Social Care,Agency Payments,Services Rendered By Other Organisations,511,01/06/2022,2206-00108,0.00,651.69,R,REDACTED PERSONAL DATA,No
Http://opendatacommunities.org/id/metropolitan-district-council/leeds,Leeds City Council,30/06/2022,Children and Families,Social Care,Agency Payments,Services Rendered By Other Organisations,511,01/06/2022,2206-00109,0.00,2796.30,R,REDACTED PERSONAL DATA,No
Http://opendatacommunities.org/id/metropolitan-district-council/leeds,Leeds City Council,30/06/2022,Communities Housing and Environment,Customer Access,Supplies and Services,Bought In Professional Services,277,01/06/2022,2206-00110,0.00,18.00,R,A NAMAKI,No
Http://opendatacommunities.org/id/metropolitan-district-council/leeds,Leeds City Council,30/06/2022,Communities Housing and Environment,Customer Access,Supplies and Services,Bought In Professional Services,277,01/06/2022,2206-00111,0.00,18.00,R,A NAMAKI,No
Http://opendatacommunities.org/id/metropolitan-district-council/leeds,Leeds City Council,30/06/2022,Communities Housing and Environment,Customer Access,Supplies and Services,Bought In Professional Services,277,01/06/2022,2206-00112,0.00,18.00,R,A NAMAKI,No
Http://opendatacommunities.org/id/metropolitan-district-council/leeds,Leeds City Council,30/06/2022,Communities Housing and Environment,Customer Access,Supplies and Services,Bought In Professional Services,277,01/06/2022,2206-00113,0.00,72.00,R,A NAMAKI,No
Http://opendatacommunities.org/id/metropolitan-district-council/leeds,Leeds City Council,30/06/2022,Communities Housing and Environment,Customer Access,Supplies and Services,Bought In Professional Services,277,01/06/2022,2206-00114,0.00,27.00,R,A NAMAKI,No
Http://opendatacommunities.org/id/metropolitan-district-council/leeds,Leeds City Council,30/06/2022,Communities Housing and Environment,Customer Access,Supplies and Services,Bought In Professional Services,277,01/06/2022,2206-00115,0.00,22.50,R,A NAMAKI,No
Http://opendatacommunities.org/id/metropolitan-district-council/leeds,Leeds City Council,30/06/2022,Communities Housing and Environment,Customer Access,Supplies and Services,Bought In Professional Services,277,09/06/2022,2206-00116,0.00,108.00,R,A NAMAKI,No
Http://opendatacommunities.org/id/metropolitan-district-council/leeds,Leeds City Council,30/06/2022,Communities Housing and Environment,Customer Access,Supplies and Services,Bought In Professional Services,277,09/06/2022,2206-00117,0.00,18.00,R,A NAMAKI,No
Http://opendatacommunities.org/id/metropolitan-district-council/leeds,Leeds City Council,30/06/2022,Communities Housing and Environment,Customer Access,Supplies and Services,Bought In Professional Services,277,09/06/2022,2206-00118,0.00,18.00,R,A NAMAKI,No
Http://opendatacommunities.org/id/metropolitan-district-council/leeds,Leeds City Council,30/06/2022,Communities Housing and Environment,Customer Access,Supplies and Services,Bought In Professional Services,277,09/06/2022,2206-00119,0.00,81.00,R,A NAMAKI,No
Http://opendatacommunities.org/id/metropolitan-district-council/leeds,Leeds City Council,30/06/2022,Communities Housing and Environment,Customer Access,Supplies and Services,Bought In Professional Services,277,09/06/2022,2206-00120,0.00,18.00,R,A NAMAKI,No
Http://opendatacommunities.org/id/metropolitan-district-council/leeds,Leeds City Council,30/06/2022,Communities Housing and Environment,Customer Access,Supplies and Services,Bought In Professional Services,277,15/06/2022,2206-00121,0.00,18.00,R,A NAMAKI,No
Http://opendatacommunities.org/id/metropolitan-district-council/leeds,Leeds City Council,30/06/2022,Communities Housing and Environment,Customer Access,Supplies and Services,Bought In Professional Services,277,15/06/2022,2206-00122,0.00,18.00,R,A NAMAKI,No
Http://opendatacommunities.org/id/metropolitan-district-council/leeds,Leeds City Council,30/06/2022,Communities Housing and Environment,Customer Access,Supplies and Services,Bought In Professional Services,277,22/06/2022,2206-00123,0.00,18.00,R,A NAMAKI,No
Http://opendatacommunities.org/id/metropolitan-district-council/leeds,Leeds City Council,30/06/2022,Communities Housing and Environment,Customer Access,Supplies and Services,Bought In Professional Services,277,22/06/2022,2206-00124,0.00,81.00,R,A NAMAKI,No
Http://opendatacommunities.org/id/metropolitan-district-council/leeds,Leeds City Council,30/06/2022,Communities Housing and Environment,Customer Access,Supplies and Services,Bought In Professional Services,277,22/06/2022,2206-00125,0.00,18.00,R,A NAMAKI,No
Http://opendatacommunities.org/id/metropolitan-district-council/leeds,Leeds City Council,30/06/2022,Communities Housing and Environment,Customer Access,Supplies and Services,Bought In Professional Services,277,22/06/2022,2206-00126,0.00,108.00,R,A NAMAKI,No
Http://opendatacommunities.org/id/metropolitan-district-council/leeds,Leeds City Council,30/06/2022,Communities Housing and Environment,Customer Access,Supplies and Services,Bought In Professional Services,277,22/06/2022,2206-00127,0.00,18.00,R,A NAMAKI,No
Http://opendatacommunities.org/id/metropolitan-district-council/leeds,Leeds City Council,30/06/2022,Communities Housing and Environment,Customer Access,Supplies and Services,Bought In Professional Services,277,29/06/2022,2206-00128,0.00,18.00,R,A NAMAKI,No
Http://opendatacommunities.org/id/metropolitan-district-council/leeds,Leeds City Council,30/06/2022,Communities Housing and Environment,Customer Access,Supplies and Services,Bought In Professional Services,277,29/06/2022,2206-00129,0.00,81.00,R,A NAMAKI,No
Http://opendatacommunities.org/id/metropolitan-district-council/leeds,Leeds City Council,30/06/2022,Communities Housing and Environment,Customer Access,Supplies and Services,Bought In Professional Services,277,29/06/2022,2206-00130,0.00,18.00,R,A NAMAKI,No
Http://opendatacommunities.org/id/metropolitan-district-council/leeds,Leeds City Council,30/06/2022,Communities Housing and Environment,Customer Access,Supplies and Services,Bought In Professional Services,277,29/06/2022,2206-00131,0.00,36.00,R,A NAMAKI,No
Http://opendatacommunities.org/id/metropolitan-district-council/leeds,Leeds City Council,30/06/2022,Communities Housing and Environment,Customer Access,Supplies and Services,Bought In Professional Services,277,29/06/2022,2206-00132,0.00,18.00,R,A NAMAKI,No
Http://opendatacommunities.org/id/metropolitan-district-council/leeds,Leeds City Council,30/06/2022,Communities Housing and Environment,Customer Access,Supplies and Services,Bought In Professional Services,277,29/06/2022,2206-00133,0.00,18.00,R,A NAMAKI,No
Http://opendatacommunities.org/id/metropolitan-district-council/leeds,Leeds City Council,30/06/2022,Children and Families,Social Care,Agency Payments,Services Rendered By Other Organisations,511,01/06/2022,2206-00134,0.00,372.84,R,REDACTED PERSONAL DATA,No
Http://opendatacommunities.org/id/metropolitan-district-council/leeds,Leeds City Council,30/06/2022,Communities Housing and Environment,Parks and Countryside,Supplies and Services,Operational Materials,205,16/06/2022,2206-00135,0.00,1293.00,R,A NEWTON,No
Http://opendatacommunities.org/id/metropolitan-district-council/leeds,Leeds City Council,30/06/2022,City Development,Libraries Arts & Heritage,Supplies and Services,Resaleable Materials,204,22/06/2022,2206-00136,0.00,450.94,R,A Oppenheimer & Co Ltd,No
Http://opendatacommunities.org/id/metropolitan-district-council/leeds,Leeds City Council,30/06/2022,Resources,Commercial Services,Supplies and Services,Other Hired And Contracted Services,265,01/06/2022,2206-00137,0.00,220.00,R,REDACTED PERSONAL DATA,No
Http://opendatacommunities.org/id/metropolitan-district-council/leeds,Leeds City Council,30/06/2022,Communities Housing and Environment,Car Parking Services,External Income,Penalties Fines & Car Parking Charges,934,24/06/2022,2206-00138,0.00,30.00,R,REDACTED PERSONAL DATA,No
Http://opendatacommunities.org/id/metropolitan-district-council/leeds,Leeds City Council,30/06/2022,Children and Families,Social Care,Agency Payments,Services Rendered By Other Organisations,511,01/06/2022,2206-00139,0.00,372.84,R,REDACTED PERSONAL DATA,No
Http://opendatacommunities.org/id/metropolitan-district-council/leeds,Leeds City Council,30/06/2022,Communities Housing and Environment,Waste Management,Employees,Training & Development,70,08/06/2022,2206-00140,0.00,238.55,R,A T Nerac Ltd,No
Http://opendatacommunities.org/id/metropolitan-district-council/leeds,Leeds City Council,30/06/2022,Communities Housing and Environment,Waste Management,Employees,Training & Development,70,09/06/2022,2206-00141,0.00,386.50,R,A T Nerac Ltd,No
Http://opendatacommunities.org/id/metropolitan-district-council/leeds,Leeds City Council,30/06/2022,Communities Housing and Environment,Waste Management,Employees,Training & Development,70,10/06/2022,2206-00142,0.00,1159.50,R,A T Nerac Ltd,No
Http://opendatacommunities.org/id/metropolitan-district-council/leeds,Leeds City Council,30/06/2022,Children and Families,Social Care,Agency Payments,Independent Fostering Agencies,509,17/06/2022,2206-00143,0.00,792.00,R,A Taxis,No
Http://opendatacommunities.org/id/metropolitan-district-council/leeds,Leeds City Council,30/06/2022,Children and Families,Social Care,Agency Payments,Services Rendered By Other Organisations,511,01/06/2022,2206-00144,0.00,372.84,R,REDACTED PERSONAL DATA,No
Http://opendatacommunities.org/id/metropolitan-district-council/leeds,Leeds City Council,30/06/2022,Strategic Landlord,HRA Housing Leeds,Capital,CONSTRUCTION,3,16/06/2022,2206-00145,0.00,80.00,C,REDACTED PERSONAL DATA,No
Http://opendatacommunities.org/id/metropolitan-district-council/leeds,Leeds City Council,30/06/2022,Children and Families,Social Care,Agency Payments,Services Rendered By Other Organisations,511,01/06/2022,2206-00146,0.00,186.42,R,REDACTED PERSONAL DATA,No
Http://opendatacommunities.org/id/metropolitan-district-council/leeds,Leeds City Council,30/06/2022,Children and Families,Social Care,Agency Payments,Independent Fostering Agencies,509,01/06/2022,2206-00147,0.00,58285.80,R,A Wilderness Way Ltd,No
Http://opendatacommunities.org/id/metropolitan-district-council/leeds,Leeds City Council,30/06/2022,Communities Housing and Environment,Waste Management,Capital,FURNITURE AND EQUIPMENT,5,01/06/2022,2206-00148,0.00,1329.10,C,A&C Weber Uk Ltd,No
Http://opendatacommunities.org/id/metropolitan-district-council/leeds,Leeds City Council,30/06/2022,Resources,Leeds Building Services,Supplies and Services,Other Hired And Contracted Services,265,09/06/2022,2206-00149,0.00,1963.50,R,A1 STAIR LIFT SERVICES,No
Http://opendatacommunities.org/id/metropolitan-district-council/leeds,Leeds City Council,30/06/2022,Resources,Leeds Building Services,Supplies and Services,Other Hired And Contracted Services,265,10/06/2022,2206-00150,0.00,1299.50,R,A1 STAIR LIFT SERVICES,No
Http://opendatacommunities.org/id/metropolitan-district-council/leeds,Leeds City Council,30/06/2022,Resources,Leeds Building Services,Supplies and Services,Operational Materials,205,13/06/2022,2206-00151,0.00,22.00,R,A1 STAIR LIFT SERVICES,No
Http://opendatacommunities.org/id/metropolitan-district-council/leeds,Leeds City Council,30/06/2022,Resources,Leeds Building Services,Supplies and Services,Other Hired And Contracted Services,265,24/06/2022,2206-00152,0.00,1107.00,R,A1 STAIR LIFT SERVICES,No
Http://opendatacommunities.org/id/metropolitan-district-council/leeds,Leeds City Council,30/06/2022,Communities Housing and Environment,Customer Access,Supplies and Services,Bought In Professional Services,277,29/06/2022,2206-00153,0.00,1455.00,R,AA Global Language Services Ltd,No
Http://opendatacommunities.org/id/metropolitan-district-council/leeds,Leeds City Council,30/06/2022,Children and Families,Social Care,Supplies and Services,Subsistence,256,26/05/2022,2206-00154,0.00,43.12,R,Aagrah Restaurants,Yes
Http://opendatacommunities.org/id/metropolitan-district-council/leeds,Leeds City Council,30/06/2022,Communities Housing and Environment,Communities,Supplies and Services,Non-Recurring Grants,227,30/06/2022,2206-00155,0.00,6517.37,R,Aalfy Ltd,No
Http://opendatacommunities.org/id/metropolitan-district-council/leeds,Leeds City Council,30/06/2022,Adults and Health,Services For Older People - 65 And Over,Agency Payments,Residential Care Dementia,571,22/06/2022,2206-00156,0.00,1251.24,R,Aaron Court Care Home,No
Http://opendatacommunities.org/id/metropolitan-district-council/leeds,Leeds City Council as Accountable Body,30/06/2022,Social Services Pooled Budgets,Jcs For People With Learning Disabilitie,Supplies and Services,Other Equipment,203,15/06/2022,2206-00157,0.00,1369.00,R,AAT (GB) LTD,No
Http://opendatacommunities.org/id/metropolitan-district-council/leeds,Leeds City Council,30/06/2022,Communities Housing and Environment,Car Parking Services,Supplies and Services,Postages,212,19/05/2022,2206-00158,0.00,17.50,R,Abacus Express,Yes
Http://opendatacommunities.org/id/metropolitan-district-council/leeds,Leeds City Council,30/06/2022,Communities Housing and Environment,Elections Licensing and Registration,External Income,Admissions Booking Fees & Ticket Sales,933,30/06/2022,2206-00159,0.00,135.00,R,REDACTED PERSONAL DATA,No
Http://opendatacommunities.org/id/metropolitan-district-council/leeds,Leeds City Council as Accountable Body,30/06/2022,Social Services Pooled Budgets,Jcs For People With Learning Disabilitie,Agency Payments,Residential,580,22/06/2022,2206-00160,0.00,11720.20,R,Abbey Care And Education,No
Http://opendatacommunities.org/id/metropolitan-district-council/leeds,Leeds City Council,30/06/2022,Adults and Health,Social Services Support Services,Employees,Training & Development,70,09/06/2022,2206-00161,0.00,12500.00,R,Abbeyfield The Dales Limited,No
Http://opendatacommunities.org/id/metropolitan-district-council/leeds,Leeds City Council,30/06/2022,Children and Families,Social Care,Agency Payments,Services Rendered By Other Organisations,511,01/06/2022,2206-00162,0.00,699.07,R,REDACTED PERSONAL DATA,No
Http://opendatacommunities.org/id/metropolitan-district-council/leeds,Leeds City Council,30/06/2022,Children and Families,Social Care,Agency Payments,Services Rendered By Other Organisations,511,01/06/2022,2206-00163,0.00,271.54,R,REDACTED PERSONAL DATA,No
Http://opendatacommunities.org/id/metropolitan-district-council/leeds,Leeds City Council,30/06/2022,Children and Families,Social Care,Internal Recharges,Legal Disbursements,411,29/06/2022,2206-00164,0.00,95.00,R,Abbott Toxicology Ltd.,No
Http://opendatacommunities.org/id/metropolitan-district-council/leeds,Leeds City Council,30/06/2022,Communities Housing and Environment,Parks and Countryside,Supplies and Services,Other Hired And Contracted Services,265,10/06/2022,2206-00165,0.00,3950.00,R,Abbotts Memorials,No
Http://opendatacommunities.org/id/metropolitan-district-council/leeds,Leeds City Council,30/06/2022,Communities Housing and Environment,Parks and Countryside,Supplies and Services,Other Hired And Contracted Services,265,10/06/2022,2206-00166,0.00,600.00,R,Abbotts Memorials,No
Http://opendatacommunities.org/id/metropolitan-district-council/leeds,Leeds City Council,30/06/2022,Communities Housing and Environment,Parks and Countryside,Supplies and Services,Other Hired And Contracted Services,265,16/06/2022,2206-00167,0.00,1800.00,R,Abbotts Memorials,No
Http://opendatacommunities.org/id/metropolitan-district-council/leeds,Leeds City Council,30/06/2022,Communities Housing and Environment,Parks and Countryside,Supplies and Services,Other Hired And Contracted Services,265,24/06/2022,2206-00168,0.00,2500.00,R,Abbotts Memorials,No
Http://opendatacommunities.org/id/metropolitan-district-council/leeds,Leeds City Council,30/06/2022,Communities Housing and Environment,Parks and Countryside,Supplies and Services,Other Hired And Contracted Services,265,24/06/2022,2206-00169,0.00,600.00,R,Abbotts Memorials,No
Http://opendatacommunities.org/id/metropolitan-district-council/leeds,Leeds City Council,30/06/2022,Children and Families,Social Care,Agency Payments,General External Residential Placements,507,07/06/2022,2206-00170,0.00,15783.57,R,ABC Care and Educationd LTD,No
Http://opendatacommunities.org/id/metropolitan-district-council/leeds,Leeds City Council,30/06/2022,Children and Families,Social Care,Agency Payments,General External Residential Placements,507,13/06/2022,2206-00171,0.00,15428.70,R,ABC Care and Educationd LTD,No
Http://opendatacommunities.org/id/metropolitan-district-council/leeds,Leeds City Council,30/06/2022,Children and Families,Social Care,Agency Payments,Services Rendered By Other Organisations,511,01/06/2022,2206-00172,0.00,9507.42,R,ABC NURSERY AT LUFC,No
Http://opendatacommunities.org/id/metropolitan-district-council/leeds,Leeds City Council,30/06/2022,Children and Families,Social Care,Agency Payments,Services Rendered By Other Organisations,511,01/06/2022,2206-00173,0.00,3475.68,R,ABC NURSERY AT LUFC,No
Http://opendatacommunities.org/id/metropolitan-district-council/leeds,Leeds City Council,30/06/2022,Children and Families,Social Care,Agency Payments,Services Rendered By Other Organisations,511,01/06/2022,2206-00174,0.00,8202.48,R,Abc@D'S Childcare,No
Http://opendatacommunities.org/id/metropolitan-district-council/leeds,Leeds City Council,30/06/2022,Children and Families,Social Care,Agency Payments,Services Rendered By Other Organisations,511,01/06/2022,2206-00175,0.00,1303.38,R,Abc@D'S Childcare,No
Http://opendatacommunities.org/id/metropolitan-district-council/leeds,Leeds City Council,30/06/2022,Communities Housing and Environment,Customer Access,Supplies and Services,Bought In Professional Services,277,01/06/2022,2206-00176,0.00,18.00,R,Abdiqafar Abdullahi,No
Http://opendatacommunities.org/id/metropolitan-district-council/leeds,Leeds City Council,30/06/2022,Communities Housing and Environment,Customer Access,Supplies and Services,Bought In Professional Services,277,09/06/2022,2206-00177,0.00,13.50,R,Abdiqafar Abdullahi,No
Http://opendatacommunities.org/id/metropolitan-district-council/leeds,Leeds City Council,30/06/2022,Communities Housing and Environment,Customer Access,Supplies and Services,Bought In Professional Services,277,22/06/2022,2206-00178,0.00,13.50,R,Abdiqafar Abdullahi,No
Http://opendatacommunities.org/id/metropolitan-district-council/leeds,Leeds City Council,30/06/2022,Communities Housing and Environment,Customer Access,Supplies and Services,Bought In Professional Services,277,29/06/2022,2206-00179,0.00,13.50,R,Abdiqafar Abdullahi,No
Http://opendatacommunities.org/id/metropolitan-district-council/leeds,Leeds City Council,30/06/2022,Communities Housing and Environment,Customer Access,Supplies and Services,Bought In Professional Services,277,29/06/2022,2206-00180,0.00,18.00,R,Abdiqafar Abdullahi,No
Http://opendatacommunities.org/id/metropolitan-district-council/leeds,Leeds City Council,30/06/2022,Communities Housing and Environment,Customer Access,Supplies and Services,Bought In Professional Services,277,29/06/2022,2206-00181,0.00,16.50,R,Abdiqafar Abdullahi,No
Http://opendatacommunities.org/id/metropolitan-district-council/leeds,Leeds City Council,30/06/2022,Communities Housing and Environment,Customer Access,Supplies and Services,Bought In Professional Services,277,01/06/2022,2206-00182,0.00,13.50,R,Abdulahad Denha,No
Http://opendatacommunities.org/id/metropolitan-district-council/leeds,Leeds City Council,30/06/2022,Communities Housing and Environment,Customer Access,Supplies and Services,Bought In Professional Services,277,01/06/2022,2206-00183,0.00,18.00,R,Abdulahad Denha,No
Http://opendatacommunities.org/id/metropolitan-district-council/leeds,Leeds City Council,30/06/2022,Communities Housing and Environment,Customer Access,Supplies and Services,Bought In Professional Services,277,01/06/2022,2206-00184,0.00,18.00,R,Abdulahad Denha,No
Http://opendatacommunities.org/id/metropolitan-district-council/leeds,Leeds City Council,30/06/2022,Communities Housing and Environment,Customer Access,Supplies and Services,Bought In Professional Services,277,09/06/2022,2206-00185,0.00,18.00,R,Abdulahad Denha,No
Http://opendatacommunities.org/id/metropolitan-district-council/leeds,Leeds City Council,30/06/2022,Communities Housing and Environment,Customer Access,Supplies and Services,Bought In Professional Services,277,09/06/2022,2206-00186,0.00,18.00,R,Abdulahad Denha,No
Http://opendatacommunities.org/id/metropolitan-district-council/leeds,Leeds City Council,30/06/2022,Communities Housing and Environment,Customer Access,Supplies and Services,Bought In Professional Services,277,22/06/2022,2206-00187,0.00,27.00,R,Abdulahad Denha,No
Http://opendatacommunities.org/id/metropolitan-district-council/leeds,Leeds City Council,30/06/2022,Communities Housing and Environment,Customer Access,Supplies and Services,Bought In Professional Services,277,22/06/2022,2206-00188,0.00,13.50,R,Abdulahad Denha,No
Http://opendatacommunities.org/id/metropolitan-district-council/leeds,Leeds City Council,30/06/2022,Communities Housing and Environment,Customer Access,Supplies and Services,Bought In Professional Services,277,29/06/2022,2206-00189,0.00,27.00,R,Abdulahad Denha,No
Http://opendatacommunities.org/id/metropolitan-district-council/leeds,Leeds City Council,30/06/2022,Communities Housing and Environment,Customer Access,Supplies and Services,Bought In Professional Services,277,29/06/2022,2206-00190,0.00,18.00,R,Abdulahad Denha,No
Http://opendatacommunities.org/id/metropolitan-district-council/leeds,Leeds City Council,30/06/2022,Communities Housing and Environment,Customer Access,Supplies and Services,Bought In Professional Services,277,29/06/2022,2206-00191,0.00,18.00,R,Abdulahad Denha,No
Http://opendatacommunities.org/id/metropolitan-district-council/leeds,Leeds City Council,30/06/2022,Communities Housing and Environment,Customer Access,Supplies and Services,Bought In Professional Services,277,29/06/2022,2206-00192,0.00,18.00,R,Abdulahad Denha,No
Http://opendatacommunities.org/id/metropolitan-district-council/leeds,Leeds City Council,30/06/2022,Communities Housing and Environment,Customer Access,Supplies and Services,Bought In Professional Services,277,01/06/2022,2206-00193,0.00,9.00,R,Abdulrahim Dastyar,No
Http://opendatacommunities.org/id/metropolitan-district-council/leeds,Leeds City Council,30/06/2022,Communities Housing and Environment,Customer Access,Supplies and Services,Bought In Professional Services,277,09/06/2022,2206-00194,0.00,27.00,R,Abdulrahim Dastyar,No
Http://opendatacommunities.org/id/metropolitan-district-council/leeds,Leeds City Council,30/06/2022,Communities Housing and Environment,Customer Access,Supplies and Services,Bought In Professional Services,277,09/06/2022,2206-00195,0.00,18.00,R,Abdulrahim Dastyar,No
Http://opendatacommunities.org/id/metropolitan-district-council/leeds,Leeds City Council,30/06/2022,Children and Families,Social Care,Agency Payments,Placement Support,550,01/06/2022,2206-00196,0.00,210.00,R,Aberford Childcare Services,No
Http://opendatacommunities.org/id/metropolitan-district-council/leeds,Leeds City Council,30/06/2022,Children and Families,Social Care,Agency Payments,Placement Support,550,06/06/2022,2206-00197,0.00,150.00,R,Aberford Childcare Services,No
Http://opendatacommunities.org/id/metropolitan-district-council/leeds,Leeds City Council,30/06/2022,Adults and Health,Services For Older People - 65 And Over,Agency Payments,Nursing Home,570,22/06/2022,2206-00198,0.00,34853.64,R,Aberford Hall,No
Http://opendatacommunities.org/id/metropolitan-district-council/leeds,Leeds City Council,30/06/2022,Adults and Health,Services For Older People - 65 And Over,Agency Payments,Nursing Care Dementia,574,22/06/2022,2206-00199,0.00,9238.86,R,Aberford Hall,No
Http://opendatacommunities.org/id/metropolitan-district-council/leeds,Leeds City Council,30/06/2022,Adults and Health,Services For Older People Under 65 P/Dis,Agency Payments,Nursing Home,570,22/06/2022,2206-00200,0.00,6041.04,R,Aberford Hall,No
Http://opendatacommunities.org/id/metropolitan-district-council/leeds,Leeds City Council,30/06/2022,Children and Families,Learning,Internal Recharges,Internal Charges From Childrens Services,492,08/06/2022,2206-00201,0.00,920.00,R,Aberford Village Hall,No
Http://opendatacommunities.org/id/metropolitan-district-council/leeds,Leeds City Council,30/06/2022,Resources,Leeds Building Services,Supplies and Services,Operational Materials,205,09/06/2022,2206-00202,0.00,362.98,R,ABI GARAGE DOORS LTD,No
Http://opendatacommunities.org/id/metropolitan-district-council/leeds,Leeds City Council,30/06/2022,Resources,Leeds Building Services,Supplies and Services,Operational Materials,205,17/06/2022,2206-00203,0.00,1810.75,R,ABI GARAGE DOORS LTD,No
Http://opendatacommunities.org/id/metropolitan-district-council/leeds,Leeds City Council,30/06/2022,Resources,Leeds Building Services,Supplies and Services,Operational Materials,205,17/06/2022,2206-00204,0.00,362.15,R,ABI GARAGE DOORS LTD,No
Http://opendatacommunities.org/id/metropolitan-district-council/leeds,Leeds City Council,30/06/2022,Resources,Leeds Building Services,Supplies and Services,Operational Materials,205,17/06/2022,2206-00205,0.00,404.65,R,ABI GARAGE DOORS LTD,No
Http://opendatacommunities.org/id/metropolitan-district-council/leeds,Leeds City Council,30/06/2022,Resources,Leeds Building Services,Supplies and Services,Operational Materials,205,23/06/2022,2206-00206,0.00,17.50,R,ABI GARAGE DOORS LTD,No
Http://opendatacommunities.org/id/metropolitan-district-council/leeds,Leeds City Council,30/06/2022,Children and Families,Social Care,Appropriations,Leaving Care Allowances,634,01/06/2022,2206-00207,0.00,40.00,R,REDACTED PERSONAL DATA,No
Http://opendatacommunities.org/id/metropolitan-district-council/leeds,Leeds City Council,30/06/2022,City Development,Recreation,External Income,Swimming Bath Charges,923,30/06/2022,2206-00208,0.00,23.00,R,REDACTED PERSONAL DATA,No
Http://opendatacommunities.org/id/metropolitan-district-council/leeds,Leeds City Council,30/06/2022,Strategic Landlord,Housing Management,Supplies and Services,Compensation Claims,200,22/06/2022,2206-00209,0.00,900.00,R,REDACTED PERSONAL DATA,No
Http://opendatacommunities.org/id/metropolitan-district-council/leeds,Leeds City Council,30/06/2022,Children and Families,Social Care,Agency Payments,Placement Support,550,06/06/2022,2206-00210,0.00,20.00,R,REDACTED PERSONAL DATA,No
Http://opendatacommunities.org/id/metropolitan-district-council/leeds,Leeds City Council,30/06/2022,Children and Families,Social Care,Appropriations,Leaving Care Allowances,634,15/06/2022,2206-00211,0.00,26.99,R,REDACTED PERSONAL DATA,No
Http://opendatacommunities.org/id/metropolitan-district-council/leeds,Leeds City Council,30/06/2022,Children and Families,Social Care,Agency Payments,Contact,548,24/06/2022,2206-00212,0.00,10.50,R,REDACTED PERSONAL DATA,No
Http://opendatacommunities.org/id/metropolitan-district-council/leeds,Leeds City Council,30/06/2022,Strategic Landlord,HRA Housing Leeds,Capital,OTHER COSTS,7,20/06/2022,2206-00213,0.00,40.00,C,REDACTED PERSONAL DATA,No
Http://opendatacommunities.org/id/metropolitan-district-council/leeds,Leeds City Council,30/06/2022,Children and Families,Social Care,Agency Payments,General External Residential Placements,507,01/06/2022,2206-00214,0.00,17121.30,R,Absolute Children's Services Ltd,No
Http://opendatacommunities.org/id/metropolitan-district-council/leeds,Leeds City Council,30/06/2022,Children and Families,Social Care,Agency Payments,General External Residential Placements,507,29/06/2022,2206-00215,0.00,17692.01,R,Absolute Children's Services Ltd,No
Http://opendatacommunities.org/id/metropolitan-district-council/leeds,Leeds City Council,30/06/2022,Strategic Landlord,Property and Contracts,Premises,General Maintenance,104,01/06/2022,2206-00216,0.00,1404.00,R,ACCESS LOCKSMITHS (LEEDS) LIMITED,No
Http://opendatacommunities.org/id/metropolitan-district-council/leeds,Leeds City Council,30/06/2022,Resources,Leeds Building Services,Supplies and Services,Operational Materials,205,08/06/2022,2206-00217,0.00,684.28,R,ACCESS LOCKSMITHS (LEEDS) LIMITED,No
Http://opendatacommunities.org/id/metropolitan-district-council/leeds,Leeds City Council,30/06/2022,Resources,Leeds Building Services,Supplies and Services,Operational Materials,205,08/06/2022,2206-00218,0.00,328.72,R,ACCESS LOCKSMITHS (LEEDS) LIMITED,No
Http://opendatacommunities.org/id/metropolitan-district-council/leeds,Leeds City Council,30/06/2022,Resources,Leeds Building Services,Supplies and Services,Operational Materials,205,08/06/2022,2206-00219,0.00,20.80,R,ACCESS LOCKSMITHS (LEEDS) LIMITED,No
Http://opendatacommunities.org/id/metropolitan-district-council/leeds,Leeds City Council,30/06/2022,Resources,Leeds Building Services,Supplies and Services,Operational Materials,205,08/06/2022,2206-00220,0.00,25.96,R,ACCESS LOCKSMITHS (LEEDS) LIMITED,No
Http://opendatacommunities.org/id/metropolitan-district-council/leeds,Leeds City Council,30/06/2022,Resources,Leeds Building Services,Supplies and Services,Operational Materials,205,08/06/2022,2206-00221,0.00,24.00,R,ACCESS LOCKSMITHS (LEEDS) LIMITED,No
Http://opendatacommunities.org/id/metropolitan-district-council/leeds,Leeds City Council,30/06/2022,Resources,Leeds Building Services,Supplies and Services,Operational Materials,205,08/06/2022,2206-00222,0.00,141.50,R,ACCESS LOCKSMITHS (LEEDS) LIMITED,No
Http://opendatacommunities.org/id/metropolitan-district-council/leeds,Leeds City Council,30/06/2022,Strategic Landlord,Property and Contracts,Premises,General Maintenance,104,23/06/2022,2206-00223,0.00,206.40,R,ACCESS LOCKSMITHS (LEEDS) LIMITED,No
Http://opendatacommunities.org/id/metropolitan-district-council/leeds,Leeds City Council,30/06/2022,Strategic Landlord,Housing Management,Premises,Finance lease accounting adjustment,140,23/06/2022,2206-00224,0.00,39.68,R,ACCESS LOCKSMITHS (LEEDS) LIMITED,No
Http://opendatacommunities.org/id/metropolitan-district-council/leeds,Leeds City Council,30/06/2022,Strategic Landlord,Housing Management,Supplies and Services,Resaleable Materials,204,23/06/2022,2206-00225,0.00,62.00,R,ACCESS LOCKSMITHS (LEEDS) LIMITED,No
Http://opendatacommunities.org/id/metropolitan-district-council/leeds,Leeds City Council,30/06/2022,Resources,Leeds Building Services,Supplies and Services,Operational Materials,205,23/06/2022,2206-00226,0.00,17.00,R,ACCESS LOCKSMITHS (LEEDS) LIMITED,No
Http://opendatacommunities.org/id/metropolitan-district-council/leeds,Leeds City Council,30/06/2022,Resources,Leeds Building Services,Supplies and Services,Operational Materials,205,23/06/2022,2206-00227,0.00,13.90,R,ACCESS LOCKSMITHS (LEEDS) LIMITED,No
Http://opendatacommunities.org/id/metropolitan-district-council/leeds,Leeds City Council,30/06/2022,Resources,Leeds Building Services,Supplies and Services,Operational Materials,205,23/06/2022,2206-00228,0.00,16.47,R,ACCESS LOCKSMITHS (LEEDS) LIMITED,No
Http://opendatacommunities.org/id/metropolitan-district-council/leeds,Leeds City Council,30/06/2022,Resources,Leeds Building Services,Supplies and Services,Operational Materials,205,23/06/2022,2206-00229,0.00,171.04,R,ACCESS LOCKSMITHS (LEEDS) LIMITED,No
Http://opendatacommunities.org/id/metropolitan-district-council/leeds,Leeds City Council,30/06/2022,Resources,Leeds Building Services,Supplies and Services,Operational Materials,205,23/06/2022,2206-00230,0.00,37.40,R,ACCESS LOCKSMITHS (LEEDS) LIMITED,No
Http://opendatacommunities.org/id/metropolitan-district-council/leeds,Leeds City Council,30/06/2022,Resources,Leeds Building Services,Supplies and Services,Operational Materials,205,23/06/2022,2206-00231,0.00,42.62,R,ACCESS LOCKSMITHS (LEEDS) LIMITED,No
Http://opendatacommunities.org/id/metropolitan-district-council/leeds,Leeds City Council,30/06/2022,Resources,Leeds Building Services,Supplies and Services,Operational Materials,205,23/06/2022,2206-00232,0.00,42.38,R,ACCESS LOCKSMITHS (LEEDS) LIMITED,No
Http://opendatacommunities.org/id/metropolitan-district-council/leeds,Leeds City Council,30/06/2022,Resources,Leeds Building Services,Supplies and Services,Operational Materials,205,23/06/2022,2206-00233,0.00,74.40,R,ACCESS LOCKSMITHS (LEEDS) LIMITED,No
Http://opendatacommunities.org/id/metropolitan-district-council/leeds,Leeds City Council,30/06/2022,Resources,Leeds Building Services,Supplies and Services,Operational Materials,205,23/06/2022,2206-00234,0.00,55.58,R,ACCESS LOCKSMITHS (LEEDS) LIMITED,No
Http://opendatacommunities.org/id/metropolitan-district-council/leeds,Leeds City Council,30/06/2022,Strategic Landlord,Housing Management,Premises,General Maintenance,104,28/06/2022,2206-00235,0.00,124.00,R,ACCESS LOCKSMITHS (LEEDS) LIMITED,No
Http://opendatacommunities.org/id/metropolitan-district-council/leeds,Leeds City Council,30/06/2022,Strategic Landlord,Property and Contracts,Premises,General Maintenance,104,30/06/2022,2206-00236,0.00,77.00,R,ACCESS LOCKSMITHS (LEEDS) LIMITED,No
Http://opendatacommunities.org/id/metropolitan-district-council/leeds,Leeds City Council,30/06/2022,City Development,Libraries Arts & Heritage,Supplies and Services,Bought In Professional Services,277,10/06/2022,2206-00237,0.00,2800.00,R,Accessible By Design Ltd,No
Http://opendatacommunities.org/id/metropolitan-district-council/leeds,Leeds City Council,30/06/2022,City Development,Libraries Arts & Heritage,Supplies and Services,Bought In Professional Services,277,17/06/2022,2206-00238,0.00,3500.00,R,Accessible By Design Ltd,No
Http://opendatacommunities.org/id/metropolitan-district-council/leeds,Leeds City Council,30/06/2022,Insurance,Insurance,Supplies and Services,Insurance Claims,248,13/06/2022,2206-00239,0.00,8735.77,R,Accident Exchange Ltd,No
Http://opendatacommunities.org/id/metropolitan-district-council/leeds,Leeds City Council,30/06/2022,City Development,Recreation,Transport,External Hire -Occasional,304,01/06/2022,2206-00240,0.00,128.65,R,ACE CONTAINER SERVICES LIMITED,No
Http://opendatacommunities.org/id/metropolitan-district-council/leeds,Leeds City Council,30/06/2022,Resources,Commercial Services,Transport,Private Hire,360,10/06/2022,2206-00241,0.00,1840.00,R,Acorn Care & Education Ltd (Sales),No
Http://opendatacommunities.org/id/metropolitan-district-council/leeds,Leeds City Council,30/06/2022,Resources,Commercial Services,Transport,Private Hire,360,10/06/2022,2206-00242,0.00,800.00,R,Acorn Care & Education Ltd (Sales),No
Http://opendatacommunities.org/id/metropolitan-district-council/leeds,Leeds City Council,30/06/2022,Children and Families,Learning,Agency Payments,SEN Placements,566,22/06/2022,2206-00243,0.00,59686.54,R,Acorn Care & Education Ltd (Sales),No
Http://opendatacommunities.org/id/metropolitan-district-council/leeds,Leeds City Council,30/06/2022,Children and Families,Learning,Agency Payments,SEN Placements,566,22/06/2022,2206-00244,0.00,58708.07,R,Acorn Care & Education Ltd (Sales),No
Http://opendatacommunities.org/id/metropolitan-district-council/leeds,Leeds City Council,30/06/2022,Children and Families,Learning,Agency Payments,SEN Placements,566,24/06/2022,2206-00245,0.00,60175.77,R,Acorn Care & Education Ltd (Sales),No
Http://opendatacommunities.org/id/metropolitan-district-council/leeds,Leeds City Council,30/06/2022,Children and Families,Social Care,Agency Payments,General External Residential Placements,507,24/06/2022,2206-00246,0.00,20904.20,R,Acorn Care & Education Ltd (Sales),No
Http://opendatacommunities.org/id/metropolitan-district-council/leeds,Leeds City Council,30/06/2022,Children and Families,Social Care,Agency Payments,General External Residential Placements,507,24/06/2022,2206-00247,0.00,24744.48,R,Acorn Care & Education Ltd (Sales),No
Http://opendatacommunities.org/id/metropolitan-district-council/leeds,Leeds City Council,30/06/2022,Children and Families,Social Care,Agency Payments,General External Residential Placements,507,24/06/2022,2206-00248,0.00,17249.29,R,Acorn Care & Education Ltd (Sales),No
Http://opendatacommunities.org/id/metropolitan-district-council/leeds,Leeds City Council,30/06/2022,Children and Families,Social Care,Agency Payments,General External Residential Placements,507,24/06/2022,2206-00249,0.00,17249.29,R,Acorn Care & Education Ltd (Sales),No
Http://opendatacommunities.org/id/metropolitan-district-council/leeds,Leeds City Council,30/06/2022,Children and Families,Social Care,Agency Payments,General External Residential Placements,507,24/06/2022,2206-00250,0.00,17680.58,R,Acorn Care & Education Ltd (Sales),No
Http://opendatacommunities.org/id/metropolitan-district-council/leeds,Leeds City Council,30/06/2022,Children and Families,Social Care,Agency Payments,General External Residential Placements,507,30/06/2022,2206-00251,0.00,20229.87,R,Acorn Care & Education Ltd (Sales),No
Http://opendatacommunities.org/id/metropolitan-district-council/leeds,Leeds City Council,30/06/2022,Children and Families,Social Care,Agency Payments,General External Residential Placements,507,30/06/2022,2206-00252,0.00,16692.86,R,Acorn Care & Education Ltd (Sales),No
Http://opendatacommunities.org/id/metropolitan-district-council/leeds,Leeds City Council,30/06/2022,Children and Families,Social Care,Agency Payments,General External Residential Placements,507,30/06/2022,2206-00253,0.00,16692.86,R,Acorn Care & Education Ltd (Sales),No
Http://opendatacommunities.org/id/metropolitan-district-council/leeds,Leeds City Council,30/06/2022,Children and Families,Social Care,Agency Payments,General External Residential Placements,507,30/06/2022,2206-00254,0.00,17110.24,R,Acorn Care & Education Ltd (Sales),No
Http://opendatacommunities.org/id/metropolitan-district-council/leeds,Leeds City Council,30/06/2022,Adults and Health,Other Adult Services,Agency Payments,Residential - Drugs & Alcohol,583,01/06/2022,2206-00255,0.00,2357.14,R,Acorn Recovery Projects,No
Http://opendatacommunities.org/id/metropolitan-district-council/leeds,Leeds City Council,30/06/2022,Children and Families,Social Care,Agency Payments,Services Rendered By Other Organisations,511,01/06/2022,2206-00256,0.00,7571.52,R,ACORNS NURSERY,No
Http://opendatacommunities.org/id/metropolitan-district-council/leeds,Leeds City Council,30/06/2022,Children and Families,Social Care,Agency Payments,Services Rendered By Other Organisations,511,01/06/2022,2206-00257,0.00,401.04,R,ACORNS NURSERY,No
Http://opendatacommunities.org/id/metropolitan-district-council/leeds,Leeds City Council,30/06/2022,Adults and Health,Services For Older People - 65 And Over,Agency Payments,Nursing Home,570,22/06/2022,2206-00258,0.00,27201.56,R,Acre Green,No
Http://opendatacommunities.org/id/metropolitan-district-council/leeds,Leeds City Council,30/06/2022,Adults and Health,Services For Older People - 65 And Over,Agency Payments,Residential,580,22/06/2022,2206-00259,0.00,4180.20,R,Acre Green,No
Http://opendatacommunities.org/id/metropolitan-district-council/leeds,Leeds City Council,30/06/2022,Adults and Health,Services For Older People Under 65 P/Dis,Agency Payments,Nursing Home,570,22/06/2022,2206-00260,0.00,2197.20,R,Acre Green,No
Http://opendatacommunities.org/id/metropolitan-district-council/leeds,Leeds City Council,30/06/2022,Adults and Health,Services For Older People Under 65 P/Dis,Agency Payments,Residential,580,22/06/2022,2206-00261,0.00,1892.20,R,Acre Green,No
Http://opendatacommunities.org/id/metropolitan-district-council/leeds,Leeds City Council,30/06/2022,Children and Families,Social Care,Agency Payments,Services Rendered By Other Organisations,511,01/06/2022,2206-00262,0.00,10625.94,R,Acre Wood Day Nursery,No
Http://opendatacommunities.org/id/metropolitan-district-council/leeds,Leeds City Council,30/06/2022,Children and Families,Social Care,Agency Payments,Services Rendered By Other Organisations,511,01/06/2022,2206-00263,0.00,1955.07,R,Acre Wood Day Nursery,No
Http://opendatacommunities.org/id/metropolitan-district-council/leeds,Leeds City Council,30/06/2022,Resources,Technology,Supplies and Services,Computer Software & Equipment,214,17/05/2022,2206-00264,0.00,1724.57,R,Acs Business Supplies Lt,Yes
Http://opendatacommunities.org/id/metropolitan-district-council/leeds,Leeds City Council,30/06/2022,Children and Families,Learning,Supplies and Services,Bought In Professional Services,277,23/06/2022,2206-00265,0.00,5988.18,R,Act Fast NL Ltd,No
Http://opendatacommunities.org/id/metropolitan-district-council/leeds,Leeds City Council,30/06/2022,Children and Families,Learning,Supplies and Services,Bought In Professional Services,277,23/06/2022,2206-00266,0.00,1905.33,R,Act Fast NL Ltd,No
Http://opendatacommunities.org/id/metropolitan-district-council/leeds,Leeds City Council,30/06/2022,Adults and Health,Services For Adults Under 65 Mental/Dis,Agency Payments,Home Care,568,01/06/2022,2206-00267,0.00,720.00,R,Action First Assessments Ltd,No
Http://opendatacommunities.org/id/metropolitan-district-council/leeds,Leeds City Council,30/06/2022,Adults and Health,Services For Adults Under 65 Mental/Dis,Agency Payments,Home Care,568,01/06/2022,2206-00268,0.00,720.00,R,Action First Assessments Ltd,No
Http://opendatacommunities.org/id/metropolitan-district-council/leeds,Leeds City Council,30/06/2022,Adults and Health,Services For Adults Under 65 Mental/Dis,Agency Payments,Home Care,568,01/06/2022,2206-00269,0.00,1080.00,R,Action First Assessments Ltd,No
Http://opendatacommunities.org/id/metropolitan-district-council/leeds,Leeds City Council,30/06/2022,Adults and Health,Services For Adults Under 65 Mental/Dis,Agency Payments,Home Care,568,01/06/2022,2206-00270,0.00,2520.00,R,Action First Assessments Ltd,No
Http://opendatacommunities.org/id/metropolitan-district-council/leeds,Leeds City Council,30/06/2022,Adults and Health,Services For Adults Under 65 Mental/Dis,Agency Payments,Home Care,568,01/06/2022,2206-00271,0.00,1440.00,R,Action First Assessments Ltd,No
Http://opendatacommunities.org/id/metropolitan-district-council/leeds,Leeds City Council,30/06/2022,Adults and Health,Services For Adults Under 65 Mental/Dis,Agency Payments,Home Care,568,01/06/2022,2206-00272,0.00,250.00,R,Action First Assessments Ltd,No
Http://opendatacommunities.org/id/metropolitan-district-council/leeds,Leeds City Council,30/06/2022,Adults and Health,Services For Adults Under 65 Mental/Dis,Agency Payments,Home Care,568,01/06/2022,2206-00273,0.00,250.00,R,Action First Assessments Ltd,No
Http://opendatacommunities.org/id/metropolitan-district-council/leeds,Leeds City Council,30/06/2022,Adults and Health,Services For Adults Under 65 Mental/Dis,Agency Payments,Home Care,568,01/06/2022,2206-00274,0.00,3500.00,R,Action First Assessments Ltd,No
Http://opendatacommunities.org/id/metropolitan-district-council/leeds,Leeds City Council,30/06/2022,Adults and Health,Services For Adults Under 65 Mental/Dis,Agency Payments,Home Care,568,01/06/2022,2206-00275,0.00,175.00,R,Action First Assessments Ltd,No
Http://opendatacommunities.org/id/metropolitan-district-council/leeds,Leeds City Council,30/06/2022,Adults and Health,Services For Adults Under 65 Mental/Dis,Agency Payments,Home Care,568,01/06/2022,2206-00276,0.00,360.00,R,Action First Assessments Ltd,No
Http://opendatacommunities.org/id/metropolitan-district-council/leeds,Leeds City Council,30/06/2022,Adults and Health,Services For Adults Under 65 Mental/Dis,Agency Payments,Home Care,568,01/06/2022,2206-00277,0.00,360.00,R,Action First Assessments Ltd,No
Http://opendatacommunities.org/id/metropolitan-district-council/leeds,Leeds City Council,30/06/2022,Adults and Health,Services For Adults Under 65 Mental/Dis,Agency Payments,Home Care,568,01/06/2022,2206-00278,0.00,360.00,R,Action First Assessments Ltd,No
Http://opendatacommunities.org/id/metropolitan-district-council/leeds,Leeds City Council as Accountable Body,30/06/2022,Social Services Pooled Budgets,Jcs For People With Learning Disabilitie,Agency Payments,Residential,580,22/06/2022,2206-00279,0.00,10702.60,R,Action For Care Contracts Limited,No
Http://opendatacommunities.org/id/metropolitan-district-council/leeds,Leeds City Council,30/06/2022,Children and Families,Social Care,Agency Payments,Services Rendered By Other Organisations,511,01/06/2022,2206-00280,0.00,7705.36,R,ACTIVE KIDS YEADON LLP,No
Http://opendatacommunities.org/id/metropolitan-district-council/leeds,Leeds City Council,30/06/2022,Children and Families,Social Care,Agency Payments,Services Rendered By Other Organisations,511,01/06/2022,2206-00281,0.00,651.69,R,ACTIVE KIDS YEADON LLP,No
Http://opendatacommunities.org/id/metropolitan-district-council/leeds,Leeds City Council,30/06/2022,Children and Families,Social Care,Supplies and Services,Other Hired And Contracted Services,265,06/05/2022,2206-00282,0.00,4.00,R,Active Leeds,Yes
Http://opendatacommunities.org/id/metropolitan-district-council/leeds,Leeds City Council,30/06/2022,Communities Housing and Environment,Strategic Housing Partnership & Support,Supplies and Services,Other Hired And Contracted Services,265,11/05/2022,2206-00283,0.00,249.50,R,Active Leeds,Yes
Http://opendatacommunities.org/id/metropolitan-district-council/leeds,Leeds City Council,30/06/2022,Adults and Health,Services For Adults Under 65 Mental/Dis,Agency Payments,Sheltered Accommodation,569,22/06/2022,2206-00284,0.00,14943.04,R,Active Pathways,No
Http://opendatacommunities.org/id/metropolitan-district-council/leeds,Leeds City Council,30/06/2022,Adults and Health,Services For Older People - 65 And Over,Agency Payments,Sheltered Accommodation,569,22/06/2022,2206-00285,0.00,4154.84,R,Active Pathways,No
Http://opendatacommunities.org/id/metropolitan-district-council/leeds,Leeds City Council as Accountable Body,30/06/2022,Social Services Pooled Budgets,Jcs For People With Learning Disabilitie,Agency Payments,Sheltered Accommodation,569,22/06/2022,2206-00286,0.00,12452.52,R,Active Pathways,No
Http://opendatacommunities.org/id/metropolitan-district-council/leeds,Leeds City Council,30/06/2022,Communities Housing and Environment,Waste Management,Supplies and Services,Recycling & Reuse Charges,234,01/06/2022,2206-00287,0.00,116.60,R,Acumen Waste Services Ltd,No
Http://opendatacommunities.org/id/metropolitan-district-council/leeds,Leeds City Council,30/06/2022,Communities Housing and Environment,Waste Management,Supplies and Services,Recycling & Reuse Charges,234,01/06/2022,2206-00288,0.00,987.84,R,Acumen Waste Services Ltd,No
Http://opendatacommunities.org/id/metropolitan-district-council/leeds,Leeds City Council,30/06/2022,Communities Housing and Environment,Waste Management,Supplies and Services,Recycling & Reuse Charges,234,01/06/2022,2206-00289,0.00,1015.20,R,Acumen Waste Services Ltd,No
Http://opendatacommunities.org/id/metropolitan-district-council/leeds,Leeds City Council,30/06/2022,Communities Housing and Environment,Waste Management,Supplies and Services,Recycling & Reuse Charges,234,08/06/2022,2206-00290,0.00,969.84,R,Acumen Waste Services Ltd,No
Http://opendatacommunities.org/id/metropolitan-district-council/leeds,Leeds City Council,30/06/2022,Communities Housing and Environment,Waste Management,Supplies and Services,Recycling & Reuse Charges,234,08/06/2022,2206-00291,0.00,1018.80,R,Acumen Waste Services Ltd,No
Http://opendatacommunities.org/id/metropolitan-district-council/leeds,Leeds City Council,30/06/2022,Communities Housing and Environment,Waste Management,Supplies and Services,Waste Disposal Charges,236,08/06/2022,2206-00292,0.00,640.10,R,Acumen Waste Services Ltd,No
Http://opendatacommunities.org/id/metropolitan-district-council/leeds,Leeds City Council,30/06/2022,Communities Housing and Environment,Waste Management,Supplies and Services,Waste Disposal Charges,236,08/06/2022,2206-00293,0.00,670.30,R,Acumen Waste Services Ltd,No
Http://opendatacommunities.org/id/metropolitan-district-council/leeds,Leeds City Council,30/06/2022,Communities Housing and Environment,Waste Management,Supplies and Services,Waste Disposal Charges,236,08/06/2022,2206-00294,0.00,797.40,R,Acumen Waste Services Ltd,No
Http://opendatacommunities.org/id/metropolitan-district-council/leeds,Leeds City Council,30/06/2022,Communities Housing and Environment,Waste Management,Supplies and Services,Recycling & Reuse Charges,234,10/06/2022,2206-00295,0.00,5767.20,R,Acumen Waste Services Ltd,No
Http://opendatacommunities.org/id/metropolitan-district-council/leeds,Leeds City Council,30/06/2022,Communities Housing and Environment,Waste Management,Supplies and Services,Waste Disposal Charges,236,10/06/2022,2206-00296,0.00,375.00,R,Acumen Waste Services Ltd,No
Http://opendatacommunities.org/id/metropolitan-district-council/leeds,Leeds City Council,30/06/2022,Communities Housing and Environment,Waste Management,Supplies and Services,Recycling & Reuse Charges,234,10/06/2022,2206-00297,0.00,930.24,R,Acumen Waste Services Ltd,No
Http://opendatacommunities.org/id/metropolitan-district-council/leeds,Leeds City Council,30/06/2022,Communities Housing and Environment,Waste Management,Supplies and Services,Recycling & Reuse Charges,234,10/06/2022,2206-00298,0.00,2862.72,R,Acumen Waste Services Ltd,No
Http://opendatacommunities.org/id/metropolitan-district-council/leeds,Leeds City Council,30/06/2022,Communities Housing and Environment,Waste Management,Supplies and Services,Waste Disposal Charges,236,10/06/2022,2206-00299,0.00,1152.90,R,Acumen Waste Services Ltd,No
Http://opendatacommunities.org/id/metropolitan-district-council/leeds,Leeds City Council,30/06/2022,Communities Housing and Environment,Waste Management,Supplies and Services,Recycling & Reuse Charges,234,10/06/2022,2206-00300,0.00,997.20,R,Acumen Waste Services Ltd,No
Http://opendatacommunities.org/id/metropolitan-district-council/leeds,Leeds City Council,30/06/2022,Communities Housing and Environment,Waste Management,Supplies and Services,Recycling & Reuse Charges,234,10/06/2022,2206-00301,0.00,924.48,R,Acumen Waste Services Ltd,No
Http://opendatacommunities.org/id/metropolitan-district-council/leeds,Leeds City Council,30/06/2022,Communities Housing and Environment,Waste Management,Supplies and Services,Waste Disposal Charges,236,10/06/2022,2206-00302,0.00,732.30,R,Acumen Waste Services Ltd,No
Http://opendatacommunities.org/id/metropolitan-district-council/leeds,Leeds City Council,30/06/2022,Communities Housing and Environment,Waste Management,Supplies and Services,Waste Disposal Charges,236,10/06/2022,2206-00303,0.00,740.20,R,Acumen Waste Services Ltd,No
Http://opendatacommunities.org/id/metropolitan-district-council/leeds,Leeds City Council,30/06/2022,Communities Housing and Environment,Waste Management,Supplies and Services,Recycling & Reuse Charges,234,15/06/2022,2206-00304,0.00,902.88,R,Acumen Waste Services Ltd,No
Http://opendatacommunities.org/id/metropolitan-district-council/leeds,Leeds City Council,30/06/2022,Communities Housing and Environment,Waste Management,Supplies and Services,Recycling & Reuse Charges,234,15/06/2022,2206-00305,0.00,1005.12,R,Acumen Waste Services Ltd,No
Http://opendatacommunities.org/id/metropolitan-district-council/leeds,Leeds City Council,30/06/2022,Communities Housing and Environment,Waste Management,Supplies and Services,Recycling & Reuse Charges,234,15/06/2022,2206-00306,0.00,883.44,R,Acumen Waste Services Ltd,No
Http://opendatacommunities.org/id/metropolitan-district-council/leeds,Leeds City Council,30/06/2022,Communities Housing and Environment,Waste Management,Supplies and Services,Recycling & Reuse Charges,234,16/06/2022,2206-00307,0.00,1009.44,R,Acumen Waste Services Ltd,No
Http://opendatacommunities.org/id/metropolitan-district-council/leeds,Leeds City Council,30/06/2022,Communities Housing and Environment,Waste Management,Supplies and Services,Waste Disposal Charges,236,16/06/2022,2206-00308,0.00,701.35,R,Acumen Waste Services Ltd,No
Http://opendatacommunities.org/id/metropolitan-district-council/leeds,Leeds City Council,30/06/2022,Communities Housing and Environment,Waste Management,Supplies and Services,Waste Disposal Charges,236,16/06/2022,2206-00309,0.00,674.90,R,Acumen Waste Services Ltd,No
Http://opendatacommunities.org/id/metropolitan-district-council/leeds,Leeds City Council,30/06/2022,Communities Housing and Environment,Waste Management,Supplies and Services,Waste Disposal Charges,236,16/06/2022,2206-00310,0.00,835.25,R,Acumen Waste Services Ltd,No
Http://opendatacommunities.org/id/metropolitan-district-council/leeds,Leeds City Council,30/06/2022,Communities Housing and Environment,Waste Management,Supplies and Services,Waste Disposal Charges,236,16/06/2022,2206-00311,0.00,653.75,R,Acumen Waste Services Ltd,No
Http://opendatacommunities.org/id/metropolitan-district-council/leeds,Leeds City Council,30/06/2022,Communities Housing and Environment,Waste Management,Supplies and Services,Recycling & Reuse Charges,234,16/06/2022,2206-00312,0.00,1009.44,R,Acumen Waste Services Ltd,No
Http://opendatacommunities.org/id/metropolitan-district-council/leeds,Leeds City Council,30/06/2022,Communities Housing and Environment,Waste Management,Supplies and Services,Recycling & Reuse Charges,234,16/06/2022,2206-00313,0.00,990.00,R,Acumen Waste Services Ltd,No
Http://opendatacommunities.org/id/metropolitan-district-council/leeds,Leeds City Council,30/06/2022,Communities Housing and Environment,Waste Management,Supplies and Services,Recycling & Reuse Charges,234,16/06/2022,2206-00314,0.00,1008.00,R,Acumen Waste Services Ltd,No
Http://opendatacommunities.org/id/metropolitan-district-council/leeds,Leeds City Council,30/06/2022,Communities Housing and Environment,Waste Management,Supplies and Services,Recycling & Reuse Charges,234,17/06/2022,2206-00315,0.00,920.88,R,Acumen Waste Services Ltd,No
Http://opendatacommunities.org/id/metropolitan-district-council/leeds,Leeds City Council,30/06/2022,Communities Housing and Environment,Waste Management,Supplies and Services,Recycling & Reuse Charges,234,17/06/2022,2206-00316,0.00,976.32,R,Acumen Waste Services Ltd,No
Http://opendatacommunities.org/id/metropolitan-district-council/leeds,Leeds City Council,30/06/2022,Communities Housing and Environment,Waste Management,Supplies and Services,Recycling & Reuse Charges,234,22/06/2022,2206-00317,0.00,966.24,R,Acumen Waste Services Ltd,No
Http://opendatacommunities.org/id/metropolitan-district-council/leeds,Leeds City Council,30/06/2022,Communities Housing and Environment,Waste Management,Supplies and Services,Recycling & Reuse Charges,234,22/06/2022,2206-00318,0.00,1006.56,R,Acumen Waste Services Ltd,No
Http://opendatacommunities.org/id/metropolitan-district-council/leeds,Leeds City Council,30/06/2022,Communities Housing and Environment,Waste Management,Supplies and Services,Waste Disposal Charges,236,22/06/2022,2206-00319,0.00,994.35,R,Acumen Waste Services Ltd,No
Http://opendatacommunities.org/id/metropolitan-district-council/leeds,Leeds City Council,30/06/2022,Communities Housing and Environment,Waste Management,Supplies and Services,Recycling & Reuse Charges,234,22/06/2022,2206-00320,0.00,990.00,R,Acumen Waste Services Ltd,No
Http://opendatacommunities.org/id/metropolitan-district-council/leeds,Leeds City Council,30/06/2022,Communities Housing and Environment,Waste Management,Supplies and Services,Recycling & Reuse Charges,234,23/06/2022,2206-00321,0.00,996.48,R,Acumen Waste Services Ltd,No
Http://opendatacommunities.org/id/metropolitan-district-council/leeds,Leeds City Council,30/06/2022,Communities Housing and Environment,Waste Management,Supplies and Services,Recycling & Reuse Charges,234,23/06/2022,2206-00322,0.00,1028.88,R,Acumen Waste Services Ltd,No
Http://opendatacommunities.org/id/metropolitan-district-council/leeds,Leeds City Council,30/06/2022,Communities Housing and Environment,Waste Management,Supplies and Services,Recycling & Reuse Charges,234,23/06/2022,2206-00323,0.00,1002.24,R,Acumen Waste Services Ltd,No
Http://opendatacommunities.org/id/metropolitan-district-council/leeds,Leeds City Council,30/06/2022,Communities Housing and Environment,Waste Management,Supplies and Services,Recycling & Reuse Charges,234,24/06/2022,2206-00324,0.00,990.72,R,Acumen Waste Services Ltd,No
Http://opendatacommunities.org/id/metropolitan-district-council/leeds,Leeds City Council,30/06/2022,Communities Housing and Environment,Waste Management,Supplies and Services,Recycling & Reuse Charges,234,24/06/2022,2206-00325,0.00,1007.28,R,Acumen Waste Services Ltd,No
Http://opendatacommunities.org/id/metropolitan-district-council/leeds,Leeds City Council,30/06/2022,Communities Housing and Environment,Waste Management,Supplies and Services,Recycling & Reuse Charges,234,29/06/2022,2206-00326,0.00,1015.92,R,Acumen Waste Services Ltd,No
Http://opendatacommunities.org/id/metropolitan-district-council/leeds,Leeds City Council,30/06/2022,Communities Housing and Environment,Waste Management,Supplies and Services,Recycling & Reuse Charges,234,30/06/2022,2206-00327,0.00,954.00,R,Acumen Waste Services Ltd,No
Http://opendatacommunities.org/id/metropolitan-district-council/leeds,Leeds City Council,30/06/2022,Communities Housing and Environment,Waste Management,Supplies and Services,Recycling & Reuse Charges,234,30/06/2022,2206-00328,0.00,866.88,R,Acumen Waste Services Ltd,No
Http://opendatacommunities.org/id/metropolitan-district-council/leeds,Leeds City Council,30/06/2022,Communities Housing and Environment,Waste Management,Supplies and Services,Recycling & Reuse Charges,234,30/06/2022,2206-00329,0.00,894.96,R,Acumen Waste Services Ltd,No
Http://opendatacommunities.org/id/metropolitan-district-council/leeds,Leeds City Council,30/06/2022,Communities Housing and Environment,Waste Management,Supplies and Services,Recycling & Reuse Charges,234,30/06/2022,2206-00330,0.00,930.96,R,Acumen Waste Services Ltd,No
Http://opendatacommunities.org/id/metropolitan-district-council/leeds,Leeds City Council,30/06/2022,Communities Housing and Environment,Waste Management,Supplies and Services,Recycling & Reuse Charges,234,30/06/2022,2206-00331,0.00,893.52,R,Acumen Waste Services Ltd,No
Http://opendatacommunities.org/id/metropolitan-district-council/leeds,Leeds City Council,30/06/2022,Communities Housing and Environment,Waste Management,Supplies and Services,Recycling & Reuse Charges,234,30/06/2022,2206-00332,0.00,987.84,R,Acumen Waste Services Ltd,No
Http://opendatacommunities.org/id/metropolitan-district-council/leeds,Leeds City Council,30/06/2022,Communities Housing and Environment,Waste Management,Supplies and Services,Recycling & Reuse Charges,234,30/06/2022,2206-00333,0.00,869.04,R,Acumen Waste Services Ltd,No
Http://opendatacommunities.org/id/metropolitan-district-council/leeds,Leeds City Council,30/06/2022,Communities Housing and Environment,Waste Management,Supplies and Services,Waste Disposal Charges,236,30/06/2022,2206-00334,0.00,688.55,R,Acumen Waste Services Ltd,No
Http://opendatacommunities.org/id/metropolitan-district-council/leeds,Leeds City Council,30/06/2022,Resources,Shared Services,Supplies and Services,Operational Materials,205,01/06/2022,2206-00335,0.00,1260.00,R,AD3 Envelope Printers Limited,No
Http://opendatacommunities.org/id/metropolitan-district-council/leeds,Leeds City Council,30/06/2022,Communities Housing and Environment,Strategic Housing Partnership & Support,Supplies and Services,Other Hired And Contracted Services,265,14/06/2022,2206-00336,0.00,605.75,R,Adair Paxton LLP,No
Http://opendatacommunities.org/id/metropolitan-district-council/leeds,Leeds City Council,30/06/2022,City Development,Highways,Internal Recharges,Legal Disbursements,411,20/06/2022,2206-00337,0.00,6250.00,R,Adam Aldred,No
Http://opendatacommunities.org/id/metropolitan-district-council/leeds,Leeds City Council,30/06/2022,Children and Families,Social Care,Agency Payments,Placement Support,550,01/06/2022,2206-00338,0.00,200.00,R,REDACTED PERSONAL DATA,No
Http://opendatacommunities.org/id/metropolitan-district-council/leeds,Leeds City Council,30/06/2022,Children and Families,Social Care,Appropriations,Leaving Care Allowances,634,01/06/2022,2206-00339,0.00,100.00,R,REDACTED PERSONAL DATA,No
Http://opendatacommunities.org/id/metropolitan-district-council/leeds,Leeds City Council,30/06/2022,Children and Families,Social Care,Appropriations,Leaving Care Allowances,634,17/06/2022,2206-00340,0.00,100.00,R,REDACTED PERSONAL DATA,No
Http://opendatacommunities.org/id/metropolitan-district-council/leeds,Leeds City Council,30/06/2022,Children and Families,Social Care,Appropriations,Leaving Care Allowances,634,24/06/2022,2206-00341,0.00,50.00,R,REDACTED PERSONAL DATA,No
Http://opendatacommunities.org/id/metropolitan-district-council/leeds,Leeds City Council,30/06/2022,Children and Families,Social Care,Appropriations,Leaving Care Allowances,634,29/06/2022,2206-00342,0.00,50.00,R,REDACTED PERSONAL DATA,No
Http://opendatacommunities.org/id/metropolitan-district-council/leeds,Leeds City Council,30/06/2022,Children and Families,Social Care,Agency Payments,Contact,548,28/06/2022,2206-00343,0.00,72.80,R,REDACTED PERSONAL DATA,No
Http://opendatacommunities.org/id/metropolitan-district-council/leeds,Leeds City Council,30/06/2022,Children and Families,Social Care,Agency Payments,Placement Support,550,13/06/2022,2206-00344,0.00,30.00,R,REDACTED PERSONAL DATA,No
Http://opendatacommunities.org/id/metropolitan-district-council/leeds,Leeds City Council,30/06/2022,Adults and Health,Services For Older People - 65 And Over,Agency Payments,Residential Care Dementia,571,22/06/2022,2206-00345,0.00,2584.00,R,Adbolton Hall,No
Http://opendatacommunities.org/id/metropolitan-district-council/leeds,Leeds City Council,30/06/2022,Children and Families,Social Care,Agency Payments,Services Rendered By Other Organisations,511,01/06/2022,2206-00346,0.00,5816.30,R,ADEL PRE SCHOOL,No
Http://opendatacommunities.org/id/metropolitan-district-council/leeds,Leeds City Council,30/06/2022,Children and Families,Social Care,Agency Payments,Services Rendered By Voluntary Sector,505,01/06/2022,2206-00347,0.00,868.92,R,ADEL PRE SCHOOL,No
Http://opendatacommunities.org/id/metropolitan-district-council/leeds,Leeds City Council,30/06/2022,Children and Families,Social Care,Appropriations,Leaving Care Allowances,634,22/06/2022,2206-00348,0.00,5.20,R,REDACTED PERSONAL DATA,No
Http://opendatacommunities.org/id/metropolitan-district-council/leeds,Leeds City Council,30/06/2022,City Development,Libraries Arts & Heritage,Supplies and Services,Operational Materials,205,09/05/2022,2206-00349,0.00,88.83,R,Adelaide Walker Llp,Yes
Http://opendatacommunities.org/id/metropolitan-district-council/leeds,Leeds City Council,30/06/2022,City Development,Recreation,Supplies and Services,Bought In Professional Services,277,01/06/2022,2206-00350,0.00,60.00,R,Adele Battersby,No
Http://opendatacommunities.org/id/metropolitan-district-council/leeds,Leeds City Council,30/06/2022,City Development,Recreation,Supplies and Services,Bought In Professional Services,277,09/06/2022,2206-00351,0.00,520.00,R,Adele Battersby,No
Http://opendatacommunities.org/id/metropolitan-district-council/leeds,Leeds City Council,30/06/2022,City Development,Recreation,Supplies and Services,Bought In Professional Services,277,09/06/2022,2206-00352,0.00,106.58,R,Adele Battersby,No
Http://opendatacommunities.org/id/metropolitan-district-council/leeds,Leeds City Council,30/06/2022,City Development,Recreation,Supplies and Services,Bought In Professional Services,277,27/06/2022,2206-00353,0.00,360.00,R,Adele Battersby,No
Http://opendatacommunities.org/id/metropolitan-district-council/leeds,Leeds City Council,30/06/2022,City Development,Recreation,Supplies and Services,Bought In Professional Services,277,30/06/2022,2206-00354,0.00,160.00,R,Adele Battersby,No
Http://opendatacommunities.org/id/metropolitan-district-council/leeds,Leeds City Council,30/06/2022,Children and Families,Social Care,Agency Payments,Services Rendered By Other Organisations,511,01/06/2022,2206-00355,0.00,2050.62,R,REDACTED PERSONAL DATA,No
Http://opendatacommunities.org/id/metropolitan-district-council/leeds,Leeds City Council,30/06/2022,Children and Families,Social Care,Agency Payments,Services Rendered By Other Organisations,511,01/06/2022,2206-00356,0.00,217.23,R,REDACTED PERSONAL DATA,No
Http://opendatacommunities.org/id/metropolitan-district-council/leeds,Leeds City Council,30/06/2022,Children and Families,Social Care,Agency Payments,Contact,548,08/06/2022,2206-00357,0.00,32.00,R,REDACTED PERSONAL DATA,No
Http://opendatacommunities.org/id/metropolitan-district-council/leeds,Leeds City Council,30/06/2022,Children and Families,Social Care,Supplies and Services,Clothing & Uniforms,241,09/05/2022,2206-00358,0.00,24.00,R,Adidas (U.K.) Limited,Yes
Http://opendatacommunities.org/id/metropolitan-district-council/leeds,Leeds City Council,30/06/2022,Resources,Leeds Building Services,Supplies and Services,Operational Materials,205,01/06/2022,2206-00359,0.00,9141.66,R,ADI-Gardiner Ltd,No
Http://opendatacommunities.org/id/metropolitan-district-council/leeds,Leeds City Council,30/06/2022,Resources,Leeds Building Services,Supplies and Services,Operational Materials,205,01/06/2022,2206-00360,0.00,35.11,R,ADI-Gardiner Ltd,No
Http://opendatacommunities.org/id/metropolitan-district-council/leeds,Leeds City Council,30/06/2022,Resources,Leeds Building Services,Supplies and Services,Operational Materials,205,01/06/2022,2206-00361,0.00,129.99,R,ADI-Gardiner Ltd,No
Http://opendatacommunities.org/id/metropolitan-district-council/leeds,Leeds City Council,30/06/2022,Resources,Leeds Building Services,Supplies and Services,Operational Materials,205,01/06/2022,2206-00362,0.00,3640.78,R,ADI-Gardiner Ltd,No
Http://opendatacommunities.org/id/metropolitan-district-council/leeds,Leeds City Council,30/06/2022,Resources,Leeds Building Services,Supplies and Services,Operational Materials,205,01/06/2022,2206-00363,0.00,24.32,R,ADI-Gardiner Ltd,No
Http://opendatacommunities.org/id/metropolitan-district-council/leeds,Leeds City Council,30/06/2022,Resources,Leeds Building Services,Supplies and Services,Operational Materials,205,01/06/2022,2206-00364,0.00,18.10,R,ADI-Gardiner Ltd,No
Http://opendatacommunities.org/id/metropolitan-district-council/leeds,Leeds City Council,30/06/2022,Resources,Leeds Building Services,Supplies and Services,Operational Materials,205,01/06/2022,2206-00365,0.00,160.45,R,ADI-Gardiner Ltd,No
Http://opendatacommunities.org/id/metropolitan-district-council/leeds,Leeds City Council,30/06/2022,Resources,Leeds Building Services,Supplies and Services,Operational Materials,205,01/06/2022,2206-00366,0.00,26.82,R,ADI-Gardiner Ltd,No
Http://opendatacommunities.org/id/metropolitan-district-council/leeds,Leeds City Council,30/06/2022,Resources,Leeds Building Services,Supplies and Services,Operational Materials,205,01/06/2022,2206-00367,0.00,9.80,R,ADI-Gardiner Ltd,No
Http://opendatacommunities.org/id/metropolitan-district-council/leeds,Leeds City Council,30/06/2022,Resources,Leeds Building Services,Supplies and Services,Operational Materials,205,01/06/2022,2206-00368,0.00,12.16,R,ADI-Gardiner Ltd,No
Http://opendatacommunities.org/id/metropolitan-district-council/leeds,Leeds City Council,30/06/2022,Resources,Leeds Building Services,Supplies and Services,Operational Materials,205,01/06/2022,2206-00369,0.00,12.16,R,ADI-Gardiner Ltd,No
Http://opendatacommunities.org/id/metropolitan-district-council/leeds,Leeds City Council,30/06/2022,Resources,Leeds Building Services,Supplies and Services,Operational Materials,205,09/06/2022,2206-00370,0.00,8.07,R,ADI-Gardiner Ltd,No
Http://opendatacommunities.org/id/metropolitan-district-council/leeds,Leeds City Council,30/06/2022,Resources,Leeds Building Services,Supplies and Services,Operational Materials,205,09/06/2022,2206-00371,0.00,8.07,R,ADI-Gardiner Ltd,No
Http://opendatacommunities.org/id/metropolitan-district-council/leeds,Leeds City Council,30/06/2022,Resources,Leeds Building Services,Supplies and Services,Operational Materials,205,09/06/2022,2206-00372,0.00,43.58,R,ADI-Gardiner Ltd,No
Http://opendatacommunities.org/id/metropolitan-district-council/leeds,Leeds City Council,30/06/2022,Resources,Leeds Building Services,Supplies and Services,Operational Materials,205,17/06/2022,2206-00373,0.00,101.91,R,ADI-Gardiner Ltd,No
Http://opendatacommunities.org/id/metropolitan-district-council/leeds,Leeds City Council,30/06/2022,Resources,Leeds Building Services,Supplies and Services,Operational Materials,205,17/06/2022,2206-00374,0.00,148.29,R,ADI-Gardiner Ltd,No
Http://opendatacommunities.org/id/metropolitan-district-council/leeds,Leeds City Council,30/06/2022,Resources,Leeds Building Services,Supplies and Services,Operational Materials,205,23/06/2022,2206-00375,0.00,24.32,R,ADI-Gardiner Ltd,No
Http://opendatacommunities.org/id/metropolitan-district-council/leeds,Leeds City Council,30/06/2022,Resources,Leeds Building Services,Supplies and Services,Operational Materials,205,23/06/2022,2206-00376,0.00,780.44,R,ADI-Gardiner Ltd,No
Http://opendatacommunities.org/id/metropolitan-district-council/leeds,Leeds City Council,30/06/2022,Resources,Leeds Building Services,Supplies and Services,Operational Materials,205,23/06/2022,2206-00377,0.00,780.44,R,ADI-Gardiner Ltd,No
Http://opendatacommunities.org/id/metropolitan-district-council/leeds,Leeds City Council,30/06/2022,Insurance,Insurance,Supplies and Services,Insurance Claims,248,16/06/2022,2206-00378,0.00,824.04,R,Admiral Law,No
Http://opendatacommunities.org/id/metropolitan-district-council/leeds,Leeds City Council,30/06/2022,Insurance,Insurance,Supplies and Services,Insurance Claims,248,20/06/2022,2206-00379,0.00,240.00,R,Admiral Law,No
Http://opendatacommunities.org/id/metropolitan-district-council/leeds,Leeds City Council,30/06/2022,Insurance,Insurance,Supplies and Services,Insurance Claims,248,28/06/2022,2206-00380,0.00,2833.17,R,Admiral Law,No
Http://opendatacommunities.org/id/metropolitan-district-council/leeds,Leeds City Council,30/06/2022,Children and Families,Social Care,Agency Payments,Independent Fostering Agencies,509,15/06/2022,2206-00381,0.00,3450.00,R,Adolescent And Childrens Trust,No
Http://opendatacommunities.org/id/metropolitan-district-council/leeds,Leeds City Council,30/06/2022,Children and Families,Social Care,Agency Payments,Independent Fostering Agencies,509,15/06/2022,2206-00382,0.00,3450.00,R,Adolescent And Childrens Trust,No
Http://opendatacommunities.org/id/metropolitan-district-council/leeds,Leeds City Council,30/06/2022,Children and Families,Social Care,Agency Payments,Independent Fostering Agencies,509,15/06/2022,2206-00383,0.00,3450.00,R,Adolescent And Childrens Trust,No
Http://opendatacommunities.org/id/metropolitan-district-council/leeds,Leeds City Council,30/06/2022,Children and Families,Social Care,Agency Payments,Independent Fostering Agencies,509,15/06/2022,2206-00384,0.00,3630.00,R,Adolescent And Childrens Trust,No
Http://opendatacommunities.org/id/metropolitan-district-council/leeds,Leeds City Council,30/06/2022,Children and Families,Social Care,Agency Payments,Independent Fostering Agencies,509,15/06/2022,2206-00385,0.00,3630.00,R,Adolescent And Childrens Trust,No
Http://opendatacommunities.org/id/metropolitan-district-council/leeds,Leeds City Council,30/06/2022,Children and Families,Social Care,Agency Payments,Independent Fostering Agencies,509,15/06/2022,2206-00386,0.00,3630.00,R,Adolescent And Childrens Trust,No
Http://opendatacommunities.org/id/metropolitan-district-council/leeds,Leeds City Council,30/06/2022,Children and Families,Social Care,Agency Payments,Independent Fostering Agencies,509,15/06/2022,2206-00387,0.00,3437.10,R,Adolescent And Childrens Trust,No
Http://opendatacommunities.org/id/metropolitan-district-council/leeds,Leeds City Council,30/06/2022,Children and Families,Social Care,Agency Payments,Independent Fostering Agencies,509,15/06/2022,2206-00388,0.00,3630.00,R,Adolescent And Childrens Trust,No
Http://opendatacommunities.org/id/metropolitan-district-council/leeds,Leeds City Council,30/06/2022,Children and Families,Social Care,Agency Payments,Independent Fostering Agencies,509,15/06/2022,2206-00389,0.00,3450.00,R,Adolescent And Childrens Trust,No
Http://opendatacommunities.org/id/metropolitan-district-council/leeds,Leeds City Council,30/06/2022,Children and Families,Social Care,Agency Payments,Independent Fostering Agencies,509,15/06/2022,2206-00390,0.00,2224.26,R,Adolescent And Childrens Trust,No
Http://opendatacommunities.org/id/metropolitan-district-council/leeds,Leeds City Council,30/06/2022,Children and Families,Social Care,Agency Payments,Independent Fostering Agencies,509,16/06/2022,2206-00391,0.00,3186.00,R,Adolescent And Childrens Trust,No
Http://opendatacommunities.org/id/metropolitan-district-council/leeds,Leeds City Council,30/06/2022,Adults and Health,Services For Adults Under 65 Mental/Dis,Agency Payments,Home Care,568,01/06/2022,2206-00392,0.00,410.25,R,Adopt Healthcare,No
Http://opendatacommunities.org/id/metropolitan-district-council/leeds,Leeds City Council,30/06/2022,Adults and Health,Services For Adults Under 65 Mental/Dis,Agency Payments,Home Care,568,01/06/2022,2206-00393,0.00,189.00,R,Adopt Healthcare,No
Http://opendatacommunities.org/id/metropolitan-district-council/leeds,Leeds City Council,30/06/2022,Adults and Health,Services For Adults Under 65 Mental/Dis,Agency Payments,Home Care,568,01/06/2022,2206-00394,0.00,165.00,R,Adopt Healthcare,No
Http://opendatacommunities.org/id/metropolitan-district-council/leeds,Leeds City Council,30/06/2022,Adults and Health,Services For Adults Under 65 Mental/Dis,Agency Payments,Home Care,568,01/06/2022,2206-00395,0.00,165.00,R,Adopt Healthcare,No
Http://opendatacommunities.org/id/metropolitan-district-council/leeds,Leeds City Council,30/06/2022,Adults and Health,Services For Adults Under 65 Mental/Dis,Agency Payments,Home Care,568,01/06/2022,2206-00396,0.00,410.25,R,Adopt Healthcare,No
Http://opendatacommunities.org/id/metropolitan-district-council/leeds,Leeds City Council,30/06/2022,Adults and Health,Services For Adults Under 65 Mental/Dis,Agency Payments,Home Care,568,01/06/2022,2206-00397,0.00,189.00,R,Adopt Healthcare,No
Http://opendatacommunities.org/id/metropolitan-district-council/leeds,Leeds City Council,30/06/2022,Adults and Health,Services For Adults Under 65 Mental/Dis,Agency Payments,Home Care,568,01/06/2022,2206-00398,0.00,198.00,R,Adopt Healthcare,No
Http://opendatacommunities.org/id/metropolitan-district-council/leeds,Leeds City Council,30/06/2022,Adults and Health,Services For Adults Under 65 Mental/Dis,Agency Payments,Home Care,568,08/06/2022,2206-00399,0.00,410.25,R,Adopt Healthcare,No
Http://opendatacommunities.org/id/metropolitan-district-council/leeds,Leeds City Council,30/06/2022,Adults and Health,Services For Adults Under 65 Mental/Dis,Agency Payments,Home Care,568,08/06/2022,2206-00400,0.00,189.00,R,Adopt Healthcare,No
Http://opendatacommunities.org/id/metropolitan-district-council/leeds,Leeds City Council,30/06/2022,Adults and Health,Services For Adults Under 65 Mental/Dis,Agency Payments,Home Care,568,08/06/2022,2206-00401,0.00,132.00,R,Adopt Healthcare,No
Http://opendatacommunities.org/id/metropolitan-district-council/leeds,Leeds City Council,30/06/2022,Adults and Health,Services For Adults Under 65 Mental/Dis,Agency Payments,Home Care,568,08/06/2022,2206-00402,0.00,49.50,R,Adopt Healthcare,No
Http://opendatacommunities.org/id/metropolitan-district-council/leeds,Leeds City Council,30/06/2022,Adults and Health,Services For Adults Under 65 Mental/Dis,Agency Payments,Home Care,568,15/06/2022,2206-00403,0.00,410.25,R,Adopt Healthcare,No
Http://opendatacommunities.org/id/metropolitan-district-council/leeds,Leeds City Council,30/06/2022,Adults and Health,Services For Adults Under 65 Mental/Dis,Agency Payments,Home Care,568,15/06/2022,2206-00404,0.00,189.00,R,Adopt Healthcare,No
Http://opendatacommunities.org/id/metropolitan-district-council/leeds,Leeds City Council,30/06/2022,Adults and Health,Services For Adults Under 65 Mental/Dis,Agency Payments,Home Care,568,15/06/2022,2206-00405,0.00,132.00,R,Adopt Healthcare,No
Http://opendatacommunities.org/id/metropolitan-district-council/leeds,Leeds City Council,30/06/2022,Adults and Health,Services For Adults Under 65 Mental/Dis,Agency Payments,Home Care,568,15/06/2022,2206-00406,0.00,132.00,R,Adopt Healthcare,No
Http://opendatacommunities.org/id/metropolitan-district-council/leeds,Leeds City Council,30/06/2022,Adults and Health,Services For Adults Under 65 Mental/Dis,Agency Payments,Home Care,568,22/06/2022,2206-00407,0.00,410.25,R,Adopt Healthcare,No
Http://opendatacommunities.org/id/metropolitan-district-council/leeds,Leeds City Council,30/06/2022,Adults and Health,Services For Adults Under 65 Mental/Dis,Agency Payments,Home Care,568,22/06/2022,2206-00408,0.00,189.00,R,Adopt Healthcare,No
Http://opendatacommunities.org/id/metropolitan-district-council/leeds,Leeds City Council,30/06/2022,Adults and Health,Services For Adults Under 65 Mental/Dis,Agency Payments,Home Care,568,22/06/2022,2206-00409,0.00,115.50,R,Adopt Healthcare,No
Http://opendatacommunities.org/id/metropolitan-district-council/leeds,Leeds City Council,30/06/2022,Adults and Health,Services For Adults Under 65 Mental/Dis,Agency Payments,Home Care,568,22/06/2022,2206-00410,0.00,148.50,R,Adopt Healthcare,No
Http://opendatacommunities.org/id/metropolitan-district-council/leeds,Leeds City Council,30/06/2022,Adults and Health,Services For Adults Under 65 Mental/Dis,Agency Payments,Home Care,568,29/06/2022,2206-00411,0.00,410.25,R,Adopt Healthcare,No
Http://opendatacommunities.org/id/metropolitan-district-council/leeds,Leeds City Council,30/06/2022,Adults and Health,Services For Adults Under 65 Mental/Dis,Agency Payments,Home Care,568,29/06/2022,2206-00412,0.00,189.00,R,Adopt Healthcare,No
Http://opendatacommunities.org/id/metropolitan-district-council/leeds,Leeds City Council,30/06/2022,Adults and Health,Services For Adults Under 65 Mental/Dis,Agency Payments,Home Care,568,29/06/2022,2206-00413,0.00,66.00,R,Adopt Healthcare,No
Http://opendatacommunities.org/id/metropolitan-district-council/leeds,Leeds City Council,30/06/2022,Adults and Health,Services For Adults Under 65 Mental/Dis,Agency Payments,Home Care,568,29/06/2022,2206-00414,0.00,66.00,R,Adopt Healthcare,No
Http://opendatacommunities.org/id/metropolitan-district-council/leeds,Leeds City Council,30/06/2022,Children and Families,Social Care,Agency Payments,Placement Support,550,01/06/2022,2206-00415,0.00,21.15,R,REDACTED PERSONAL DATA,No
Http://opendatacommunities.org/id/metropolitan-district-council/leeds,Leeds City Council,30/06/2022,Children and Families,Social Care,Agency Payments,Placement Support,550,10/06/2022,2206-00416,0.00,21.15,R,REDACTED PERSONAL DATA,No
Http://opendatacommunities.org/id/metropolitan-district-council/leeds,Leeds City Council,30/06/2022,Children and Families,Social Care,Agency Payments,Placement Support,550,17/06/2022,2206-00417,0.00,21.15,R,REDACTED PERSONAL DATA,No
Http://opendatacommunities.org/id/metropolitan-district-council/leeds,Leeds City Council,30/06/2022,Children and Families,Social Care,Agency Payments,Placement Support,550,24/06/2022,2206-00418,0.00,21.15,R,REDACTED PERSONAL DATA,No
Http://opendatacommunities.org/id/metropolitan-district-council/leeds,Leeds City Council as Accountable Body,30/06/2022,Social Services Pooled Budgets,Jcs For People With Learning Disabilitie,Agency Payments,Residential,580,28/06/2022,2206-00419,0.00,2609.36,R,ADRIAN HOUSE,No
Http://opendatacommunities.org/id/metropolitan-district-council/leeds,Leeds City Council as Accountable Body,30/06/2022,Social Services Pooled Budgets,Jcs For People With Learning Disabilitie,Agency Payments,Residential,580,30/06/2022,2206-00420,0.00,2609.36,R,ADRIAN HOUSE,No
Http://opendatacommunities.org/id/metropolitan-district-council/leeds,Leeds City Council,30/06/2022,Adults and Health,Services For Older People - 65 And Over,Agency Payments,Home Care,568,01/06/2022,2206-00421,0.00,123.76,R,Advanced Medcare Ltd,No
Http://opendatacommunities.org/id/metropolitan-district-council/leeds,Leeds City Council,30/06/2022,Adults and Health,Services For Older People - 65 And Over,Agency Payments,Home Care,568,01/06/2022,2206-00422,0.00,1485.12,R,Advanced Medcare Ltd,No
Http://opendatacommunities.org/id/metropolitan-district-council/leeds,Leeds City Council,30/06/2022,Adults and Health,Services For Older People - 65 And Over,Agency Payments,Home Care,568,01/06/2022,2206-00423,0.00,1105.00,R,Advanced Medcare Ltd,No
Http://opendatacommunities.org/id/metropolitan-district-council/leeds,Leeds City Council,30/06/2022,Adults and Health,Services For Older People - 65 And Over,Agency Payments,Home Care,568,09/06/2022,2206-00424,0.00,11465.48,R,Advanced Medcare Ltd,No
Http://opendatacommunities.org/id/metropolitan-district-council/leeds,Leeds City Council,30/06/2022,Adults and Health,Services For Older People - 65 And Over,Agency Payments,HCAIT Other,577,09/06/2022,2206-00425,0.00,1131.52,R,Advanced Medcare Ltd,No
Http://opendatacommunities.org/id/metropolitan-district-council/leeds,Leeds City Council,30/06/2022,Adults and Health,Services For Older People Under 65 P/Dis,Agency Payments,Home Care,568,09/06/2022,2206-00426,0.00,3040.96,R,Advanced Medcare Ltd,No
Http://opendatacommunities.org/id/metropolitan-district-council/leeds,Leeds City Council as Accountable Body,30/06/2022,Social Services Pooled Budgets,Jcs For People With Learning Disabilitie,Agency Payments,Home Care,568,09/06/2022,2206-00427,0.00,777.92,R,Advanced Medcare Ltd,No
Http://opendatacommunities.org/id/metropolitan-district-council/leeds,Leeds City Council,30/06/2022,Adults and Health,Services For Older People - 65 And Over,Agency Payments,Home Care,568,09/06/2022,2206-00428,0.00,15063.36,R,Advanced Medcare Ltd,No
Http://opendatacommunities.org/id/metropolitan-district-council/leeds,Leeds City Council,30/06/2022,Adults and Health,Services For Older People - 65 And Over,Agency Payments,HCAIT Community Support,575,09/06/2022,2206-00429,0.00,106.08,R,Advanced Medcare Ltd,No
Http://opendatacommunities.org/id/metropolitan-district-council/leeds,Leeds City Council,30/06/2022,Adults and Health,Services For Older People - 65 And Over,Agency Payments,HCAIT Other,577,09/06/2022,2206-00430,0.00,1131.52,R,Advanced Medcare Ltd,No
Http://opendatacommunities.org/id/metropolitan-district-council/leeds,Leeds City Council,30/06/2022,Adults and Health,Services For Older People Under 65 P/Dis,Agency Payments,Home Care,568,09/06/2022,2206-00431,0.00,2037.62,R,Advanced Medcare Ltd,No
Http://opendatacommunities.org/id/metropolitan-district-council/leeds,Leeds City Council as Accountable Body,30/06/2022,Social Services Pooled Budgets,Jcs For People With Learning Disabilitie,Agency Payments,Home Care,568,09/06/2022,2206-00432,0.00,1131.52,R,Advanced Medcare Ltd,No
Http://opendatacommunities.org/id/metropolitan-district-council/leeds,Leeds City Council,30/06/2022,Adults and Health,Services For Adults Under 65 Learn/Dis,Agency Payments,Payments To Voluntary Organisations,561,24/06/2022,2206-00433,0.00,16150.46,R,Advonet,No
Http://opendatacommunities.org/id/metropolitan-district-council/leeds,Leeds City Council,30/06/2022,Adults and Health,Services For Adults Under 65 Mental/Dis,Agency Payments,Fees - Level 4,520,28/06/2022,2206-00434,0.00,253.35,R,AE BIA Assessments Limited,No
Http://opendatacommunities.org/id/metropolitan-district-council/leeds,Leeds City Council,30/06/2022,City Development,Highways,Capital,OTHER COSTS,7,23/06/2022,2206-00435,0.00,60333.53,C,Aecom Limited,No
Http://opendatacommunities.org/id/metropolitan-district-council/leeds,Leeds City Council,30/06/2022,City Development,Highways,Capital,OTHER COSTS,7,28/06/2022,2206-00436,0.00,138919.58,C,Aecom Limited,No
Http://opendatacommunities.org/id/metropolitan-district-council/leeds,Leeds City Council,30/06/2022,Adults and Health,Services For Adults Under 65 Mental/Dis,Agency Payments,Home Care,568,01/06/2022,2206-00437,0.00,755.60,R,Aegis Care Solutions Ltd,No
Http://opendatacommunities.org/id/metropolitan-district-council/leeds,Leeds City Council,30/06/2022,Adults and Health,Services For Adults Under 65 Mental/Dis,Agency Payments,Home Care,568,01/06/2022,2206-00438,0.00,1254.52,R,Aegis Care Solutions Ltd,No
Http://opendatacommunities.org/id/metropolitan-district-council/leeds,Leeds City Council,30/06/2022,Adults and Health,Services For Adults Under 65 Mental/Dis,Agency Payments,Home Care,568,01/06/2022,2206-00439,0.00,2016.66,R,Aegis Care Solutions Ltd,No
Http://opendatacommunities.org/id/metropolitan-district-council/leeds,Leeds City Council,30/06/2022,Adults and Health,Services For Adults Under 65 Mental/Dis,Agency Payments,Home Care,568,01/06/2022,2206-00440,0.00,1281.00,R,Aegis Care Solutions Ltd,No
Http://opendatacommunities.org/id/metropolitan-district-council/leeds,Leeds City Council,30/06/2022,Adults and Health,Services For Adults Under 65 Mental/Dis,Agency Payments,Home Care,568,01/06/2022,2206-00441,0.00,723.21,R,Aegis Care Solutions Ltd,No
Http://opendatacommunities.org/id/metropolitan-district-council/leeds,Leeds City Council,30/06/2022,Adults and Health,Services For Adults Under 65 Mental/Dis,Agency Payments,Home Care,568,01/06/2022,2206-00442,0.00,1281.00,R,Aegis Care Solutions Ltd,No
Http://opendatacommunities.org/id/metropolitan-district-council/leeds,Leeds City Council,30/06/2022,Adults and Health,Services For Adults Under 65 Mental/Dis,Agency Payments,Home Care,568,01/06/2022,2206-00443,0.00,1695.60,R,Aegis Care Solutions Ltd,No
Http://opendatacommunities.org/id/metropolitan-district-council/leeds,Leeds City Council,30/06/2022,Adults and Health,Services For Adults Under 65 Mental/Dis,Agency Payments,Home Care,568,01/06/2022,2206-00444,0.00,1112.00,R,Aegis Care Solutions Ltd,No
Http://opendatacommunities.org/id/metropolitan-district-council/leeds,Leeds City Council,30/06/2022,Adults and Health,Services For Adults Under 65 Mental/Dis,Agency Payments,Home Care,568,01/06/2022,2206-00445,0.00,249.20,R,Aegis Care Solutions Ltd,No
Http://opendatacommunities.org/id/metropolitan-district-council/leeds,Leeds City Council,30/06/2022,Adults and Health,Services For Adults Under 65 Mental/Dis,Agency Payments,Home Care,568,07/06/2022,2206-00446,0.00,818.80,R,Aegis Care Solutions Ltd,No
Http://opendatacommunities.org/id/metropolitan-district-council/leeds,Leeds City Council,30/06/2022,Adults and Health,Services For Adults Under 65 Mental/Dis,Agency Payments,Home Care,568,07/06/2022,2206-00447,0.00,356.00,R,Aegis Care Solutions Ltd,No
Http://opendatacommunities.org/id/metropolitan-district-council/leeds,Leeds City Council,30/06/2022,City Development,Libraries Arts & Heritage,Supplies and Services,Other Hired And Contracted Services,265,24/06/2022,2206-00448,0.00,279.00,R,Aesg Ltd,No
Http://opendatacommunities.org/id/metropolitan-district-council/leeds,Leeds City Council as Accountable Body,30/06/2022,Social Services Pooled Budgets,Jcs For People With Learning Disabilitie,Agency Payments,Day Centre,564,08/06/2022,2206-00449,0.00,14319.00,R,Affinity Trust,No
Http://opendatacommunities.org/id/metropolitan-district-council/leeds,Leeds City Council as Accountable Body,30/06/2022,Social Services Pooled Budgets,Jcs For People With Learning Disabilitie,Agency Payments,Day Centre,564,08/06/2022,2206-00450,0.00,21863.21,R,Affinity Trust,No
Http://opendatacommunities.org/id/metropolitan-district-council/leeds,Leeds City Council as Accountable Body,30/06/2022,Social Services Pooled Budgets,Jcs For People With Learning Disabilitie,Agency Payments,Day Centre,564,24/06/2022,2206-00451,0.00,21703.91,R,Affinity Trust,No
Http://opendatacommunities.org/id/metropolitan-district-council/leeds,Leeds City Council as Accountable Body,30/06/2022,Social Services Pooled Budgets,Jcs For People With Learning Disabilitie,Agency Payments,Day Centre,564,24/06/2022,2206-00452,0.00,2980.32,R,Affinity Trust,No
Http://opendatacommunities.org/id/metropolitan-district-council/leeds,Leeds City Council as Accountable Body,30/06/2022,Social Services Pooled Budgets,Jcs For People With Learning Disabilitie,Agency Payments,Day Centre,564,24/06/2022,2206-00453,0.00,9402.20,R,Affinity Trust,No
Http://opendatacommunities.org/id/metropolitan-district-council/leeds,Leeds City Council,30/06/2022,Adults and Health,Assessment And Care Management,Agency Payments,Home Care,568,24/06/2022,2206-00454,0.00,709.60,R,Affinity Trust,No
Http://opendatacommunities.org/id/metropolitan-district-council/leeds,Leeds City Council,30/06/2022,Adults and Health,Services For Older People - 65 And Over,Agency Payments,Home Care,568,24/06/2022,2206-00455,0.00,567.68,R,Affinity Trust,No
Http://opendatacommunities.org/id/metropolitan-district-council/leeds,Leeds City Council as Accountable Body,30/06/2022,Social Services Pooled Budgets,Jcs For People With Learning Disabilitie,Agency Payments,Sheltered Accommodation,569,22/06/2022,2206-00456,0.00,106696.71,R,Affinity Trust North Divisional Office,No
Http://opendatacommunities.org/id/metropolitan-district-council/leeds,Leeds City Council,30/06/2022,Communities Housing and Environment,Parks and Countryside,Transport,Hire Of Movable Plant & Machinery,315,16/05/2022,2206-00457,0.00,4750.00,R,Afi Uplift,Yes
Http://opendatacommunities.org/id/metropolitan-district-council/leeds,Leeds City Council,30/06/2022,City Development,Highways,Supplies and Services,Operational Materials,205,01/06/2022,2206-00458,0.00,2838.33,R,AGGREGATE INDUSTRIES UK LTD,No
Http://opendatacommunities.org/id/metropolitan-district-council/leeds,Leeds City Council,30/06/2022,City Development,Highways,Supplies and Services,Operational Materials,205,08/06/2022,2206-00459,0.00,2450.40,R,AGGREGATE INDUSTRIES UK LTD,No
Http://opendatacommunities.org/id/metropolitan-district-council/leeds,Leeds City Council,30/06/2022,City Development,Highways,Supplies and Services,Operational Materials,205,08/06/2022,2206-00460,0.00,122.16,R,AGGREGATE INDUSTRIES UK LTD,No
Http://opendatacommunities.org/id/metropolitan-district-council/leeds,Leeds City Council,30/06/2022,City Development,Highways,Supplies and Services,Operational Materials,205,24/06/2022,2206-00461,0.00,6373.25,R,AGGREGATE INDUSTRIES UK LTD,No
Http://opendatacommunities.org/id/metropolitan-district-council/leeds,Leeds City Council,30/06/2022,City Development,Highways,Supplies and Services,Operational Materials,205,30/06/2022,2206-00462,0.00,1000.00,R,AGGREGATE INDUSTRIES UK LTD,No
Http://opendatacommunities.org/id/metropolitan-district-council/leeds,Leeds City Council,30/06/2022,City Development,Highways,Supplies and Services,Operational Materials,205,30/06/2022,2206-00463,0.00,1272.98,R,AGGREGATE INDUSTRIES UK LTD,No
Http://opendatacommunities.org/id/metropolitan-district-council/leeds,Leeds City Council,30/06/2022,City Development,Highways,Supplies and Services,Operational Materials,205,30/06/2022,2206-00464,0.00,2583.98,R,AGGREGATE INDUSTRIES UK LTD,No
Http://opendatacommunities.org/id/metropolitan-district-council/leeds,Leeds City Council,30/06/2022,City Development,Highways,Supplies and Services,Operational Materials,205,30/06/2022,2206-00465,0.00,2274.15,R,AGGREGATE INDUSTRIES UK LTD,No
Http://opendatacommunities.org/id/metropolitan-district-council/leeds,Leeds City Council,30/06/2022,City Development,Highways,Supplies and Services,Operational Materials,205,30/06/2022,2206-00466,0.00,7868.01,R,AGGREGATE INDUSTRIES UK LTD,No
Http://opendatacommunities.org/id/metropolitan-district-council/leeds,Leeds City Council,30/06/2022,City Development,Highways,Supplies and Services,Operational Materials,205,30/06/2022,2206-00467,0.00,3794.03,R,AGGREGATE INDUSTRIES UK LTD,No
Http://opendatacommunities.org/id/metropolitan-district-council/leeds,Leeds City Council,30/06/2022,City Development,Highways,Supplies and Services,Operational Materials,205,30/06/2022,2206-00468,0.00,965.63,R,AGGREGATE INDUSTRIES UK LTD,No
Http://opendatacommunities.org/id/metropolitan-district-council/leeds,Leeds City Council,30/06/2022,Communities Housing and Environment,Customer Access,Supplies and Services,Bought In Professional Services,277,01/06/2022,2206-00469,0.00,9.00,R,Agnieszka J Collier,No
Http://opendatacommunities.org/id/metropolitan-district-council/leeds,Leeds City Council,30/06/2022,Communities Housing and Environment,Customer Access,Supplies and Services,Bought In Professional Services,277,01/06/2022,2206-00470,0.00,36.00,R,Agnieszka J Collier,No
Http://opendatacommunities.org/id/metropolitan-district-council/leeds,Leeds City Council,30/06/2022,Communities Housing and Environment,Customer Access,Supplies and Services,Bought In Professional Services,277,01/06/2022,2206-00471,0.00,27.00,R,Agnieszka J Collier,No
Http://opendatacommunities.org/id/metropolitan-district-council/leeds,Leeds City Council,30/06/2022,Communities Housing and Environment,Customer Access,Supplies and Services,Bought In Professional Services,277,09/06/2022,2206-00472,0.00,60.00,R,Agnieszka J Collier,No
Http://opendatacommunities.org/id/metropolitan-district-council/leeds,Leeds City Council,30/06/2022,Communities Housing and Environment,Customer Access,Supplies and Services,Bought In Professional Services,277,09/06/2022,2206-00473,0.00,18.00,R,Agnieszka J Collier,No
Http://opendatacommunities.org/id/metropolitan-district-council/leeds,Leeds City Council,30/06/2022,Communities Housing and Environment,Customer Access,Supplies and Services,Bought In Professional Services,277,09/06/2022,2206-00474,0.00,18.00,R,Agnieszka J Collier,No
Http://opendatacommunities.org/id/metropolitan-district-council/leeds,Leeds City Council,30/06/2022,Communities Housing and Environment,Customer Access,Supplies and Services,Bought In Professional Services,277,15/06/2022,2206-00475,0.00,18.00,R,Agnieszka J Collier,No
Http://opendatacommunities.org/id/metropolitan-district-council/leeds,Leeds City Council,30/06/2022,Communities Housing and Environment,Customer Access,Supplies and Services,Bought In Professional Services,277,15/06/2022,2206-00476,0.00,27.00,R,Agnieszka J Collier,No
Http://opendatacommunities.org/id/metropolitan-district-council/leeds,Leeds City Council,30/06/2022,Resources,Technology,Transport,Public Transport Expenses,310,21/05/2022,2206-00477,0.00,71.39,R,Agoda.Com The Royal,Yes
Http://opendatacommunities.org/id/metropolitan-district-council/leeds,Leeds City Council,30/06/2022,Communities Housing and Environment,Parks and Countryside,Supplies and Services,Operational Materials,205,28/06/2022,2206-00478,0.00,1366.20,R,Agrovista UK Ltd,No
Http://opendatacommunities.org/id/metropolitan-district-council/leeds,Leeds City Council,30/06/2022,Children and Families,Social Care,Agency Payments,Placement Support,550,22/06/2022,2206-00479,0.00,25.73,R,REDACTED PERSONAL DATA,No
Http://opendatacommunities.org/id/metropolitan-district-council/leeds,Leeds City Council as Accountable Body,30/06/2022,Social Services Pooled Budgets,Leeds Community Equip Store Pooled Budgt,Supplies and Services,Other Equipment,203,13/06/2022,2206-00480,0.00,450.00,R,AIDAPT BATHROOMS LTD,No
Http://opendatacommunities.org/id/metropolitan-district-council/leeds,Leeds City Council as Accountable Body,30/06/2022,Social Services Pooled Budgets,Leeds Community Equip Store Pooled Budgt,Supplies and Services,Other Equipment,203,28/06/2022,2206-00481,0.00,525.00,R,AIDAPT BATHROOMS LTD,No
Http://opendatacommunities.org/id/metropolitan-district-council/leeds,Leeds City Council as Accountable Body,30/06/2022,Social Services Pooled Budgets,Leeds Community Equip Store Pooled Budgt,Supplies and Services,Other Equipment,203,29/06/2022,2206-00482,0.00,450.00,R,AIDAPT BATHROOMS LTD,No
Http://opendatacommunities.org/id/metropolitan-district-council/leeds,Leeds City Council,30/06/2022,Children and Families,Social Care,Supplies and Services,Conference Meetings,253,08/06/2022,2206-00483,0.00,550.00,R,AIM PROJECT,No
Http://opendatacommunities.org/id/metropolitan-district-council/leeds,Leeds City Council,30/06/2022,Resources,Commercial Services,Supplies and Services,Other Hired And Contracted Services,265,01/06/2022,2206-00484,0.00,140.80,R,REDACTED PERSONAL DATA,No
Http://opendatacommunities.org/id/metropolitan-district-council/leeds,Leeds City Council,30/06/2022,Children and Families,Social Care,Agency Payments,Placement Support,550,24/06/2022,2206-00485,0.00,10.00,R,REDACTED PERSONAL DATA,No
Http://opendatacommunities.org/id/metropolitan-district-council/leeds,Leeds City Council,30/06/2022,Children and Families,Social Care,Agency Payments,Section 17,551,24/06/2022,2206-00486,0.00,12.45,R,REDACTED PERSONAL DATA,No
Http://opendatacommunities.org/id/metropolitan-district-council/leeds,Leeds City Council,30/06/2022,Communities Housing and Environment,Parks and Countryside,Transport,Repair & Maintenance of  Plant,342,23/06/2022,2206-00487,0.00,697.10,R,Air Solutions (Leeds) Ltd,No
Http://opendatacommunities.org/id/metropolitan-district-council/leeds,Leeds City Council,30/06/2022,Children and Families,Social Care,Transport,Public Transport Expenses,310,27/05/2022,2206-00488,0.00,459.00,R,Airbnb * Hm2f2sdbpk,Yes
Http://opendatacommunities.org/id/metropolitan-district-council/leeds,Leeds City Council,30/06/2022,Children and Families,Social Care,Transport,Public Transport Expenses,310,26/05/2022,2206-00489,0.00,437.33,R,Airbnb * Hm45edfs2f,Yes
Http://opendatacommunities.org/id/metropolitan-district-council/leeds,Leeds City Council,30/06/2022,Strategic Accounts,Miscellaneous,Supplies and Services,Non-Recurring Grants,227,20/06/2022,2206-00490,0.00,69.98,R,Aire Rivers Trust,No
Http://opendatacommunities.org/id/metropolitan-district-council/leeds,Leeds City Council,30/06/2022,Communities Housing and Environment,Parks and Countryside,Supplies and Services,Other Hired And Contracted Services,265,01/06/2022,2206-00491,0.00,2710.00,R,Aire Valley Tree Services Ltd,No
Http://opendatacommunities.org/id/metropolitan-district-council/leeds,Leeds City Council,30/06/2022,Communities Housing and Environment,Parks and Countryside,Supplies and Services,Other Hired And Contracted Services,265,17/06/2022,2206-00492,0.00,855.00,R,Aire Valley Tree Services Ltd,No
Http://opendatacommunities.org/id/metropolitan-district-council/leeds,Leeds City Council,30/06/2022,Communities Housing and Environment,Parks and Countryside,Supplies and Services,Other Hired And Contracted Services,265,17/06/2022,2206-00493,0.00,241.00,R,Aire Valley Tree Services Ltd,No
Http://opendatacommunities.org/id/metropolitan-district-council/leeds,Leeds City Council,30/06/2022,Communities Housing and Environment,Parks and Countryside,Supplies and Services,Other Hired And Contracted Services,265,17/06/2022,2206-00494,0.00,121.00,R,Aire Valley Tree Services Ltd,No
Http://opendatacommunities.org/id/metropolitan-district-council/leeds,Leeds City Council,30/06/2022,Communities Housing and Environment,Parks and Countryside,Supplies and Services,Other Hired And Contracted Services,265,23/06/2022,2206-00495,0.00,850.00,R,Aire Valley Tree Services Ltd,No
Http://opendatacommunities.org/id/metropolitan-district-council/leeds,Leeds City Council,30/06/2022,Communities Housing and Environment,Parks and Countryside,Supplies and Services,Other Hired And Contracted Services,265,23/06/2022,2206-00496,0.00,315.00,R,Aire Valley Tree Services Ltd,No
Http://opendatacommunities.org/id/metropolitan-district-council/leeds,Leeds City Council,30/06/2022,Communities Housing and Environment,Parks and Countryside,Supplies and Services,Other Hired And Contracted Services,265,24/06/2022,2206-00497,0.00,275.00,R,Aire Valley Tree Services Ltd,No
Http://opendatacommunities.org/id/metropolitan-district-council/leeds,Leeds City Council,30/06/2022,Adults and Health,Services For Older People - 65 And Over,Agency Payments,Residential Care Dementia,571,22/06/2022,2206-00498,0.00,47958.96,R,Aire View Residential Home,No
Http://opendatacommunities.org/id/metropolitan-district-council/leeds,Leeds City Council,30/06/2022,Adults and Health,Services For Older People - 65 And Over,Agency Payments,Residential,580,22/06/2022,2206-00499,0.00,4405.47,R,Aire View Residential Home,No
Http://opendatacommunities.org/id/metropolitan-district-council/leeds,Leeds City Council,30/06/2022,City Development,Recreation,Supplies and Services,Other Hired And Contracted Services,265,09/05/2022,2206-00500,0.00,23.35,R,Aireborough Leisure Centr,Yes
Http://opendatacommunities.org/id/metropolitan-district-council/leeds,Leeds City Council,30/06/2022,Adults and Health,Assessment And Care Management,Agency Payments,Residential,580,22/06/2022,2206-00501,0.00,1776.20,R,Airedale Residential Home,No
Http://opendatacommunities.org/id/metropolitan-district-council/leeds,Leeds City Council,30/06/2022,Adults and Health,Services For Older People - 65 And Over,Agency Payments,Residential Care Dementia,571,22/06/2022,2206-00502,0.00,3403.56,R,Airedale Residential Home,No
Http://opendatacommunities.org/id/metropolitan-district-council/leeds,Leeds City Council,30/06/2022,Adults and Health,Services For Older People - 65 And Over,Agency Payments,Residential,580,22/06/2022,2206-00503,0.00,19830.51,R,Airedale Residential Home,No
Http://opendatacommunities.org/id/metropolitan-district-council/leeds,Leeds City Council,30/06/2022,Adults and Health,Services For Older People Under 65 P/Dis,Agency Payments,Residential,580,22/06/2022,2206-00504,0.00,2094.92,R,Airedale Residential Home,No
Http://opendatacommunities.org/id/metropolitan-district-council/leeds,Leeds City Council,30/06/2022,City Development,Employment & Skills,Agency Payments,Contributions To Partnerships,544,14/06/2022,2206-00505,0.00,4258.98,R,Airnow Cybersecurity Limited,No
Http://opendatacommunities.org/id/metropolitan-district-council/leeds,Leeds City Council,30/06/2022,Communities Housing and Environment,Parks and Countryside,Transport,Public Transport Expenses,310,03/05/2022,2206-00506,0.00,15.08,R,Airpay 36884742-Roadrunne,Yes
Http://opendatacommunities.org/id/metropolitan-district-council/leeds,Leeds City Council,30/06/2022,Children and Families,Social Care,Transport,Public Transport Expenses,310,09/05/2022,2206-00507,0.00,24.29,R,Airpay 41661226-Amber Car,Yes
Http://opendatacommunities.org/id/metropolitan-district-council/leeds,Leeds City Council,30/06/2022,Children and Families,Social Care,Transport,Public Transport Expenses,310,09/05/2022,2206-00508,0.00,16.37,R,Airpay 41661293-Amber Car,Yes
Http://opendatacommunities.org/id/metropolitan-district-council/leeds,Leeds City Council,30/06/2022,Children and Families,Social Care,Agency Payments,Placement Support,550,11/05/2022,2206-00509,0.00,8.75,R,Airpay 41731538-Amber Car,Yes
Http://opendatacommunities.org/id/metropolitan-district-council/leeds,Leeds City Council,30/06/2022,Children and Families,Social Care,Agency Payments,Placement Support,550,11/05/2022,2206-00510,0.00,7.85,R,Airpay 41731584-Amber Car,Yes
Http://opendatacommunities.org/id/metropolitan-district-council/leeds,Leeds City Council,30/06/2022,Children and Families,Social Care,Transport,Public Transport Expenses,310,12/05/2022,2206-00511,0.00,14.75,R,Airpay 41741747-Amber Car,Yes
Http://opendatacommunities.org/id/metropolitan-district-council/leeds,Leeds City Council,30/06/2022,Children and Families,Social Care,Supplies and Services,General Amenity For Clients/Residents,285,12/05/2022,2206-00512,0.00,10.65,R,Airpay 41741755-Amber Car,Yes
Http://opendatacommunities.org/id/metropolitan-district-council/leeds,Leeds City Council,30/06/2022,Adults and Health,Assessment And Care Management,Transport,Public Transport Expenses,310,17/05/2022,2206-00513,0.00,28.05,R,Airpay 41798978-Amber Car,Yes
Http://opendatacommunities.org/id/metropolitan-district-council/leeds,Leeds City Council,30/06/2022,Children and Families,Social Care,Transport,Public Transport Expenses,310,23/05/2022,2206-00514,0.00,14.75,R,Airpay 41832754-Amber Car,Yes
Http://opendatacommunities.org/id/metropolitan-district-council/leeds,Leeds City Council,30/06/2022,Children and Families,Social Care,Transport,Public Transport Expenses,310,23/05/2022,2206-00515,0.00,14.35,R,Airpay 41833236-Amber Car,Yes
Http://opendatacommunities.org/id/metropolitan-district-council/leeds,Leeds City Council,30/06/2022,Strategic Landlord,Housing Management,Employees,Training & Development,70,29/06/2022,2206-00516,0.00,1696.13,R,Airtech Environmental Systems,No
Http://opendatacommunities.org/id/metropolitan-district-council/leeds,Leeds City Council,30/06/2022,Adults and Health,Services For Adults Under 65 Mental/Dis,Agency Payments,Fees - Level 4,520,01/06/2022,2206-00517,0.00,175.00,R,AIT Mitra Limited,No
Http://opendatacommunities.org/id/metropolitan-district-council/leeds,Leeds City Council,30/06/2022,Adults and Health,Services For Adults Under 65 Mental/Dis,Agency Payments,Fees - Level 4,520,10/06/2022,2206-00518,0.00,175.00,R,AIT Mitra Limited,No
Http://opendatacommunities.org/id/metropolitan-district-council/leeds,Leeds City Council,30/06/2022,Adults and Health,Services For Adults Under 65 Mental/Dis,Agency Payments,Fees - Level 4,520,10/06/2022,2206-00519,0.00,175.00,R,AIT Mitra Limited,No
Http://opendatacommunities.org/id/metropolitan-district-council/leeds,Leeds City Council,30/06/2022,Adults and Health,Services For Adults Under 65 Mental/Dis,Agency Payments,Fees - Level 4,520,10/06/2022,2206-00520,0.00,175.00,R,AIT Mitra Limited,No
Http://opendatacommunities.org/id/metropolitan-district-council/leeds,Leeds City Council,30/06/2022,Adults and Health,Services For Adults Under 65 Mental/Dis,Agency Payments,Fees - Level 4,520,17/06/2022,2206-00521,0.00,175.00,R,AIT Mitra Limited,No
Http://opendatacommunities.org/id/metropolitan-district-council/leeds,Leeds City Council,30/06/2022,Adults and Health,Services For Adults Under 65 Mental/Dis,Agency Payments,Fees - Level 4,520,17/06/2022,2206-00522,0.00,175.00,R,AIT Mitra Limited,No
Http://opendatacommunities.org/id/metropolitan-district-council/leeds,Leeds City Council,30/06/2022,Adults and Health,Services For Adults Under 65 Mental/Dis,Agency Payments,Fees - Level 4,520,23/06/2022,2206-00523,0.00,175.00,R,AIT Mitra Limited,No
Http://opendatacommunities.org/id/metropolitan-district-council/leeds,Leeds City Council as Accountable Body,30/06/2022,Social Services Pooled Budgets,Jcs For People With Learning Disabilitie,Agency Payments,Residential,580,22/06/2022,2206-00524,0.00,7082.20,R,AITCH care homes,No
Http://opendatacommunities.org/id/metropolitan-district-council/leeds,Leeds City Council,30/06/2022,Resources,Commercial Services,Supplies and Services,Other Hired And Contracted Services,265,01/06/2022,2206-00525,0.00,4125.00,R,REDACTED PERSONAL DATA,No
Http://opendatacommunities.org/id/metropolitan-district-council/leeds,Leeds City Council,30/06/2022,Resources,Commercial Services,Supplies and Services,Other Hired And Contracted Services,265,23/06/2022,2206-00526,0.00,600.00,R,REDACTED PERSONAL DATA,No
Http://opendatacommunities.org/id/metropolitan-district-council/leeds,Leeds City Council as Accountable Body,30/06/2022,Social Services Pooled Budgets,Jcs For People With Learning Disabilitie,Agency Payments,Home Care,568,10/06/2022,2206-00527,0.00,185.70,R,Aj Social Care Recruitment Ltd,No
Http://opendatacommunities.org/id/metropolitan-district-council/leeds,Leeds City Council,30/06/2022,Resources,Leeds Building Services,Supplies and Services,Operational Furniture And Equipment,203,01/06/2022,2206-00528,0.00,359.16,R,AJM FIXINGS & POWER TOOLS LTD,No
Http://opendatacommunities.org/id/metropolitan-district-council/leeds,Leeds City Council,30/06/2022,Resources,Leeds Building Services,Supplies and Services,Operational Furniture And Equipment,203,01/06/2022,2206-00529,0.00,259.00,R,AJM FIXINGS & POWER TOOLS LTD,No
Http://opendatacommunities.org/id/metropolitan-district-council/leeds,Leeds City Council,30/06/2022,Resources,Leeds Building Services,Supplies and Services,Operational Furniture And Equipment,203,01/06/2022,2206-00530,0.00,259.00,R,AJM FIXINGS & POWER TOOLS LTD,No
Http://opendatacommunities.org/id/metropolitan-district-council/leeds,Leeds City Council,30/06/2022,Resources,Leeds Building Services,Supplies and Services,Operational Furniture And Equipment,203,01/06/2022,2206-00531,0.00,259.00,R,AJM FIXINGS & POWER TOOLS LTD,No
Http://opendatacommunities.org/id/metropolitan-district-council/leeds,Leeds City Council,30/06/2022,Resources,Leeds Building Services,Premises,Cleaning Maintenance & Toiletries,127,01/06/2022,2206-00532,0.00,199.66,R,AJM FIXINGS & POWER TOOLS LTD,No
Http://opendatacommunities.org/id/metropolitan-district-council/leeds,Leeds City Council,30/06/2022,Resources,Leeds Building Services,Supplies and Services,Operational Furniture And Equipment,203,09/06/2022,2206-00533,0.00,18.00,R,AJM FIXINGS & POWER TOOLS LTD,No
Http://opendatacommunities.org/id/metropolitan-district-council/leeds,Leeds City Council,30/06/2022,Resources,Leeds Building Services,Supplies and Services,Operational Furniture And Equipment,203,09/06/2022,2206-00534,0.00,359.16,R,AJM FIXINGS & POWER TOOLS LTD,No
Http://opendatacommunities.org/id/metropolitan-district-council/leeds,Leeds City Council,30/06/2022,Resources,Leeds Building Services,Premises,Cleaning Maintenance & Toiletries,127,09/06/2022,2206-00535,0.00,599.76,R,AJM FIXINGS & POWER TOOLS LTD,No
Http://opendatacommunities.org/id/metropolitan-district-council/leeds,Leeds City Council,30/06/2022,Resources,Leeds Building Services,Supplies and Services,Operational Furniture And Equipment,203,09/06/2022,2206-00536,0.00,259.00,R,AJM FIXINGS & POWER TOOLS LTD,No
Http://opendatacommunities.org/id/metropolitan-district-council/leeds,Leeds City Council,30/06/2022,Resources,Leeds Building Services,Supplies and Services,Operational Furniture And Equipment,203,13/06/2022,2206-00537,0.00,147.20,R,AJM FIXINGS & POWER TOOLS LTD,No
Http://opendatacommunities.org/id/metropolitan-district-council/leeds,Leeds City Council,30/06/2022,Resources,Leeds Building Services,Supplies and Services,Operational Furniture And Equipment,203,13/06/2022,2206-00538,0.00,444.99,R,AJM FIXINGS & POWER TOOLS LTD,No
Http://opendatacommunities.org/id/metropolitan-district-council/leeds,Leeds City Council,30/06/2022,Resources,Leeds Building Services,Supplies and Services,Operational Furniture And Equipment,203,13/06/2022,2206-00539,0.00,168.10,R,AJM FIXINGS & POWER TOOLS LTD,No
Http://opendatacommunities.org/id/metropolitan-district-council/leeds,Leeds City Council,30/06/2022,Resources,Leeds Building Services,Supplies and Services,Operational Furniture And Equipment,203,13/06/2022,2206-00540,0.00,964.64,R,AJM FIXINGS & POWER TOOLS LTD,No
Http://opendatacommunities.org/id/metropolitan-district-council/leeds,Leeds City Council,30/06/2022,Resources,Leeds Building Services,Supplies and Services,Operational Furniture And Equipment,203,13/06/2022,2206-00541,0.00,225.10,R,AJM FIXINGS & POWER TOOLS LTD,No
Http://opendatacommunities.org/id/metropolitan-district-council/leeds,Leeds City Council,30/06/2022,Resources,Leeds Building Services,Supplies and Services,Operational Furniture And Equipment,203,13/06/2022,2206-00542,0.00,149.92,R,AJM FIXINGS & POWER TOOLS LTD,No
Http://opendatacommunities.org/id/metropolitan-district-council/leeds,Leeds City Council,30/06/2022,Resources,Leeds Building Services,Supplies and Services,Operational Furniture And Equipment,203,13/06/2022,2206-00543,0.00,151.66,R,AJM FIXINGS & POWER TOOLS LTD,No
Http://opendatacommunities.org/id/metropolitan-district-council/leeds,Leeds City Council,30/06/2022,Resources,Leeds Building Services,Supplies and Services,Operational Furniture And Equipment,203,13/06/2022,2206-00544,0.00,92.89,R,AJM FIXINGS & POWER TOOLS LTD,No
Http://opendatacommunities.org/id/metropolitan-district-council/leeds,Leeds City Council,30/06/2022,Resources,Leeds Building Services,Supplies and Services,Operational Furniture And Equipment,203,13/06/2022,2206-00545,0.00,149.23,R,AJM FIXINGS & POWER TOOLS LTD,No
Http://opendatacommunities.org/id/metropolitan-district-council/leeds,Leeds City Council,30/06/2022,Resources,Leeds Building Services,Supplies and Services,Operational Furniture And Equipment,203,13/06/2022,2206-00546,0.00,113.84,R,AJM FIXINGS & POWER TOOLS LTD,No
Http://opendatacommunities.org/id/metropolitan-district-council/leeds,Leeds City Council,30/06/2022,Resources,Leeds Building Services,Supplies and Services,Operational Materials,205,13/06/2022,2206-00547,0.00,24.95,R,AJM FIXINGS & POWER TOOLS LTD,No
Http://opendatacommunities.org/id/metropolitan-district-council/leeds,Leeds City Council,30/06/2022,Resources,Leeds Building Services,Supplies and Services,Operational Furniture And Equipment,203,13/06/2022,2206-00548,0.00,82.15,R,AJM FIXINGS & POWER TOOLS LTD,No
Http://opendatacommunities.org/id/metropolitan-district-council/leeds,Leeds City Council,30/06/2022,Resources,Leeds Building Services,Premises,Cleaning Maintenance & Toiletries,127,13/06/2022,2206-00549,0.00,168.10,R,AJM FIXINGS & POWER TOOLS LTD,No
Http://opendatacommunities.org/id/metropolitan-district-council/leeds,Leeds City Council,30/06/2022,Resources,Leeds Building Services,Premises,Cleaning Maintenance & Toiletries,127,16/06/2022,2206-00550,0.00,325.00,R,AJM FIXINGS & POWER TOOLS LTD,No
Http://opendatacommunities.org/id/metropolitan-district-council/leeds,Leeds City Council,30/06/2022,Resources,Leeds Building Services,Supplies and Services,Operational Furniture And Equipment,203,16/06/2022,2206-00551,0.00,439.80,R,AJM FIXINGS & POWER TOOLS LTD,No
Http://opendatacommunities.org/id/metropolitan-district-council/leeds,Leeds City Council,30/06/2022,Resources,Leeds Building Services,Premises,Cleaning Maintenance & Toiletries,127,16/06/2022,2206-00552,0.00,323.70,R,AJM FIXINGS & POWER TOOLS LTD,No
Http://opendatacommunities.org/id/metropolitan-district-council/leeds,Leeds City Council,30/06/2022,Resources,Leeds Building Services,Premises,Cleaning Maintenance & Toiletries,127,16/06/2022,2206-00553,0.00,432.16,R,AJM FIXINGS & POWER TOOLS LTD,No
Http://opendatacommunities.org/id/metropolitan-district-council/leeds,Leeds City Council,30/06/2022,Resources,Leeds Building Services,Supplies and Services,Operational Furniture And Equipment,203,16/06/2022,2206-00554,0.00,259.00,R,AJM FIXINGS & POWER TOOLS LTD,No
Http://opendatacommunities.org/id/metropolitan-district-council/leeds,Leeds City Council,30/06/2022,Resources,Leeds Building Services,Supplies and Services,Operational Furniture And Equipment,203,17/06/2022,2206-00555,0.00,525.00,R,AJM FIXINGS & POWER TOOLS LTD,No
Http://opendatacommunities.org/id/metropolitan-district-council/leeds,Leeds City Council,30/06/2022,Resources,Leeds Building Services,Supplies and Services,Operational Furniture And Equipment,203,17/06/2022,2206-00556,0.00,207.30,R,AJM FIXINGS & POWER TOOLS LTD,No
Http://opendatacommunities.org/id/metropolitan-district-council/leeds,Leeds City Council,30/06/2022,Resources,Leeds Building Services,Supplies and Services,Operational Furniture And Equipment,203,17/06/2022,2206-00557,0.00,253.29,R,AJM FIXINGS & POWER TOOLS LTD,No
Http://opendatacommunities.org/id/metropolitan-district-council/leeds,Leeds City Council,30/06/2022,Resources,Leeds Building Services,Supplies and Services,Operational Furniture And Equipment,203,17/06/2022,2206-00558,0.00,55.00,R,AJM FIXINGS & POWER TOOLS LTD,No
Http://opendatacommunities.org/id/metropolitan-district-council/leeds,Leeds City Council,30/06/2022,Resources,Leeds Building Services,Supplies and Services,Operational Furniture And Equipment,203,17/06/2022,2206-00559,0.00,519.00,R,AJM FIXINGS & POWER TOOLS LTD,No
Http://opendatacommunities.org/id/metropolitan-district-council/leeds,Leeds City Council,30/06/2022,Resources,Leeds Building Services,Supplies and Services,Operational Furniture And Equipment,203,17/06/2022,2206-00560,0.00,304.95,R,AJM FIXINGS & POWER TOOLS LTD,No
Http://opendatacommunities.org/id/metropolitan-district-council/leeds,Leeds City Council,30/06/2022,Resources,Leeds Building Services,Premises,Cleaning Maintenance & Toiletries,127,17/06/2022,2206-00561,0.00,163.00,R,AJM FIXINGS & POWER TOOLS LTD,No
Http://opendatacommunities.org/id/metropolitan-district-council/leeds,Leeds City Council,30/06/2022,Resources,Leeds Building Services,Supplies and Services,Operational Furniture And Equipment,203,17/06/2022,2206-00562,0.00,499.95,R,AJM FIXINGS & POWER TOOLS LTD,No
Http://opendatacommunities.org/id/metropolitan-district-council/leeds,Leeds City Council,30/06/2022,Resources,Leeds Building Services,Supplies and Services,Operational Furniture And Equipment,203,22/06/2022,2206-00563,0.00,304.95,R,AJM FIXINGS & POWER TOOLS LTD,No
Http://opendatacommunities.org/id/metropolitan-district-council/leeds,Leeds City Council,30/06/2022,Resources,Leeds Building Services,Supplies and Services,Operational Furniture And Equipment,203,22/06/2022,2206-00564,0.00,29.00,R,AJM FIXINGS & POWER TOOLS LTD,No
Http://opendatacommunities.org/id/metropolitan-district-council/leeds,Leeds City Council,30/06/2022,Resources,Leeds Building Services,Supplies and Services,Operational Furniture And Equipment,203,22/06/2022,2206-00565,0.00,209.00,R,AJM FIXINGS & POWER TOOLS LTD,No
Http://opendatacommunities.org/id/metropolitan-district-council/leeds,Leeds City Council,30/06/2022,Resources,Leeds Building Services,Supplies and Services,Operational Furniture And Equipment,203,22/06/2022,2206-00566,0.00,37.99,R,AJM FIXINGS & POWER TOOLS LTD,No
Http://opendatacommunities.org/id/metropolitan-district-council/leeds,Leeds City Council,30/06/2022,Resources,Leeds Building Services,Supplies and Services,Operational Furniture And Equipment,203,22/06/2022,2206-00567,0.00,359.16,R,AJM FIXINGS & POWER TOOLS LTD,No
Http://opendatacommunities.org/id/metropolitan-district-council/leeds,Leeds City Council,30/06/2022,Resources,Leeds Building Services,Premises,Cleaning Maintenance & Toiletries,127,22/06/2022,2206-00568,0.00,207.30,R,AJM FIXINGS & POWER TOOLS LTD,No
Http://opendatacommunities.org/id/metropolitan-district-council/leeds,Leeds City Council,30/06/2022,Resources,Leeds Building Services,Premises,Cleaning Maintenance & Toiletries,127,22/06/2022,2206-00569,0.00,42.70,R,AJM FIXINGS & POWER TOOLS LTD,No
Http://opendatacommunities.org/id/metropolitan-district-council/leeds,Leeds City Council,30/06/2022,Resources,Leeds Building Services,Premises,Cleaning Maintenance & Toiletries,127,22/06/2022,2206-00570,0.00,260.00,R,AJM FIXINGS & POWER TOOLS LTD,No
Http://opendatacommunities.org/id/metropolitan-district-council/leeds,Leeds City Council,30/06/2022,Resources,Leeds Building Services,Premises,Cleaning Maintenance & Toiletries,127,24/06/2022,2206-00571,0.00,167.16,R,AJM FIXINGS & POWER TOOLS LTD,No
Http://opendatacommunities.org/id/metropolitan-district-council/leeds,Leeds City Council,30/06/2022,Children and Families,Social Care,Appropriations,Leaving Care Allowances,634,13/05/2022,2206-00572,0.00,10.50,R,Ak Bubble Tea,Yes
Http://opendatacommunities.org/id/metropolitan-district-council/leeds,Leeds City Council,30/06/2022,Children and Families,Social Care,Supplies and Services,General Amenity For Clients/Residents,285,30/06/2022,2206-00573,0.00,29.80,R,REDACTED PERSONAL DATA,No
Http://opendatacommunities.org/id/metropolitan-district-council/leeds,Leeds City Council,30/06/2022,Children and Families,Social Care,Transport,Public Transport Expenses,310,30/06/2022,2206-00574,0.00,6.40,R,REDACTED PERSONAL DATA,No
Http://opendatacommunities.org/id/metropolitan-district-council/leeds,Leeds City Council,30/06/2022,Communities Housing and Environment,Strategic Housing Partnership & Support,Capital,CONSTRUCTION,3,06/06/2022,2206-00575,0.00,10000.00,C,AKR Construction Ltd,No
Http://opendatacommunities.org/id/metropolitan-district-council/leeds,Leeds City Council,30/06/2022,Communities Housing and Environment,Strategic Housing Partnership & Support,Capital,CONSTRUCTION,3,06/06/2022,2206-00576,0.00,5000.00,C,AKR Construction Ltd,No
Http://opendatacommunities.org/id/metropolitan-district-council/leeds,Leeds City Council,30/06/2022,Children and Families,Social Care,Appropriations,16 Plus Top Up Allowance,625,28/06/2022,2206-00577,0.00,20.00,R,REDACTED PERSONAL DATA,No
Http://opendatacommunities.org/id/metropolitan-district-council/leeds,Leeds City Council,30/06/2022,Children and Families,Social Care,Appropriations,Leaving Care Allowances,634,28/06/2022,2206-00578,0.00,51.05,R,REDACTED PERSONAL DATA,No
Http://opendatacommunities.org/id/metropolitan-district-council/leeds,Leeds City Council,30/06/2022,City Development,Libraries Arts & Heritage,Supplies and Services,Other Hired And Contracted Services,265,09/05/2022,2206-00579,0.00,270.71,R,Akzonobel,Yes
Http://opendatacommunities.org/id/metropolitan-district-council/leeds,Leeds City Council,30/06/2022,City Development,Libraries Arts & Heritage,Premises,Maintenance Of Buildings,101,10/05/2022,2206-00580,0.00,254.58,R,Akzonobel,Yes
Http://opendatacommunities.org/id/metropolitan-district-council/leeds,Leeds City Council,30/06/2022,Communities Housing and Environment,Car Parking Services,External Income,Penalties Fines & Car Parking Charges,934,13/06/2022,2206-00581,0.00,30.00,R,REDACTED PERSONAL DATA,No
Http://opendatacommunities.org/id/metropolitan-district-council/leeds,Leeds City Council,30/06/2022,Adults and Health,Services For Older People - 65 And Over,Supplies and Services,Operational Furniture And Equipment,203,11/05/2022,2206-00582,0.00,125.00,R,Alams Beautiful Blinds,Yes
Http://opendatacommunities.org/id/metropolitan-district-council/leeds,Leeds City Council,30/06/2022,Adults and Health,Services For Older People - 65 And Over,Supplies and Services,Operational Furniture And Equipment,203,11/05/2022,2206-00583,0.00,125.00,R,Alams Beautiful Blinds,Yes
Http://opendatacommunities.org/id/metropolitan-district-council/leeds,Leeds City Council,30/06/2022,City Development,Libraries Arts & Heritage,Supplies and Services,Other Hired And Contracted Services,265,05/05/2022,2206-00584,0.00,185.00,R,Alamy.Com Limited,Yes
Http://opendatacommunities.org/id/metropolitan-district-council/leeds,Leeds City Council,30/06/2022,Resources,Democratic Services,Appropriations,Civic Allowances,651,05/05/2022,2206-00585,0.00,85.00,R,Alan Brown Flowers,Yes
Http://opendatacommunities.org/id/metropolitan-district-council/leeds,Leeds City Council,30/06/2022,Resources,Democratic Services,Appropriations,Civic Allowances,651,10/05/2022,2206-00586,0.00,105.00,R,Alan Brown Flowers,Yes
Http://opendatacommunities.org/id/metropolitan-district-council/leeds,Leeds City Council,30/06/2022,Resources,Democratic Services,Appropriations,Civic Allowances,651,25/05/2022,2206-00587,0.00,240.00,R,Alan Brown Flowers,Yes
Http://opendatacommunities.org/id/metropolitan-district-council/leeds,Leeds City Council,30/06/2022,Children and Families,Social Care,Agency Payments,Services Rendered By Other Organisations,511,01/06/2022,2206-00588,0.00,372.84,R,REDACTED PERSONAL DATA,No
Http://opendatacommunities.org/id/metropolitan-district-council/leeds,Leeds City Council,30/06/2022,City Development,Recreation,Supplies and Services,Operational Furniture And Equipment,203,09/06/2022,2206-00589,0.00,900.00,R,Alb Bounce,No
Http://opendatacommunities.org/id/metropolitan-district-council/leeds,Leeds City Council,30/06/2022,Children and Families,Social Care,Appropriations,Leaving Care Allowances,634,03/05/2022,2206-00590,0.00,50.46,R,Aldi,Yes
Http://opendatacommunities.org/id/metropolitan-district-council/leeds,Leeds City Council,30/06/2022,Children and Families,Social Care,Appropriations,Leaving Care Allowances,634,18/05/2022,2206-00591,0.00,11.07,R,Aldi,Yes
Http://opendatacommunities.org/id/metropolitan-district-council/leeds,Leeds City Council,30/06/2022,Communities Housing and Environment,Parks and Countryside,Supplies and Services,Food & Drink,231,17/05/2022,2206-00592,0.00,18.90,R,Aldi 103 779,Yes
Http://opendatacommunities.org/id/metropolitan-district-council/leeds,Leeds City Council,30/06/2022,Children and Families,Social Care,Supplies and Services,Food & Drink,231,19/05/2022,2206-00593,0.00,5.22,R,Aldi 40 779,Yes
Http://opendatacommunities.org/id/metropolitan-district-council/leeds,Leeds City Council,30/06/2022,Children and Families,Social Care,Appropriations,Leaving Care Allowances,634,27/05/2022,2206-00594,0.00,49.79,R,Aldi 40 779,Yes
Http://opendatacommunities.org/id/metropolitan-district-council/leeds,Leeds City Council,30/06/2022,City Development,Recreation,Supplies and Services,Operational Materials,205,03/05/2022,2206-00595,0.00,12.08,R,Aldi 49 779,Yes
Http://opendatacommunities.org/id/metropolitan-district-council/leeds,Leeds City Council,30/06/2022,Children and Families,Social Care,Supplies and Services,Teaching Materials,202,12/05/2022,2206-00596,0.00,59.99,R,Aldi 49 779,Yes
Http://opendatacommunities.org/id/metropolitan-district-council/leeds,Leeds City Council,30/06/2022,Children and Families,Social Care,Supplies and Services,Food & Drink,231,23/05/2022,2206-00597,0.00,28.54,R,Aldi 49 779,Yes
Http://opendatacommunities.org/id/metropolitan-district-council/leeds,Leeds City Council,30/06/2022,Children and Families,Social Care,Appropriations,Leaving Care Allowances,634,03/05/2022,2206-00598,0.00,24.38,R,Aldi 71 779,Yes
Http://opendatacommunities.org/id/metropolitan-district-council/leeds,Leeds City Council,30/06/2022,Children and Families,Social Care,Supplies and Services,Books & Audio-Visual Materials,206,25/05/2022,2206-00599,0.00,6.70,R,Aldi 71 779,Yes
Http://opendatacommunities.org/id/metropolitan-district-council/leeds,Leeds City Council,30/06/2022,Adults and Health,Services For Older People - 65 And Over,Premises,Cleaning Maintenance & Toiletries,127,11/05/2022,2206-00600,0.00,45.15,R,Aldi 779-126,Yes
Http://opendatacommunities.org/id/metropolitan-district-council/leeds,Leeds City Council,30/06/2022,Adults and Health,Services For Older People - 65 And Over,Premises,Cleaning Maintenance & Toiletries,127,13/05/2022,2206-00601,0.00,61.77,R,Aldi 779-126,Yes
Http://opendatacommunities.org/id/metropolitan-district-council/leeds,Leeds City Council,30/06/2022,Children and Families,Social Care,Appropriations,Young Peoples Activities,652,17/05/2022,2206-00602,0.00,2.86,R,Aldi 779-126,Yes
Http://opendatacommunities.org/id/metropolitan-district-council/leeds,Leeds City Council,30/06/2022,Children and Families,Social Care,Supplies and Services,General Amenity For Clients/Residents,285,07/05/2022,2206-00603,0.00,83.33,R,Aldi 85 779,Yes
Http://opendatacommunities.org/id/metropolitan-district-council/leeds,Leeds City Council,30/06/2022,Children and Families,Social Care,Supplies and Services,General Amenity For Clients/Residents,285,07/05/2022,2206-00604,0.00,125.00,R,Aldi 85 779,Yes
Http://opendatacommunities.org/id/metropolitan-district-council/leeds,Leeds City Council,30/06/2022,Children and Families,Social Care,Supplies and Services,Food & Drink,231,18/05/2022,2206-00605,0.00,5.98,R,Aldi 85 779,Yes
Http://opendatacommunities.org/id/metropolitan-district-council/leeds,Leeds City Council,30/06/2022,Resources,Commercial Services,Supplies and Services,Food & Drink,231,22/05/2022,2206-00606,0.00,17.34,R,Aldi 85 779,Yes
Http://opendatacommunities.org/id/metropolitan-district-council/leeds,Leeds City Council,30/06/2022,Children and Families,Social Care,Supplies and Services,Food & Drink,231,29/04/2022,2206-00607,0.00,62.56,R,Aldi 89 779,Yes
Http://opendatacommunities.org/id/metropolitan-district-council/leeds,Leeds City Council,30/06/2022,Children and Families,Social Care,Supplies and Services,Food & Drink,231,01/05/2022,2206-00608,0.00,192.11,R,Aldi 89 779,Yes
Http://opendatacommunities.org/id/metropolitan-district-council/leeds,Leeds City Council,30/06/2022,Children and Families,Social Care,Supplies and Services,Food & Drink,231,02/05/2022,2206-00609,0.00,13.38,R,Aldi 89 779,Yes
Http://opendatacommunities.org/id/metropolitan-district-council/leeds,Leeds City Council,30/06/2022,Children and Families,Social Care,Supplies and Services,Food & Drink,231,05/05/2022,2206-00610,0.00,3.57,R,Aldi 89 779,Yes
Http://opendatacommunities.org/id/metropolitan-district-council/leeds,Leeds City Council,30/06/2022,Children and Families,Social Care,Supplies and Services,Food & Drink,231,07/05/2022,2206-00611,0.00,236.44,R,Aldi 89 779,Yes
Http://opendatacommunities.org/id/metropolitan-district-council/leeds,Leeds City Council,30/06/2022,Children and Families,Social Care,Supplies and Services,Food & Drink,231,07/05/2022,2206-00612,0.00,61.88,R,Aldi 89 779,Yes
Http://opendatacommunities.org/id/metropolitan-district-council/leeds,Leeds City Council,30/06/2022,Children and Families,Social Care,Supplies and Services,Food & Drink,231,16/05/2022,2206-00613,0.00,163.15,R,Aldi 89 779,Yes
Http://opendatacommunities.org/id/metropolitan-district-council/leeds,Leeds City Council,30/06/2022,Children and Families,Social Care,Supplies and Services,Food & Drink,231,18/05/2022,2206-00614,0.00,12.03,R,Aldi 89 779,Yes
Http://opendatacommunities.org/id/metropolitan-district-council/leeds,Leeds City Council,30/06/2022,Children and Families,Social Care,Supplies and Services,Food & Drink,231,22/05/2022,2206-00615,0.00,166.64,R,Aldi 89 779,Yes
Http://opendatacommunities.org/id/metropolitan-district-council/leeds,Leeds City Council,30/06/2022,Children and Families,Social Care,Supplies and Services,Food & Drink,231,28/05/2022,2206-00616,0.00,41.41,R,Aldi 89 779,Yes
Http://opendatacommunities.org/id/metropolitan-district-council/leeds,Leeds City Council,30/06/2022,Children and Families,Social Care,Appropriations,Leaving Care Allowances,634,30/05/2022,2206-00617,0.00,17.99,R,Aldi 89 779,Yes
Http://opendatacommunities.org/id/metropolitan-district-council/leeds,Leeds City Council,30/06/2022,Children and Families,Social Care,Supplies and Services,Food & Drink,231,30/05/2022,2206-00618,0.00,163.38,R,Aldi 89 779,Yes
Http://opendatacommunities.org/id/metropolitan-district-council/leeds,Leeds City Council,30/06/2022,Adults and Health,Services For Older People - 65 And Over,Supplies and Services,Food & Drink,231,29/05/2022,2206-00619,0.00,5.98,R,Aldi 94 779,Yes
Http://opendatacommunities.org/id/metropolitan-district-council/leeds,Leeds City Council,30/06/2022,Communities Housing and Environment,Parks and Countryside,Supplies and Services,Food & Drink,231,30/04/2022,2206-00620,0.00,16.56,R,Aldi 99 779,Yes
Http://opendatacommunities.org/id/metropolitan-district-council/leeds,Leeds City Council,30/06/2022,Children and Families,Social Care,Appropriations,Leaving Care Allowances,634,05/05/2022,2206-00621,0.00,57.28,R,Aldi Stores,Yes
Http://opendatacommunities.org/id/metropolitan-district-council/leeds,Leeds City Council,30/06/2022,Children and Families,Social Care,Appropriations,Leaving Care Allowances,634,18/05/2022,2206-00622,0.00,12.36,R,Aldi Stores,Yes
Http://opendatacommunities.org/id/metropolitan-district-council/leeds,Leeds City Council,30/06/2022,Communities Housing and Environment,Communities,Supplies and Services,Operational Materials,205,28/05/2022,2206-00623,0.00,24.95,R,Aldi Stores,Yes
Http://opendatacommunities.org/id/metropolitan-district-council/leeds,Leeds City Council,30/06/2022,Children and Families,Social Care,Agency Payments,Contact,548,16/06/2022,2206-00624,0.00,36.90,R,REDACTED PERSONAL DATA,No
Http://opendatacommunities.org/id/metropolitan-district-council/leeds,Leeds City Council,30/06/2022,Children and Families,Social Care,Agency Payments,Contact,548,20/06/2022,2206-00625,0.00,36.90,R,REDACTED PERSONAL DATA,No
Http://opendatacommunities.org/id/metropolitan-district-council/leeds,Leeds City Council,30/06/2022,Children and Families,Social Care,Agency Payments,Contact,548,27/06/2022,2206-00626,0.00,36.90,R,REDACTED PERSONAL DATA,No
Http://opendatacommunities.org/id/metropolitan-district-council/leeds,Leeds City Council,30/06/2022,Communities Housing and Environment,Customer Access,Supplies and Services,Bought In Professional Services,277,29/06/2022,2206-00627,0.00,26.30,R,Alena Zueva,No
Http://opendatacommunities.org/id/metropolitan-district-council/leeds,Leeds City Council,30/06/2022,Resources,Commercial Services,Supplies and Services,Other Hired And Contracted Services,265,01/06/2022,2206-00628,0.00,70.00,R,ALEX WAGG,No
Http://opendatacommunities.org/id/metropolitan-district-council/leeds,Leeds City Council,30/06/2022,Resources,Commercial Services,Supplies and Services,Other Hired And Contracted Services,265,01/06/2022,2206-00629,0.00,80.00,R,ALEX WAGG,No
Http://opendatacommunities.org/id/metropolitan-district-council/leeds,Leeds City Council,30/06/2022,Resources,Commercial Services,Supplies and Services,Other Hired And Contracted Services,265,08/06/2022,2206-00630,0.00,70.00,R,ALEX WAGG,No
Http://opendatacommunities.org/id/metropolitan-district-council/leeds,Leeds City Council,30/06/2022,Resources,Commercial Services,Supplies and Services,Other Hired And Contracted Services,265,08/06/2022,2206-00631,0.00,260.00,R,ALEX WAGG,No
Http://opendatacommunities.org/id/metropolitan-district-council/leeds,Leeds City Council,30/06/2022,Resources,Commercial Services,Supplies and Services,Other Hired And Contracted Services,265,08/06/2022,2206-00632,0.00,260.00,R,ALEX WAGG,No
Http://opendatacommunities.org/id/metropolitan-district-council/leeds,Leeds City Council,30/06/2022,Resources,Commercial Services,Supplies and Services,Other Hired And Contracted Services,265,10/06/2022,2206-00633,0.00,70.00,R,ALEX WAGG,No
Http://opendatacommunities.org/id/metropolitan-district-council/leeds,Leeds City Council,30/06/2022,City Development,Recreation,External Income,Sporting & Other Recreational Fees,928,28/06/2022,2206-00634,0.00,47.00,R,REDACTED PERSONAL DATA,No
Http://opendatacommunities.org/id/metropolitan-district-council/leeds,Leeds City Council,30/06/2022,Adults and Health,Assessment And Care Management,Agency Payments,Residential Care Dementia,571,22/06/2022,2206-00635,0.00,3757.24,R,ALEXANDER RESIDENTIAL HOME,No
Http://opendatacommunities.org/id/metropolitan-district-council/leeds,Leeds City Council,30/06/2022,Adults and Health,Services For Older People - 65 And Over,Agency Payments,Residential Care Dementia,571,22/06/2022,2206-00636,0.00,30630.16,R,ALEXANDER RESIDENTIAL HOME,No
Http://opendatacommunities.org/id/metropolitan-district-council/leeds,Leeds City Council,30/06/2022,Adults and Health,Services For Older People - 65 And Over,Agency Payments,Residential,580,22/06/2022,2206-00637,0.00,20014.16,R,ALEXANDER RESIDENTIAL HOME,No
Http://opendatacommunities.org/id/metropolitan-district-council/leeds,Leeds City Council,30/06/2022,Children and Families,Social Care,Supplies and Services,General Amenity For Clients/Residents,285,30/06/2022,2206-00638,0.00,15.71,R,REDACTED PERSONAL DATA,No
Http://opendatacommunities.org/id/metropolitan-district-council/leeds,Leeds City Council,30/06/2022,Children and Families,Social Care,Transport,Public Transport Expenses,310,30/06/2022,2206-00639,0.00,24.80,R,REDACTED PERSONAL DATA,No
Http://opendatacommunities.org/id/metropolitan-district-council/leeds,Leeds City Council,30/06/2022,Children and Families,Social Care,Supplies and Services,Food & Drink,231,14/06/2022,2206-00640,0.00,21.85,R,REDACTED PERSONAL DATA,No
Http://opendatacommunities.org/id/metropolitan-district-council/leeds,Leeds City Council,30/06/2022,Children and Families,Social Care,Transport,External Hire -Occasional,304,14/06/2022,2206-00641,0.00,6.60,R,REDACTED PERSONAL DATA,No
Http://opendatacommunities.org/id/metropolitan-district-council/leeds,Leeds City Council,30/06/2022,Communities Housing and Environment,Customer Access,Supplies and Services,Bought In Professional Services,277,01/06/2022,2206-00642,0.00,51.00,R,Alexandra Costenco,No
Http://opendatacommunities.org/id/metropolitan-district-council/leeds,Leeds City Council,30/06/2022,Communities Housing and Environment,Customer Access,Supplies and Services,Bought In Professional Services,277,01/06/2022,2206-00643,0.00,27.00,R,Alexandra Costenco,No
Http://opendatacommunities.org/id/metropolitan-district-council/leeds,Leeds City Council,30/06/2022,Communities Housing and Environment,Customer Access,Supplies and Services,Bought In Professional Services,277,15/06/2022,2206-00644,0.00,54.00,R,Alexandra Costenco,No
Http://opendatacommunities.org/id/metropolitan-district-council/leeds,Leeds City Council,30/06/2022,Communities Housing and Environment,Customer Access,Supplies and Services,Bought In Professional Services,277,29/06/2022,2206-00645,0.00,18.00,R,Alexandra Costenco,No
Http://opendatacommunities.org/id/metropolitan-district-council/leeds,Leeds City Council,30/06/2022,Adults and Health,Services For Older People - 65 And Over,Agency Payments,Residential Care Dementia,571,22/06/2022,2206-00646,0.00,6738.60,R,ALEXANDRA COURT,No
Http://opendatacommunities.org/id/metropolitan-district-council/leeds,Leeds City Council,30/06/2022,Adults and Health,Services For Older People - 65 And Over,Agency Payments,Residential,580,22/06/2022,2206-00647,0.00,9307.80,R,ALEXANDRA COURT,No
Http://opendatacommunities.org/id/metropolitan-district-council/leeds,Leeds City Council,30/06/2022,Children and Families,Social Care,Agency Payments,Services Rendered By Other Organisations,511,01/06/2022,2206-00648,0.00,2097.22,R,REDACTED PERSONAL DATA,No
Http://opendatacommunities.org/id/metropolitan-district-council/leeds,Leeds City Council,30/06/2022,Adults and Health,Services For Older People - 65 And Over,Supplies and Services,Clothing & Uniforms,241,10/05/2022,2206-00649,0.00,140.98,R,Alexandra Website,Yes
Http://opendatacommunities.org/id/metropolitan-district-council/leeds,Leeds City Council,30/06/2022,Adults and Health,Services For Older People - 65 And Over,Supplies and Services,Clothing & Uniforms,241,18/05/2022,2206-00650,0.00,70.95,R,Alexandra Website,Yes
Http://opendatacommunities.org/id/metropolitan-district-council/leeds,Leeds City Council,30/06/2022,Children and Families,Social Care,Agency Payments,Contact,548,01/06/2022,2206-00651,0.00,20.00,R,REDACTED PERSONAL DATA,No
Http://opendatacommunities.org/id/metropolitan-district-council/leeds,Leeds City Council,30/06/2022,Children and Families,Social Care,Agency Payments,Contact,548,10/06/2022,2206-00652,0.00,20.00,R,REDACTED PERSONAL DATA,No
Http://opendatacommunities.org/id/metropolitan-district-council/leeds,Leeds City Council,30/06/2022,Children and Families,Social Care,Agency Payments,Contact,548,17/06/2022,2206-00653,0.00,20.00,R,REDACTED PERSONAL DATA,No
Http://opendatacommunities.org/id/metropolitan-district-council/leeds,Leeds City Council,30/06/2022,Communities Housing and Environment,Parks and Countryside,Supplies and Services,Other Hired And Contracted Services,265,15/06/2022,2206-00654,0.00,2770.00,R,Alfred Bagnall & Sons (Leeds) Ltd,No
Http://opendatacommunities.org/id/metropolitan-district-council/leeds,Leeds City Council,30/06/2022,Resources,Leeds Building Services,Supplies and Services,Other Hired And Contracted Services,265,17/06/2022,2206-00655,0.00,550.00,R,Alfred Bagnall & Sons (Leeds) Ltd,No
Http://opendatacommunities.org/id/metropolitan-district-council/leeds,Leeds City Council,30/06/2022,Resources,Leeds Building Services,Supplies and Services,Other Hired And Contracted Services,265,17/06/2022,2206-00656,0.00,7660.00,R,Alfred Bagnall & Sons (Leeds) Ltd,No
Http://opendatacommunities.org/id/metropolitan-district-council/leeds,Leeds City Council,30/06/2022,Resources,Leeds Building Services,Supplies and Services,Other Hired And Contracted Services,265,24/06/2022,2206-00657,0.00,1100.00,R,Alfred Bagnall & Sons (Leeds) Ltd,No
Http://opendatacommunities.org/id/metropolitan-district-council/leeds,Leeds City Council,30/06/2022,Communities Housing and Environment,Customer Access,Supplies and Services,Bought In Professional Services,277,01/06/2022,2206-00658,0.00,18.00,R,Ali Pourakaberian,No
Http://opendatacommunities.org/id/metropolitan-district-council/leeds,Leeds City Council,30/06/2022,Communities Housing and Environment,Customer Access,Supplies and Services,Bought In Professional Services,277,09/06/2022,2206-00659,0.00,27.00,R,Ali Pourakaberian,No
Http://opendatacommunities.org/id/metropolitan-district-council/leeds,Leeds City Council,30/06/2022,City Development,Recreation,External Income,Sporting & Other Recreational Fees,928,28/06/2022,2206-00660,0.00,88.00,R,REDACTED PERSONAL DATA,No
Http://opendatacommunities.org/id/metropolitan-district-council/leeds,Leeds City Council,30/06/2022,City Development,Recreation,Supplies and Services,Bought In Professional Services,277,10/06/2022,2206-00661,0.00,80.00,R,Alice M Richardson,No
Http://opendatacommunities.org/id/metropolitan-district-council/leeds,Leeds City Council,30/06/2022,City Development,Recreation,Supplies and Services,Bought In Professional Services,277,16/06/2022,2206-00662,0.00,60.00,R,Alice M Richardson,No
Http://opendatacommunities.org/id/metropolitan-district-council/leeds,Leeds City Council,30/06/2022,City Development,Recreation,Supplies and Services,Bought In Professional Services,277,29/06/2022,2206-00663,0.00,40.00,R,Alice M Richardson,No
Http://opendatacommunities.org/id/metropolitan-district-council/leeds,Leeds City Council,30/06/2022,City Development,Recreation,Supplies and Services,Bought In Professional Services,277,29/06/2022,2206-00664,0.00,80.00,R,Alice M Richardson,No
Http://opendatacommunities.org/id/metropolitan-district-council/leeds,Leeds City Council,30/06/2022,City Development,Recreation,Supplies and Services,Bought In Professional Services,277,29/06/2022,2206-00665,0.00,80.00,R,Alice M Richardson,No
Http://opendatacommunities.org/id/metropolitan-district-council/leeds,Leeds City Council,30/06/2022,Children and Families,Social Care,Agency Payments,Allowances,546,23/06/2022,2206-00666,0.00,607.74,R,REDACTED PERSONAL DATA,No
Http://opendatacommunities.org/id/metropolitan-district-council/leeds,Leeds City Council,30/06/2022,Communities Housing and Environment,Customer Access,Supplies and Services,Bought In Professional Services,277,01/06/2022,2206-00667,0.00,22.00,R,Alina Maksakova,No
Http://opendatacommunities.org/id/metropolitan-district-council/leeds,Leeds City Council,30/06/2022,Communities Housing and Environment,Customer Access,Supplies and Services,Bought In Professional Services,277,01/06/2022,2206-00668,0.00,27.00,R,Alina Maksakova,No
Http://opendatacommunities.org/id/metropolitan-district-council/leeds,Leeds City Council,30/06/2022,Communities Housing and Environment,Customer Access,Supplies and Services,Bought In Professional Services,277,09/06/2022,2206-00669,0.00,35.00,R,Alina Maksakova,No
Http://opendatacommunities.org/id/metropolitan-district-council/leeds,Leeds City Council,30/06/2022,Communities Housing and Environment,Customer Access,Supplies and Services,Bought In Professional Services,277,09/06/2022,2206-00670,0.00,18.00,R,Alina Maksakova,No
Http://opendatacommunities.org/id/metropolitan-district-council/leeds,Leeds City Council,30/06/2022,Communities Housing and Environment,Customer Access,Supplies and Services,Bought In Professional Services,277,09/06/2022,2206-00671,0.00,30.40,R,Alina Maksakova,No
Http://opendatacommunities.org/id/metropolitan-district-council/leeds,Leeds City Council,30/06/2022,Children and Families,Social Care,Appropriations,Leaving Care Allowances,634,09/06/2022,2206-00672,0.00,244.20,R,REDACTED PERSONAL DATA,No
Http://opendatacommunities.org/id/metropolitan-district-council/leeds,Leeds City Council,30/06/2022,Children and Families,Social Care,Appropriations,Leaving Care Allowances,634,28/06/2022,2206-00673,0.00,150.00,R,REDACTED PERSONAL DATA,No
Http://opendatacommunities.org/id/metropolitan-district-council/leeds,Leeds City Council,30/06/2022,Children and Families,Social Care,Agency Payments,Contact,548,01/06/2022,2206-00674,0.00,10.40,R,REDACTED PERSONAL DATA,No
Http://opendatacommunities.org/id/metropolitan-district-council/leeds,Leeds City Council,30/06/2022,Children and Families,Social Care,Agency Payments,Contact,548,10/06/2022,2206-00675,0.00,10.40,R,REDACTED PERSONAL DATA,No
Http://opendatacommunities.org/id/metropolitan-district-council/leeds,Leeds City Council,30/06/2022,Children and Families,Social Care,Agency Payments,Section 17,551,23/06/2022,2206-00676,0.00,142.86,R,REDACTED PERSONAL DATA,No
Http://opendatacommunities.org/id/metropolitan-district-council/leeds,Leeds City Council,30/06/2022,Children and Families,Social Care,Appropriations,Leaving Care Allowances,634,01/06/2022,2206-00677,0.00,40.00,R,REDACTED PERSONAL DATA,No
Http://opendatacommunities.org/id/metropolitan-district-council/leeds,Leeds City Council,30/06/2022,Children and Families,Social Care,Appropriations,Leaving Care Allowances,634,06/06/2022,2206-00678,0.00,35.49,R,REDACTED PERSONAL DATA,No
Http://opendatacommunities.org/id/metropolitan-district-council/leeds,Leeds City Council,30/06/2022,Children and Families,Social Care,Appropriations,Leaving Care Allowances,634,10/06/2022,2206-00679,0.00,40.00,R,REDACTED PERSONAL DATA,No
Http://opendatacommunities.org/id/metropolitan-district-council/leeds,Leeds City Council,30/06/2022,Children and Families,Social Care,Appropriations,Leaving Care Allowances,634,17/06/2022,2206-00680,0.00,40.00,R,REDACTED PERSONAL DATA,No
Http://opendatacommunities.org/id/metropolitan-district-council/leeds,Leeds City Council,30/06/2022,Children and Families,Social Care,Agency Payments,Services Rendered By Other Organisations,511,01/06/2022,2206-00681,0.00,372.84,R,REDACTED PERSONAL DATA,No
Http://opendatacommunities.org/id/metropolitan-district-council/leeds,Leeds City Council,30/06/2022,Children and Families,Social Care,Agency Payments,Contact,548,24/06/2022,2206-00682,0.00,16.60,R,REDACTED PERSONAL DATA,No
Http://opendatacommunities.org/id/metropolitan-district-council/leeds,Leeds City Council,30/06/2022,Children and Families,Social Care,Agency Payments,Placement Support,550,10/06/2022,2206-00683,0.00,11.22,R,REDACTED PERSONAL DATA,No
Http://opendatacommunities.org/id/metropolitan-district-council/leeds,Leeds City Council,30/06/2022,City Development,Libraries Arts & Heritage,Supplies and Services,Operational Materials,205,12/05/2022,2206-00684,0.00,322.00,R,Alive Network Ltd,Yes
Http://opendatacommunities.org/id/metropolitan-district-council/leeds,Leeds City Council,30/06/2022,City Development,Libraries Arts & Heritage,Employees,Agency Staff,8,27/05/2022,2206-00685,0.00,950.00,R,Alive Network Ltd,Yes
Http://opendatacommunities.org/id/metropolitan-district-council/leeds,Leeds City Council,30/06/2022,Children and Families,Social Care,Agency Payments,Services Rendered By Other Organisations,511,01/06/2022,2206-00686,0.00,13297.96,R,All Stars Childcare,No
Http://opendatacommunities.org/id/metropolitan-district-council/leeds,Leeds City Council,30/06/2022,Children and Families,Social Care,Agency Payments,Services Rendered By Other Organisations,511,01/06/2022,2206-00687,0.00,1303.38,R,All Stars Childcare,No
Http://opendatacommunities.org/id/metropolitan-district-council/leeds,Leeds City Council,30/06/2022,Children and Families,Social Care,Agency Payments,Services Rendered By Voluntary Sector,505,15/06/2022,2206-00688,0.00,1500.00,R,All Stars Childcare,No
Http://opendatacommunities.org/id/metropolitan-district-council/leeds,Leeds City Council,30/06/2022,Adults and Health,Services For Adults Under 65 Mental/Dis,Supplies and Services,Operational Furniture And Equipment,203,24/06/2022,2206-00689,0.00,106.92,R,ALLANSOUND COMMUNICATIONS,No
Http://opendatacommunities.org/id/metropolitan-district-council/leeds,Leeds City Council,30/06/2022,Adults and Health,Services For Adults Under 65 Mental/Dis,Supplies and Services,Operational Furniture And Equipment,203,24/06/2022,2206-00690,0.00,106.92,R,ALLANSOUND COMMUNICATIONS,No
Http://opendatacommunities.org/id/metropolitan-district-council/leeds,Leeds City Council as Accountable Body,30/06/2022,Social Services Pooled Budgets,Jcs For People With Learning Disabilitie,Agency Payments,Sheltered Accommodation,569,22/06/2022,2206-00691,0.00,20486.00,R,Allerton Avenue,No
Http://opendatacommunities.org/id/metropolitan-district-council/leeds,Leeds City Council,30/06/2022,Adults and Health,Services For Older People - 65 And Over,Agency Payments,Nursing Care Dementia,574,22/06/2022,2206-00692,0.00,35996.44,R,ALLERTON PARK N H,No
Http://opendatacommunities.org/id/metropolitan-district-council/leeds,Leeds City Council,30/06/2022,Resources,Finance,Supplies and Services,Bank Charges,263,08/06/2022,2206-00693,0.00,217.91,R,ALLIANCE & LEICESTER COMMERCIAL BANK,No
Http://opendatacommunities.org/id/metropolitan-district-council/leeds,Leeds City Council,30/06/2022,Resources,Finance,Supplies and Services,Bank Charges,263,08/06/2022,2206-00694,0.00,100.00,R,ALLIANCE & LEICESTER COMMERCIAL BANK,No
Http://opendatacommunities.org/id/metropolitan-district-council/leeds,Leeds City Council,30/06/2022,Resources,Commercial Services,Supplies and Services,Operational Materials,205,01/06/2022,2206-00695,0.00,89.78,R,ALLIANCE DISPOSABLES LTD,No
Http://opendatacommunities.org/id/metropolitan-district-council/leeds,Leeds City Council,30/06/2022,Resources,Commercial Services,Supplies and Services,Operational Materials,205,01/06/2022,2206-00696,0.00,227.64,R,ALLIANCE DISPOSABLES LTD,No
Http://opendatacommunities.org/id/metropolitan-district-council/leeds,Leeds City Council,30/06/2022,Resources,Commercial Services,Supplies and Services,Operational Materials,205,01/06/2022,2206-00697,0.00,179.96,R,ALLIANCE DISPOSABLES LTD,No
Http://opendatacommunities.org/id/metropolitan-district-council/leeds,Leeds City Council,30/06/2022,Resources,Commercial Services,Supplies and Services,Operational Materials,205,01/06/2022,2206-00698,0.00,62.34,R,ALLIANCE DISPOSABLES LTD,No
Http://opendatacommunities.org/id/metropolitan-district-council/leeds,Leeds City Council,30/06/2022,Resources,Commercial Services,Supplies and Services,Operational Materials,205,01/06/2022,2206-00699,0.00,101.88,R,ALLIANCE DISPOSABLES LTD,No
Http://opendatacommunities.org/id/metropolitan-district-council/leeds,Leeds City Council,30/06/2022,Resources,Commercial Services,Supplies and Services,Operational Materials,205,01/06/2022,2206-00700,0.00,480.30,R,ALLIANCE DISPOSABLES LTD,No
Http://opendatacommunities.org/id/metropolitan-district-council/leeds,Leeds City Council,30/06/2022,Resources,Commercial Services,Supplies and Services,Operational Materials,205,01/06/2022,2206-00701,0.00,269.34,R,ALLIANCE DISPOSABLES LTD,No
Http://opendatacommunities.org/id/metropolitan-district-council/leeds,Leeds City Council,30/06/2022,Resources,Commercial Services,Supplies and Services,Operational Materials,205,01/06/2022,2206-00702,0.00,125.36,R,ALLIANCE DISPOSABLES LTD,No
Http://opendatacommunities.org/id/metropolitan-district-council/leeds,Leeds City Council,30/06/2022,Resources,Commercial Services,Supplies and Services,Operational Materials,205,07/06/2022,2206-00703,0.00,440.40,R,ALLIANCE DISPOSABLES LTD,No
Http://opendatacommunities.org/id/metropolitan-district-council/leeds,Leeds City Council,30/06/2022,Resources,Commercial Services,Supplies and Services,Operational Materials,205,09/06/2022,2206-00704,0.00,89.78,R,ALLIANCE DISPOSABLES LTD,No
Http://opendatacommunities.org/id/metropolitan-district-council/leeds,Leeds City Council,30/06/2022,Resources,Commercial Services,Supplies and Services,Operational Materials,205,09/06/2022,2206-00705,0.00,230.16,R,ALLIANCE DISPOSABLES LTD,No
Http://opendatacommunities.org/id/metropolitan-district-council/leeds,Leeds City Council,30/06/2022,Resources,Commercial Services,Supplies and Services,Operational Materials,205,09/06/2022,2206-00706,0.00,15.98,R,ALLIANCE DISPOSABLES LTD,No
Http://opendatacommunities.org/id/metropolitan-district-council/leeds,Leeds City Council,30/06/2022,Resources,Commercial Services,Supplies and Services,Operational Materials,205,09/06/2022,2206-00707,0.00,10.78,R,ALLIANCE DISPOSABLES LTD,No
Http://opendatacommunities.org/id/metropolitan-district-council/leeds,Leeds City Council,30/06/2022,Resources,Commercial Services,Supplies and Services,Operational Materials,205,10/06/2022,2206-00708,0.00,38.76,R,ALLIANCE DISPOSABLES LTD,No
Http://opendatacommunities.org/id/metropolitan-district-council/leeds,Leeds City Council,30/06/2022,Resources,Commercial Services,Supplies and Services,Operational Materials,205,10/06/2022,2206-00709,0.00,353.16,R,ALLIANCE DISPOSABLES LTD,No
Http://opendatacommunities.org/id/metropolitan-district-council/leeds,Leeds City Council,30/06/2022,Resources,Commercial Services,Supplies and Services,Operational Materials,205,15/06/2022,2206-00710,0.00,134.67,R,ALLIANCE DISPOSABLES LTD,No
Http://opendatacommunities.org/id/metropolitan-district-council/leeds,Leeds City Council,30/06/2022,Resources,Commercial Services,Supplies and Services,Operational Materials,205,15/06/2022,2206-00711,0.00,198.10,R,ALLIANCE DISPOSABLES LTD,No
Http://opendatacommunities.org/id/metropolitan-district-council/leeds,Leeds City Council,30/06/2022,Resources,Commercial Services,Supplies and Services,Operational Materials,205,17/06/2022,2206-00712,0.00,-227.64,R,ALLIANCE DISPOSABLES LTD,No
Http://opendatacommunities.org/id/metropolitan-district-council/leeds,Leeds City Council,30/06/2022,Resources,Commercial Services,Supplies and Services,Operational Materials,205,17/06/2022,2206-00713,0.00,44.89,R,ALLIANCE DISPOSABLES LTD,No
Http://opendatacommunities.org/id/metropolitan-district-council/leeds,Leeds City Council,30/06/2022,Resources,Commercial Services,Supplies and Services,Operational Materials,205,17/06/2022,2206-00714,0.00,190.45,R,ALLIANCE DISPOSABLES LTD,No
Http://opendatacommunities.org/id/metropolitan-district-council/leeds,Leeds City Council,30/06/2022,Resources,Commercial Services,Supplies and Services,Operational Materials,205,17/06/2022,2206-00715,0.00,44.89,R,ALLIANCE DISPOSABLES LTD,No
Http://opendatacommunities.org/id/metropolitan-district-council/leeds,Leeds City Council,30/06/2022,Resources,Commercial Services,Supplies and Services,Operational Materials,205,22/06/2022,2206-00716,0.00,119.95,R,ALLIANCE DISPOSABLES LTD,No
Http://opendatacommunities.org/id/metropolitan-district-council/leeds,Leeds City Council,30/06/2022,Resources,Commercial Services,Supplies and Services,Operational Materials,205,22/06/2022,2206-00717,0.00,230.60,R,ALLIANCE DISPOSABLES LTD,No
Http://opendatacommunities.org/id/metropolitan-district-council/leeds,Leeds City Council,30/06/2022,Resources,Commercial Services,Supplies and Services,Operational Materials,205,24/06/2022,2206-00718,0.00,79.59,R,ALLIANCE DISPOSABLES LTD,No
Http://opendatacommunities.org/id/metropolitan-district-council/leeds,Leeds City Council,30/06/2022,Resources,Commercial Services,Supplies and Services,Operational Materials,205,24/06/2022,2206-00719,0.00,96.13,R,ALLIANCE DISPOSABLES LTD,No
Http://opendatacommunities.org/id/metropolitan-district-council/leeds,Leeds City Council,30/06/2022,Resources,Commercial Services,Supplies and Services,Operational Materials,205,24/06/2022,2206-00720,0.00,266.36,R,ALLIANCE DISPOSABLES LTD,No
Http://opendatacommunities.org/id/metropolitan-district-council/leeds,Leeds City Council,30/06/2022,Resources,Commercial Services,Supplies and Services,Operational Materials,205,28/06/2022,2206-00721,0.00,142.44,R,ALLIANCE DISPOSABLES LTD,No
Http://opendatacommunities.org/id/metropolitan-district-council/leeds,Leeds City Council,30/06/2022,City Development,Highways,Capital,CONSTRUCTION,3,15/06/2022,2206-00722,0.00,400.00,C,ALLIED EXPLORATION & GEOTECHNICS LTD,No
Http://opendatacommunities.org/id/metropolitan-district-council/leeds,Leeds City Council,30/06/2022,City Development,Highways,Capital,CONSTRUCTION,3,15/06/2022,2206-00723,0.00,425.88,C,ALLIED EXPLORATION & GEOTECHNICS LTD,No
Http://opendatacommunities.org/id/metropolitan-district-council/leeds,Leeds City Council,30/06/2022,City Development,Highways,Capital,CONSTRUCTION,3,15/06/2022,2206-00724,0.00,2514.55,C,ALLIED EXPLORATION & GEOTECHNICS LTD,No
Http://opendatacommunities.org/id/metropolitan-district-council/leeds,Leeds City Council as Accountable Body,30/06/2022,Social Services Pooled Budgets,Jcs For People With Learning Disabilitie,Agency Payments,Home Care,568,01/06/2022,2206-00725,0.00,8208.00,R,Allied Healthcare,No
Http://opendatacommunities.org/id/metropolitan-district-council/leeds,Leeds City Council,30/06/2022,Adults and Health,Services For Adults Under 65 Mental/Dis,Agency Payments,Home Care,568,01/06/2022,2206-00726,0.00,2335.64,R,Allied Healthcare,No
Http://opendatacommunities.org/id/metropolitan-district-council/leeds,Leeds City Council,30/06/2022,Adults and Health,Services For Older People - 65 And Over,Agency Payments,Home Care,568,01/06/2022,2206-00727,0.00,49971.88,R,Allied Healthcare,No
Http://opendatacommunities.org/id/metropolitan-district-council/leeds,Leeds City Council,30/06/2022,Adults and Health,Services For Older People - 65 And Over,Agency Payments,HCAIT Community Support,575,01/06/2022,2206-00728,0.00,122.94,R,Allied Healthcare,No
Http://opendatacommunities.org/id/metropolitan-district-council/leeds,Leeds City Council,30/06/2022,Adults and Health,Services For Older People - 65 And Over,Agency Payments,HCAIT Other,577,01/06/2022,2206-00729,0.00,1108.04,R,Allied Healthcare,No
Http://opendatacommunities.org/id/metropolitan-district-council/leeds,Leeds City Council,30/06/2022,Adults and Health,Services For Older People Under 65 P/Dis,Agency Payments,Home Care,568,01/06/2022,2206-00730,0.00,5707.37,R,Allied Healthcare,No
Http://opendatacommunities.org/id/metropolitan-district-council/leeds,Leeds City Council,30/06/2022,Adults and Health,Services For Older People Under 65 P/Dis,Agency Payments,HCAIT Community Support,575,01/06/2022,2206-00731,0.00,3579.60,R,Allied Healthcare,No
Http://opendatacommunities.org/id/metropolitan-district-council/leeds,Leeds City Council,30/06/2022,Adults and Health,Services For Older People - 65 And Over,Agency Payments,Home Care,568,29/06/2022,2206-00732,0.00,51.23,R,Allied Healthcare,No
Http://opendatacommunities.org/id/metropolitan-district-council/leeds,Leeds City Council,30/06/2022,Children and Families,Social Care,Agency Payments,Services Rendered By Other Organisations,511,01/06/2022,2206-00733,0.00,559.26,R,REDACTED PERSONAL DATA,No
Http://opendatacommunities.org/id/metropolitan-district-council/leeds,Leeds City Council,30/06/2022,Children and Families,Social Care,Agency Payments,Contact,548,01/06/2022,2206-00734,0.00,99.40,R,Allpay,No
Http://opendatacommunities.org/id/metropolitan-district-council/leeds,Leeds City Council,30/06/2022,Children and Families,Social Care,Agency Payments,Placement Support,550,01/06/2022,2206-00735,0.00,90.00,R,Allpay,No
Http://opendatacommunities.org/id/metropolitan-district-council/leeds,Leeds City Council,30/06/2022,Children and Families,Social Care,Agency Payments,Section 17,551,01/06/2022,2206-00736,0.00,950.70,R,Allpay,No
Http://opendatacommunities.org/id/metropolitan-district-council/leeds,Leeds City Council,30/06/2022,Children and Families,Social Care,Appropriations,16 Plus Top Up Allowance,625,01/06/2022,2206-00737,0.00,400.00,R,Allpay,No
Http://opendatacommunities.org/id/metropolitan-district-council/leeds,Leeds City Council,30/06/2022,Children and Families,Social Care,Appropriations,Leaving Care Allowances,634,01/06/2022,2206-00738,0.00,2576.67,R,Allpay,No
Http://opendatacommunities.org/id/metropolitan-district-council/leeds,Leeds City Council,30/06/2022,Children and Families,Social Care,Agency Payments,Allowances,546,07/06/2022,2206-00739,0.00,50.00,R,Allpay,No
Http://opendatacommunities.org/id/metropolitan-district-council/leeds,Leeds City Council,30/06/2022,Children and Families,Social Care,Agency Payments,Placement Support,550,08/06/2022,2206-00740,0.00,412.20,R,Allpay,No
Http://opendatacommunities.org/id/metropolitan-district-council/leeds,Leeds City Council,30/06/2022,Children and Families,Social Care,Agency Payments,Contact,548,09/06/2022,2206-00741,0.00,51.70,R,Allpay,No
Http://opendatacommunities.org/id/metropolitan-district-council/leeds,Leeds City Council,30/06/2022,Children and Families,Social Care,Agency Payments,Placement Support,550,09/06/2022,2206-00742,0.00,90.00,R,Allpay,No
Http://opendatacommunities.org/id/metropolitan-district-council/leeds,Leeds City Council,30/06/2022,Children and Families,Social Care,Agency Payments,Section 17,551,09/06/2022,2206-00743,0.00,1034.90,R,Allpay,No
Http://opendatacommunities.org/id/metropolitan-district-council/leeds,Leeds City Council,30/06/2022,Children and Families,Social Care,Appropriations,16 Plus Top Up Allowance,625,09/06/2022,2206-00744,0.00,380.00,R,Allpay,No
Http://opendatacommunities.org/id/metropolitan-district-council/leeds,Leeds City Council,30/06/2022,Children and Families,Social Care,Appropriations,Leaving Care Allowances,634,09/06/2022,2206-00745,0.00,2417.67,R,Allpay,No
Http://opendatacommunities.org/id/metropolitan-district-council/leeds,Leeds City Council,30/06/2022,Children and Families,Social Care,Agency Payments,Contact,548,09/06/2022,2206-00746,0.00,20.00,R,Allpay,No
Http://opendatacommunities.org/id/metropolitan-district-council/leeds,Leeds City Council,30/06/2022,Children and Families,Social Care,Agency Payments,Section 17,551,09/06/2022,2206-00747,0.00,252.60,R,Allpay,No
Http://opendatacommunities.org/id/metropolitan-district-council/leeds,Leeds City Council,30/06/2022,Children and Families,Social Care,Agency Payments,Placement Support,550,09/06/2022,2206-00748,0.00,200.00,R,Allpay,No
Http://opendatacommunities.org/id/metropolitan-district-council/leeds,Leeds City Council,30/06/2022,Children and Families,Social Care,Agency Payments,Section 17,551,10/06/2022,2206-00749,0.00,126.80,R,Allpay,No
Http://opendatacommunities.org/id/metropolitan-district-council/leeds,Leeds City Council,30/06/2022,Children and Families,Social Care,Appropriations,Leaving Care Allowances,634,10/06/2022,2206-00750,0.00,107.78,R,Allpay,No
Http://opendatacommunities.org/id/metropolitan-district-council/leeds,Leeds City Council,30/06/2022,Children and Families,Social Care,Agency Payments,Contact,548,14/06/2022,2206-00751,0.00,40.00,R,Allpay,No
Http://opendatacommunities.org/id/metropolitan-district-council/leeds,Leeds City Council,30/06/2022,Children and Families,Social Care,Appropriations,Leaving Care Allowances,634,14/06/2022,2206-00752,0.00,120.00,R,Allpay,No
Http://opendatacommunities.org/id/metropolitan-district-council/leeds,Leeds City Council,30/06/2022,Children and Families,Social Care,Agency Payments,Contact,548,14/06/2022,2206-00753,0.00,11.00,R,Allpay,No
Http://opendatacommunities.org/id/metropolitan-district-council/leeds,Leeds City Council,30/06/2022,Children and Families,Social Care,Appropriations,Leaving Care Allowances,634,15/06/2022,2206-00754,0.00,60.00,R,Allpay,No
Http://opendatacommunities.org/id/metropolitan-district-council/leeds,Leeds City Council,30/06/2022,Children and Families,Social Care,Appropriations,Leaving Care Allowances,634,15/06/2022,2206-00755,0.00,120.00,R,Allpay,No
Http://opendatacommunities.org/id/metropolitan-district-council/leeds,Leeds City Council,30/06/2022,Children and Families,Social Care,Agency Payments,Contact,548,15/06/2022,2206-00756,0.00,82.70,R,Allpay,No
Http://opendatacommunities.org/id/metropolitan-district-council/leeds,Leeds City Council,30/06/2022,Children and Families,Social Care,Agency Payments,Placement Support,550,15/06/2022,2206-00757,0.00,90.00,R,Allpay,No
Http://opendatacommunities.org/id/metropolitan-district-council/leeds,Leeds City Council,30/06/2022,Children and Families,Social Care,Agency Payments,Section 17,551,15/06/2022,2206-00758,0.00,1000.18,R,Allpay,No
Http://opendatacommunities.org/id/metropolitan-district-council/leeds,Leeds City Council,30/06/2022,Children and Families,Social Care,Appropriations,16 Plus Top Up Allowance,625,15/06/2022,2206-00759,0.00,320.00,R,Allpay,No
Http://opendatacommunities.org/id/metropolitan-district-council/leeds,Leeds City Council,30/06/2022,Children and Families,Social Care,Appropriations,Leaving Care Allowances,634,15/06/2022,2206-00760,0.00,2376.62,R,Allpay,No
Http://opendatacommunities.org/id/metropolitan-district-council/leeds,Leeds City Council,30/06/2022,Children and Families,Social Care,Appropriations,16 Plus Top Up Allowance,625,15/06/2022,2206-00761,0.00,20.00,R,Allpay,No
Http://opendatacommunities.org/id/metropolitan-district-council/leeds,Leeds City Council,30/06/2022,Children and Families,Social Care,Appropriations,Leaving Care Allowances,634,15/06/2022,2206-00762,0.00,40.00,R,Allpay,No
Http://opendatacommunities.org/id/metropolitan-district-council/leeds,Leeds City Council,30/06/2022,Children and Families,Social Care,Agency Payments,Allowances,546,17/06/2022,2206-00763,0.00,50.00,R,Allpay,No
Http://opendatacommunities.org/id/metropolitan-district-council/leeds,Leeds City Council,30/06/2022,Children and Families,Social Care,Agency Payments,Contact,548,17/06/2022,2206-00764,0.00,45.00,R,Allpay,No
Http://opendatacommunities.org/id/metropolitan-district-council/leeds,Leeds City Council,30/06/2022,Children and Families,Social Care,Agency Payments,Section 17,551,17/06/2022,2206-00765,0.00,84.20,R,Allpay,No
Http://opendatacommunities.org/id/metropolitan-district-council/leeds,Leeds City Council,30/06/2022,Children and Families,Social Care,Appropriations,Leaving Care Allowances,634,17/06/2022,2206-00766,0.00,244.20,R,Allpay,No
Http://opendatacommunities.org/id/metropolitan-district-council/leeds,Leeds City Council,30/06/2022,Children and Families,Social Care,Appropriations,16 Plus Top Up Allowance,625,20/06/2022,2206-00767,0.00,240.00,R,Allpay,No
Http://opendatacommunities.org/id/metropolitan-district-council/leeds,Leeds City Council,30/06/2022,Children and Families,Social Care,Appropriations,Leaving Care Allowances,634,20/06/2022,2206-00768,0.00,50.00,R,Allpay,No
Http://opendatacommunities.org/id/metropolitan-district-council/leeds,Leeds City Council,30/06/2022,Children and Families,Social Care,Agency Payments,Allowances,546,20/06/2022,2206-00769,0.00,50.00,R,Allpay,No
Http://opendatacommunities.org/id/metropolitan-district-council/leeds,Leeds City Council,30/06/2022,Children and Families,Social Care,Agency Payments,Placement Support,550,21/06/2022,2206-00770,0.00,200.00,R,Allpay,No
Http://opendatacommunities.org/id/metropolitan-district-council/leeds,Leeds City Council,30/06/2022,Children and Families,Social Care,Agency Payments,Placement Support,550,21/06/2022,2206-00771,0.00,265.20,R,Allpay,No
Http://opendatacommunities.org/id/metropolitan-district-council/leeds,Leeds City Council,30/06/2022,Children and Families,Social Care,Agency Payments,Contact,548,22/06/2022,2206-00772,0.00,102.70,R,Allpay,No
Http://opendatacommunities.org/id/metropolitan-district-council/leeds,Leeds City Council,30/06/2022,Children and Families,Social Care,Agency Payments,Placement Support,550,22/06/2022,2206-00773,0.00,40.00,R,Allpay,No
Http://opendatacommunities.org/id/metropolitan-district-council/leeds,Leeds City Council,30/06/2022,Children and Families,Social Care,Agency Payments,Section 17,551,22/06/2022,2206-00774,0.00,1000.18,R,Allpay,No
Http://opendatacommunities.org/id/metropolitan-district-council/leeds,Leeds City Council,30/06/2022,Children and Families,Social Care,Appropriations,16 Plus Top Up Allowance,625,22/06/2022,2206-00775,0.00,20.00,R,Allpay,No
Http://opendatacommunities.org/id/metropolitan-district-council/leeds,Leeds City Council,30/06/2022,Children and Families,Social Care,Appropriations,Leaving Care Allowances,634,22/06/2022,2206-00776,0.00,2345.57,R,Allpay,No
Http://opendatacommunities.org/id/metropolitan-district-council/leeds,Leeds City Council,30/06/2022,Children and Families,Social Care,Appropriations,Leaving Care Grants,635,22/06/2022,2206-00777,0.00,280.00,R,Allpay,No
Http://opendatacommunities.org/id/metropolitan-district-council/leeds,Leeds City Council,30/06/2022,Children and Families,Social Care,Agency Payments,Allowances,546,22/06/2022,2206-00778,0.00,30.00,R,Allpay,No
Http://opendatacommunities.org/id/metropolitan-district-council/leeds,Leeds City Council,30/06/2022,Children and Families,Social Care,Appropriations,Leaving Care Allowances,634,22/06/2022,2206-00779,0.00,50.00,R,Allpay,No
Http://opendatacommunities.org/id/metropolitan-district-council/leeds,Leeds City Council,30/06/2022,Children and Families,Social Care,Appropriations,Leaving Care Allowances,634,23/06/2022,2206-00780,0.00,60.00,R,Allpay,No
Http://opendatacommunities.org/id/metropolitan-district-council/leeds,Leeds City Council,30/06/2022,Children and Families,Social Care,Agency Payments,Allowances,546,23/06/2022,2206-00781,0.00,150.00,R,Allpay,No
Http://opendatacommunities.org/id/metropolitan-district-council/leeds,Leeds City Council,30/06/2022,Children and Families,Social Care,Agency Payments,Allowances,546,23/06/2022,2206-00782,0.00,150.00,R,Allpay,No
Http://opendatacommunities.org/id/metropolitan-district-council/leeds,Leeds City Council,30/06/2022,Children and Families,Social Care,Appropriations,16 Plus Top Up Allowance,625,24/06/2022,2206-00783,0.00,80.00,R,Allpay,No
Http://opendatacommunities.org/id/metropolitan-district-council/leeds,Leeds City Council,30/06/2022,Children and Families,Social Care,Appropriations,Leaving Care Allowances,634,24/06/2022,2206-00784,0.00,50.00,R,Allpay,No
Http://opendatacommunities.org/id/metropolitan-district-council/leeds,Leeds City Council,30/06/2022,Children and Families,Social Care,Agency Payments,Contact,548,24/06/2022,2206-00785,0.00,20.80,R,Allpay,No
Http://opendatacommunities.org/id/metropolitan-district-council/leeds,Leeds City Council,30/06/2022,Children and Families,Social Care,Agency Payments,Contact,548,28/06/2022,2206-00786,0.00,102.70,R,Allpay,No
Http://opendatacommunities.org/id/metropolitan-district-council/leeds,Leeds City Council,30/06/2022,Children and Families,Social Care,Agency Payments,Placement Support,550,28/06/2022,2206-00787,0.00,40.00,R,Allpay,No
Http://opendatacommunities.org/id/metropolitan-district-council/leeds,Leeds City Council,30/06/2022,Children and Families,Social Care,Agency Payments,Section 17,551,28/06/2022,2206-00788,0.00,825.18,R,Allpay,No
Http://opendatacommunities.org/id/metropolitan-district-council/leeds,Leeds City Council,30/06/2022,Children and Families,Social Care,Appropriations,16 Plus Top Up Allowance,625,28/06/2022,2206-00789,0.00,280.00,R,Allpay,No
Http://opendatacommunities.org/id/metropolitan-district-council/leeds,Leeds City Council,30/06/2022,Children and Families,Social Care,Appropriations,Leaving Care Allowances,634,28/06/2022,2206-00790,0.00,2326.62,R,Allpay,No
Http://opendatacommunities.org/id/metropolitan-district-council/leeds,Leeds City Council,30/06/2022,Children and Families,Social Care,Agency Payments,Placement Support,550,28/06/2022,2206-00791,0.00,265.20,R,Allpay,No
Http://opendatacommunities.org/id/metropolitan-district-council/leeds,Leeds City Council,30/06/2022,Children and Families,Social Care,Appropriations,16 Plus Top Up Allowance,625,30/06/2022,2206-00792,0.00,40.00,R,Allpay,No
Http://opendatacommunities.org/id/metropolitan-district-council/leeds,Leeds City Council,30/06/2022,Children and Families,Social Care,Appropriations,Leaving Care Allowances,634,25/05/2022,2206-00793,0.00,100.00,R,Allpay *stonewater Limite,Yes
Http://opendatacommunities.org/id/metropolitan-district-council/leeds,Leeds City Council,30/06/2022,Resources,Finance,Supplies and Services,Bank Charges,263,01/06/2022,2206-00794,0.00,14.48,R,Allpay Limted,No
Http://opendatacommunities.org/id/metropolitan-district-council/leeds,Leeds City Council,30/06/2022,Resources,Finance,Supplies and Services,Bank Charges,263,01/06/2022,2206-00795,0.00,305.04,R,Allpay Limted,No
